Workbook

Sheet Manual Inputs
B1: Company | D1: Kentucky Power Co.
B2: State/Jurisdiction | D2: Kentucky
B3: Customer Class | D3: Large General Service - Secondary
B4: Sample Year Begins | D4: 2019-04-01 | E4: =+D4+0/24 -> 2019-04-01
B5: Reporting Year Begins | D5: 2019-04-01 | E5: =+D5+0/24 -> 2019-04-01
B6: Days in Sample Year | D6: =DATE(YEAR(TYBegin)+1,MONTH(TYBegin),DAY(TYBegin))-TYBegin -> 366
A9: Test Year Inputs from Revenue Process | L9: Solar LGS Sec
A10: Year | B10: Month | C10: kWh | D10: Customers | F10: SummaryID | G10: NCPTotal | H10: NCPOnPk | I10: NCPOffPk | L10: kWh
A11: =YEAR(D5) -> 2019 | B11: =MONTH(D4) -> 4 | C11: 28646641.07 | D11: 543 | F11: LRAPKPCLGS | G11: 252.6556611 | H11: 248.478953 | I11: 214.4108098 | L11: 0
A12: =IF(B12=1,A11+1,A11) -> 2019 | B12: =IF(B11=12,1,B11+1) -> 5 | C12: 29786825.34 | D12: 543 | L12: 0
A13: =IF(B13=1,A12+1,A12) -> 2019 | B13: =IF(B12=12,1,B12+1) -> 6 | C13: 30963670.61 | D13: 543 | L13: 0
A14: 2019 | B14: 7 | C14: 33225762.36 | D14: 543 | L14: 0
A15: 2019 | B15: 8 | C15: 33102345.83 | D15: 543 | L15: 0
A16: 2019 | B16: 9 | C16: 33645861.07 | D16: 543 | L16: 102000
A17: 2019 | B17: 10 | C17: 28447667.74 | D17: 543 | L17: 105400
A18: 2019 | B18: 11 | C18: 27268158.8 | D18: 543 | L18: 90400
A19: 2019 | B19: 12 | C19: 31272060.41 | D19: 543 | L19: 70400
A20: 2020 | B20: 1 | C20: 35180051.85 | D20: 543 | L20: 69600
A21: 2020 | B21: 2 | C21: 31341442.45 | D21: 543 | L21: 60400
A22: 2020 | B22: 3 | C22: 29974146.62 | D22: 543 | L22: 43400
C23: =SUM(C11:C22) -> 372854634.2 | D23: =SUM(D11:D22) -> 6516
A25: Coincident Peaks
A26: Year | B26: Month | C26: Day | D26: Hour Ended | E26: Concident Peak
A27: =YEAR(TYBegin) -> 2019 | B27: =MONTH(TYBegin) -> 4 | C27: 1 | D27: 7 | E27: =DATEVALUE(B27&"/"&C27&"/"&A27)+(D27-1)/24 -> 2019-04-01T06:00:00
A28: =IF(B28=1,A27+1,A27) -> 2019 | B28: =IF(B27=12,1,B27+1) -> 5 | C28: 28 | D28: 16 | E28: =DATEVALUE(B28&"/"&C28&"/"&A28)+(D28-1)/24 -> 2019-05-28T15:00:00
A29: =IF(B29=1,A28+1,A28) -> 2019 | B29: =IF(B28=12,1,B28+1) -> 6 | C29: 27 | D29: 16 | E29: 2019-06-27T15:00:00
A30: 2019 | B30: 7 | C30: 19 | D30: 16 | E30: 2019-07-19T15:00:00
A31: 2019 | B31: 8 | C31: 19 | D31: 16 | E31: 2019-08-19T15:00:00
A32: 2019 | B32: 9 | C32: 11 | D32: 16 | E32: 2019-09-11T15:00:00
A33: 2019 | B33: 10 | C33: 1 | D33: 16 | E33: 2019-10-01T15:00:00
A34: 2019 | B34: 11 | C34: 13 | D34: 8 | E34: 2019-11-13T07:00:00
A35: 2019 | B35: 12 | C35: 19 | D35: 8 | E35: 2019-12-19T07:00:00
A36: 2020 | B36: 1 | C36: 22 | D36: 8 | E36: 2020-01-22T07:00:00
A37: 2020 | B37: 2 | C37: 15 | D37: 8 | E37: 2020-02-15T07:00:00
A38: 2020 | B38: 3 | C38: 1 | D38: 8 | E38: 2020-03-01T07:00:00

Sheet TOD Inputs
A1: Peak Times for TOD Tariffs | F1: Holidays
B2: Hour | C2: Formatted | F2: Description | G2: Date
A3: Peak Start Hour | B3: 7 | C3: =TEXT(B3/24,"h:mm AM/PM") -> 7:00 AM | F3: New Year's Day
A4: Peak End Hour | B4: 21 | C4: =TEXT(B4/24,"h:mm AM/PM") -> 9:00 PM | F4: President's Day
F5: Memorial Day
F6: Independence Day
A7: Daylight Savings Time | F7: Labor Day
A8: Starts | B8: 2020-03-08 | F8: Thanksgiving Day
A9: Ends | B9: 2019-11-03 | F9: Christmas Day
A19: DST Dates
B20: 2011 | C20: 2012 | D20: 2013 | E20: 2014
A21: Starts | B21: 2011-03-13 | C21: 2012-03-11 | D21: 2013-03-10 | E21: 2014-03-09
A22: Ends | B22: 2011-11-06 | C22: 2012-11-04 | D22: 2013-11-03 | E22: 2014-11-02
B24: 2015 | C24: 2016
B25: 2015-03-08 | C25: 2016-03-13
B26: 2015-11-01 | C26: 2016-11-06

Sheet LR Monthly
A1: STATISTICID | B1: CNAME | C1: YEAR | D1: MONTH | E1: ENERGY_MPU | F1: NCP | G1: NCP_ON | H1: NCP_OFF | I1: ClassPeak_Mont | J1: CLASS_PEAK_ON | K1: CLASS_PEAK_OFF
A2: LRKPCLGS | B2: KPC LGS CLASS RLW | C2: 2019 | D2: 4 | E2: 56733.34476 | F2: 200.8949885 | G2: 199.1113661 | H2: 153.0983662 | I2: 136.8061376 | J2: 136.8061376 | K2: 103.6328461
A3: LRKPCLGS | B3: KPC LGS CLASS RLW | C3: 2019 | D3: 5 | E3: 62339.08121 | F3: 186.9249738 | G3: 185.5835513 | H3: 144.9620767 | I3: 147.2028626 | J3: 147.2028626 | K3: 100.8469002
A4: LRKPCLGS | B4: KPC LGS CLASS RLW | C4: 2019 | D4: 6 | E4: 57106.83891 | F4: 170.3277907 | G4: 169.0716659 | H4: 148.0172929 | I4: 132.5283555 | J4: 132.5283555 | K4: 99.9013953
A5: LRKPCLGS | B5: KPC LGS CLASS RLW | C5: 2019 | D5: 7 | E5: 64149.59229 | F5: 180.6370976 | G5: 179.7926227 | H5: 152.2672194 | I5: 135.5759799 | J5: 135.5759799 | K5: 101.8581891
A6: LRKPCLGS | B6: KPC LGS CLASS RLW | C6: 2019 | D6: 8 | E6: 68131.26749 | F6: 194.3614372 | G6: 193.8076137 | H6: 154.2902834 | I6: 161.344086 | J6: 161.344086 | K6: 117.2669931
A7: LRKPCLGS | B7: KPC LGS CLASS RLW | C7: 2019 | D7: 9 | E7: 65222.62258 | F7: 194.0064314 | G7: 190.8854795 | H7: 151.5123696 | I7: 155.1095108 | J7: 155.1095108 | K7: 107.8501884
A8: LRKPCLGS | B8: KPC LGS CLASS RLW | C8: 2019 | D8: 10 | E8: 60070.73716 | F8: 187.7350847 | G8: 186.9561911 | H8: 146.2047293 | I8: 140.6453804 | J8: 140.6453804 | K8: 106.6811244
A9: LRKPCLGS | B9: KPC LGS CLASS RLW | C9: 2019 | D9: 11 | E9: 61993.41256 | F9: 196.0592218 | G9: 193.9616332 | H9: 168.5418756 | I9: 149.0969871 | J9: 149.0969871 | K9: 126.8882034
A10: LRKPCLGS | B10: KPC LGS CLASS RLW | C10: 2019 | D10: 12 | E10: 66424.53385 | F10: 195.8825644 | G10: 195.4922749 | H10: 166.473378 | I10: 157.8408124 | J10: 157.8408124 | K10: 133.4746638
A11: LRKPCLGS | B11: KPC LGS CLASS RLW | C11: 2020 | D11: 1 | E11: 65906.80757 | F11: 190.3726995 | G11: 186.6747288 | H11: 164.8885407 | I11: 150.4921427 | J11: 150.4921427 | K11: 130.9720818
A12: LRKPCLGS | B12: KPC LGS CLASS RLW | C12: 2020 | D12: 2 | E12: 62344.69696 | F12: 184.2783919 | G12: 181.6294895 | H12: 155.2299395 | I12: 144.1384513 | J12: 144.1384513 | K12: 119.8999264
A13: LRKPCLGS | B13: KPC LGS CLASS RLW | C13: 2020 | D13: 3 | E13: 55724.14342 | F13: 179.7177946 | G13: 173.0903857 | H13: 150.5717602 | I13: 130.5478918 | J13: 130.5478918 | K13: 108.4078325

Sheet LR 8760 Loads
A1: ClassID | B1: Date | E1: IN | F1: UM | G1: CH | H1: TYP | I1: 01:00:00 | J1: 02:00:00 | K1: 03:00:00 | L1: 04:00:00 | M1: 05:00:00 | N1: 06:00:00 | O1: 07:00:00 | P1: 08:00:00 | Q1: 09:00:00 | R1: 10:00:00 | S1: 11:00:00 | T1: 12:00:00 | U1: 13:00:00 | V1: 14:00:00 | W1: 15:00:00 | X1: 16:00:00 | Y1: 17:00:00 | Z1: 18:00:00 | AA1: 19:00:00 | AB1: 20:00:00 | AC1: 21:00:00 | AD1: 22:00:00 | AE1: 23:00:00 | AF1: 1
A2: LRKPCLGS | B2: 040119 | C2: 1 | D2: 2400 | E2: 60 | F2: 1 | G2: 1 | H2: KW | I2: 60.66618059 | J2: 60.16664494 | K2: 62.72756654 | L2: 66.85674029 | M2: 73.37005532 | N2: 82.97503656 | O2: 102.0417976 | P2: 122.7547351 | Q2: 128.5135947 | R2: 132.4566628 | S2: 130.809021 | T2: 129.0268418 | U2: 121.0763527 | V2: 120.8733905 | W2: 116.8686834 | X2: 115.9737526 | Y2: 98.9383897 | Z2: 90.14536093 | AA2: 78.73184813 | AB2: 79.98645876 | AC2: 78.99051972 | AD2: 75.5878667 | AE2: 74.68496393 | AF2: 70.6488071
A3: LRKPCLGS | B3: 040219 | C3: 1 | D3: 2400 | E3: 60 | F3: 1 | G3: 1 | H3: KW | I3: 68.40403104 | J3: 69.32961219 | K3: 70.84576658 | L3: 75.03542164 | M3: 78.38716077 | N3: 87.2146941 | O3: 103.6328461 | P3: 124.4160292 | Q3: 127.402086 | R3: 133.2863591 | S3: 129.0751148 | T3: 123.4887562 | U3: 121.8977982 | V3: 121.3628872 | W3: 117.7056612 | X3: 112.6074478 | Y3: 100.0010724 | Z3: 86.92521373 | AA3: 76.95115893 | AB3: 75.54540658 | AC3: 75.29312041 | AD3: 70.92926943 | AE3: 67.80526428 | AF3: 66.37499147
A4: LRKPCLGS | B4: 040319 | C4: 1 | D4: 2400 | E4: 60 | F4: 1 | G4: 1 | H4: KW | I4: 64.01598874 | J4: 62.54080932 | K4: 66.57070135 | L4: 67.92728217 | M4: 74.75179115 | N4: 81.57549852 | O4: 100.3778437 | P4: 118.1951112 | Q4: 124.4051956 | R4: 124.3021777 | S4: 117.8186209 | T4: 111.6761504 | U4: 108.6624871 | V4: 105.4207679 | W4: 101.2215066 | X4: 97.12666217 | Y4: 85.36609113 | Z4: 76.2514188 | AA4: 74.10892582 | AB4: 70.84235817 | AC4: 68.1208442 | AD4: 65.72059296 | AE4: 64.10520466 | AF4: 62.88191136
A5: LRKPCLGS | B5: 040419 | C5: 1 | D5: 2400 | E5: 60 | F5: 1 | G5: 1 | H5: KW | I5: 61.60381066 | J5: 58.78528446 | K5: 58.78043034 | L5: 58.77688801 | M5: 66.06537212 | N5: 73.26084567 | O5: 88.26250612 | P5: 107.0036078 | Q5: 111.8998895 | R5: 109.008554 | S5: 110.1744184 | T5: 104.1976443 | U5: 105.7621319 | V5: 101.5398346 | W5: 105.1398767 | X5: 101.8822211 | Y5: 91.49723842 | Z5: 82.42603459 | AA5: 77.41838031 | AB5: 75.80945688 | AC5: 72.54913523 | AD5: 70.15899955 | AE5: 63.79881959 | AF5: 58.78875936
A6: LRKPCLGS | B6: 040519 | C6: 1 | D6: 2400 | E6: 60 | F6: 1 | G6: 1 | H6: KW | I6: 54.58864964 | J6: 54.44890809 | K6: 53.52441437 | L6: 55.83004793 | M6: 58.34356839 | N6: 63.90004355 | O6: 73.18377311 | P6: 85.53141942 | Q6: 89.83368653 | R6: 91.27988501 | S6: 91.75859409 | T6: 90.73406776 | U6: 92.36203985 | V6: 89.97168731 | W6: 88.32339387 | X6: 85.91502295 | Y6: 76.22315006 | Z6: 73.42888121 | AA6: 70.94201398 | AB6: 70.47632085 | AC6: 66.4290178 | AD6: 62.84781148 | AE6: 60.98517486 | AF6: 57.50982539
A7: LRKPCLGS | B7: 040619 | C7: 1 | D7: 2400 | E7: 60 | F7: 1 | G7: 1 | H7: KW | I7: 55.75685392 | J7: 55.28614628 | K7: 55.42226812 | L7: 55.43776189 | M7: 56.21374471 | N7: 57.02163923 | O7: 62.64138017 | P7: 63.22782541 | Q7: 63.23008773 | R7: 65.23432694 | S7: 65.16104544 | T7: 66.68428935 | U7: 63.96747976 | V7: 64.41252145 | W7: 65.8013046 | X7: 64.33989836 | Y7: 63.45911024 | Z7: 62.57688752 | AA7: 62.70649566 | AB7: 60.45287395 | AC7: 56.69441462 | AD7: 54.71447053 | AE7: 53.35053328 | AF7: 51.80209533
A8: LRKPCLGS | B8: 040719 | C8: 1 | D8: 2400 | E8: 60 | F8: 1 | G8: 1 | H8: KW | I8: 49.78485882 | J8: 49.6702361 | K8: 51.62486917 | L8: 51.99555486 | M8: 53.53133452 | N8: 55.56709204 | O8: 55.97062275 | P8: 57.03577065 | Q8: 56.63805925 | R8: 59.00286788 | S8: 58.58790536 | T8: 61.157934 | U8: 61.77220507 | V8: 61.76759267 | W8: 62.4197134 | X8: 60.54143757 | Y8: 60.60275673 | Z8: 61.73662585 | AA8: 59.46218155 | AB8: 56.53119014 | AC8: 58.11219123 | AD8: 55.68243252 | AE8: 55.140185 | AF8: 53.28205536
A9: LRKPCLGS | B9: 040819 | C9: 1 | D9: 2400 | E9: 60 | F9: 1 | G9: 1 | H9: KW | I9: 52.66362729 | J9: 51.68104181 | K9: 53.70709431 | L9: 53.03210672 | M9: 57.14169919 | N9: 67.31255989 | O9: 84.88472407 | P9: 100.9070767 | Q9: 114.4016889 | R9: 114.4432459 | S9: 119.2447988 | T9: 114.1641077 | U9: 115.6150261 | V9: 112.3496636 | W9: 111.6063163 | X9: 113.3150554 | Y9: 97.22620243 | Z9: 82.21113556 | AA9: 75.05444505 | AB9: 73.06953706 | AC9: 69.54004716 | AD9: 66.7788848 | AE9: 61.89614398 | AF9: 59.3065785
A10: LRKPCLGS | B10: 040919 | C10: 1 | D10: 2400 | E10: 60 | F10: 1 | G10: 1 | H10: KW | I10: 56.78180602 | J10: 56.91518747 | K10: 56.50691304 | L10: 57.82891981 | M10: 60.52051498 | N10: 71.88367022 | O10: 88.57913327 | P10: 107.0839483 | Q10: 121.1193534 | R10: 118.8488276 | S10: 124.0687123 | T10: 122.0939731 | U10: 120.4905942 | V10: 119.5974806 | W10: 120.1490807 | X10: 116.2068451 | Y10: 99.99960279 | Z10: 86.71898492 | AA10: 78.47805986 | AB10: 76.00458061 | AC10: 71.25026477 | AD10: 66.16272444 | AE10: 59.33497958 | AF10: 56.89266339
A11: LRKPCLGS | B11: 041019 | C11: 1 | D11: 2400 | E11: 60 | F11: 1 | G11: 1 | H11: KW | I11: 53.95905322 | J11: 53.25253334 | K11: 53.00360439 | L11: 55.38575247 | M11: 58.10112993 | N11: 69.29751979 | O11: 90.29914639 | P11: 105.4085601 | Q11: 121.5112264 | R11: 117.5363405 | S11: 114.3972405 | T11: 116.4247955 | U11: 123.2048651 | V11: 117.5513602 | W11: 116.959098 | X11: 111.0605366 | Y11: 93.77760714 | Z11: 88.09337225 | AA11: 81.38402054 | AB11: 74.84786751 | AC11: 71.66784194 | AD11: 63.29705258 | AE11: 59.60609595 | AF11: 54.90558041
A12: LRKPCLGS | B12: 041119 | C12: 1 | D12: 2400 | E12: 60 | F12: 1 | G12: 1 | H12: KW | I12: 52.50833658 | J12: 51.27232342 | K12: 51.30520068 | L12: 53.20219233 | M12: 58.39063073 | N12: 69.56032515 | O12: 85.93703722 | P12: 103.3445139 | Q12: 115.5664125 | R12: 118.0236383 | S12: 116.3716414 | T12: 119.9592721 | U12: 125.2815679 | V12: 125.6645449 | W12: 122.3890078 | X12: 120.567339 | Y12: 100.6534738 | Z12: 91.78267886 | AA12: 84.63504468 | AB12: 78.64822062 | AC12: 74.52774696 | AD12: 69.84869761 | AE12: 64.89688508 | AF12: 58.80055664
A13: LRKPCLGS | B13: 041219 | C13: 1 | D13: 2400 | E13: 60 | F13: 1 | G13: 1 | H13: KW | I13: 55.94096235 | J13: 54.31381676 | K13: 54.07151185 | L13: 55.61083 | M13: 62.5912761 | N13: 71.18248457 | O13: 92.84055216 | P13: 103.4873531 | Q13: 117.0008201 | R13: 118.0294743 | S13: 116.6968688 | T13: 118.2131514 | U13: 116.452275 | V13: 112.2662044 | W13: 106.3045628 | X13: 99.52998293 | Y13: 88.99848381 | Z13: 80.91920798 | AA13: 76.05253714 | AB13: 72.85132624 | AC13: 68.34248391 | AD13: 64.31778805 | AE13: 61.63600299 | AF13: 56.83414245
A14: LRKPCLGS | B14: 041319 | C14: 1 | D14: 2400 | E14: 60 | F14: 1 | G14: 1 | H14: KW | I14: 53.49533927 | J14: 51.89857161 | K14: 51.22544575 | L14: 52.71083731 | M14: 52.65699704 | N14: 55.65753852 | O14: 60.21685039 | P14: 61.13077019 | Q14: 61.09870796 | R14: 63.48197521 | S14: 64.78166329 | T14: 64.355363 | U14: 66.51888802 | V14: 64.29547425 | W14: 66.0603748 | X14: 62.83385717 | Y14: 62.69513771 | Z14: 62.78699543 | AA14: 59.52049067 | AB14: 58.24161436 | AC14: 58.81561546 | AD14: 56.91444189 | AE14: 54.12498789 | AF14: 52.20243865
A15: LRKPCLGS | B15: 041419 | C15: 1 | D15: 2400 | E15: 60 | F15: 1 | G15: 1 | H15: KW | I15: 50.10716761 | J15: 49.87579604 | K15: 49.67679425 | L15: 50.47438294 | M15: 51.87575888 | N15: 51.56954243 | O15: 54.6947693 | P15: 52.75640797 | Q15: 55.95071194 | R15: 55.2081701 | S15: 58.23503186 | T15: 61.12693273 | U15: 59.4775108 | V15: 63.09255137 | W15: 62.5937671 | X15: 65.11723799 | Y15: 63.79034496 | Z15: 60.93488926 | AA15: 56.87688299 | AB15: 57.03648703 | AC15: 56.93751987 | AD15: 54.82281638 | AE15: 53.29326459 | AF15: 52.25180042
A16: LRKPCLGS | B16: 041519 | C16: 1 | D16: 2400 | E16: 60 | F16: 1 | G16: 1 | H16: KW | I16: 49.78940555 | J16: 50.22750414 | K16: 49.70220346 | L16: 51.45052184 | M16: 58.24884959 | N16: 70.20163596 | O16: 84.66719722 | P16: 106.5712237 | Q16: 116.6066011 | R16: 116.9022709 | S16: 117.7621139 | T16: 113.2845227 | U16: 115.3270512 | V16: 108.8909235 | W16: 110.4420388 | X16: 105.7439504 | Y16: 92.28244548 | Z16: 81.46063039 | AA16: 76.84898263 | AB16: 72.31140691 | AC16: 71.51278898 | AD16: 66.85816845 | AE16: 63.55306529 | AF16: 59.61091458
A17: LRKPCLGS | B17: 041619 | C17: 1 | D17: 2400 | E17: 60 | F17: 1 | G17: 1 | H17: KW | I17: 57.77512246 | J17: 56.99515439 | K17: 57.72282081 | L17: 59.49746611 | M17: 67.94320367 | N17: 78.47528695 | O17: 98.32703318 | P17: 115.4482513 | Q17: 129.1247569 | R17: 129.770192 | S17: 126.3260842 | T17: 116.243945 | U17: 119.7300307 | V17: 113.6438342 | W17: 110.4157546 | X17: 105.928513 | Y17: 92.79995412 | Z17: 82.74083758 | AA17: 80.11902847 | AB17: 77.18218198 | AC17: 72.6739404 | AD17: 62.44013998 | AE17: 58.05604514 | AF17: 55.87933143
A18: LRKPCLGS | B18: 041719 | C18: 1 | D18: 2400 | E18: 60 | F18: 1 | G18: 1 | H18: KW | I18: 52.96109429 | J18: 51.52465801 | K18: 51.1904714 | L18: 52.72242818 | M18: 59.55336895 | N18: 68.97581895 | O18: 91.16698338 | P18: 103.710587 | Q18: 116.0939386 | R18: 114.4362681 | S18: 116.9593271 | T18: 115.2453021 | U18: 118.7172844 | V18: 114.0587128 | W18: 113.9968559 | X18: 107.9592632 | Y18: 96.89950619 | Z18: 87.00051694 | AA18: 79.72573573 | AB18: 78.06603304 | AC18: 72.33884326 | AD18: 65.82559804 | AE18: 61.44693265 | AF18: 56.31271734
A19: LRKPCLGS | B19: 041819 | C19: 1 | D19: 2400 | E19: 60 | F19: 1 | G19: 1 | H19: KW | I19: 56.56667796 | J19: 54.88325303 | K19: 53.39580449 | L19: 51.69870973 | M19: 59.78125302 | N19: 69.93129614 | O19: 84.78981681 | P19: 103.2833255 | Q19: 113.7543182 | R19: 116.3885432 | S19: 116.9990078 | T19: 117.883124 | U19: 119.1768331 | V19: 118.70195 | W19: 116.8107457 | X19: 113.9667701 | Y19: 100.1224507 | Z19: 88.20612902 | AA19: 80.58636231 | AB19: 75.43947391 | AC19: 72.48897282 | AD19: 67.88219213 | AE19: 63.25807907 | AF19: 58.20246371
A20: LRKPCLGS | B20: 041919 | C20: 1 | D20: 2400 | E20: 60 | F20: 1 | G20: 1 | H20: KW | I20: 57.82911898 | J20: 56.28056621 | K20: 55.20414818 | L20: 55.1446516 | M20: 58.5233641 | N20: 65.94386621 | O20: 78.99761221 | P20: 87.09260607 | Q20: 99.03916734 | R20: 102.1333854 | S20: 99.63444721 | T20: 100.7157577 | U20: 98.68945193 | V20: 95.4127634 | W20: 92.32736205 | X20: 88.51953582 | Y20: 79.21107015 | Z20: 72.71285189 | AA20: 70.79884494 | AB20: 68.97813976 | AC20: 67.57457253 | AD20: 63.00330301 | AE20: 59.76776568 | AF20: 56.6766838
A21: LRKPCLGS | B21: 042019 | C21: 1 | D21: 2400 | E21: 60 | F21: 1 | G21: 1 | H21: KW | I21: 53.42567622 | J21: 51.87598016 | K21: 51.13680486 | L21: 50.96921574 | M21: 53.43385267 | N21: 57.03763029 | O21: 59.69819846 | P21: 59.83559909 | Q21: 59.58294349 | R21: 62.18016649 | S21: 62.87022276 | T21: 61.93752696 | U21: 62.78682491 | V21: 64.43950148 | W21: 60.24913142 | X21: 59.7364175 | Y21: 57.96712402 | Z21: 57.92574268 | AA21: 55.9629386 | AB21: 53.90540062 | AC21: 54.97094309 | AD21: 52.79510308 | AE21: 51.25644518 | AF21: 49.67092664
A22: LRKPCLGS | B22: 042119 | C22: 1 | D22: 2400 | E22: 60 | F22: 1 | G22: 1 | H22: KW | I22: 48.6268245 | J22: 47.98574508 | K22: 47.18567404 | L22: 47.82820433 | M22: 49.27546401 | N22: 54.71153874 | O22: 54.13525755 | P22: 55.33904748 | Q22: 55.19949192 | R22: 54.71635253 | S22: 58.51542641 | T22: 57.90020485 | U22: 57.12589888 | V22: 55.79779975 | W22: 53.75672416 | X22: 56.60655455 | Y22: 54.52969979 | Z22: 56.90367245 | AA22: 58.02777484 | AB22: 59.39135866 | AC22: 57.9642879 | AD22: 57.56844225 | AE22: 55.09014349 | AF22: 51.25831079
A23: LRKPCLGS | B23: 042219 | C23: 1 | D23: 2400 | E23: 60 | F23: 1 | G23: 1 | H23: KW | I23: 49.59595414 | J23: 50.27787246 | K23: 50.46161301 | L23: 54.1452234 | M23: 59.94467145 | N23: 70.86400889 | O23: 89.70035362 | P23: 106.5698159 | Q23: 123.6776111 | R23: 125.4766352 | S23: 125.2614599 | T23: 119.6573079 | U23: 124.6023887 | V23: 120.8232198 | W23: 121.0428021 | X23: 113.720957 | Y23: 97.11712159 | Z23: 83.79326168 | AA23: 74.66738278 | AB23: 69.86536708 | AC23: 65.31757165 | AD23: 62.47684838 | AE23: 59.99604632 | AF23: 59.49168589
A24: LRKPCLGS | B24: 042319 | C24: 1 | D24: 2400 | E24: 60 | F24: 1 | G24: 1 | H24: KW | I24: 56.0347567 | J24: 52.77917976 | K24: 53.66401691 | L24: 56.90293405 | M24: 60.11598079 | N24: 70.71294756 | O24: 90.5279083 | P24: 104.8999202 | Q24: 117.1781667 | R24: 119.8659332 | S24: 120.3838622 | T24: 122.4811391 | U24: 124.4725313 | V24: 125.6173363 | W24: 121.4152021 | X24: 117.5678289 | Y24: 104.7129439 | Z24: 93.70720675 | AA24: 78.80009708 | AB24: 74.22014553 | AC24: 67.4292527 | AD24: 63.2532423 | AE24: 60.09529489 | AF24: 58.43009125
A25: LRKPCLGS | B25: 042419 | C25: 1 | D25: 2400 | E25: 60 | F25: 1 | G25: 1 | H25: KW | I25: 54.49718097 | J25: 53.81562329 | K25: 55.41115276 | L25: 58.92706812 | M25: 60.15222224 | N25: 72.83692312 | O25: 89.1164551 | P25: 111.3308983 | Q25: 124.5961664 | R25: 122.3790975 | S25: 124.9324266 | T25: 121.6056751 | U25: 129.7404116 | V25: 127.2030574 | W25: 124.2541718 | X25: 120.3425628 | Y25: 105.4926867 | Z25: 92.70835281 | AA25: 83.98184166 | AB25: 76.53416876 | AC25: 70.53176567 | AD25: 65.16560955 | AE25: 61.46233701 | AF25: 57.84333428
A26: LRKPCLGS | B26: 042519 | C26: 1 | D26: 2400 | E26: 60 | F26: 1 | G26: 1 | H26: KW | I26: 55.49179446 | J26: 54.27672077 | K26: 53.46046334 | L26: 55.75097296 | M26: 61.47467757 | N26: 70.71311563 | O26: 92.81468493 | P26: 111.1403175 | Q26: 126.2128871 | R26: 125.7303813 | S26: 133.3595361 | T26: 134.0621383 | U26: 133.1074962 | V26: 131.9909311 | W26: 128.754892 | X26: 123.4253858 | Y26: 110.2901769 | Z26: 95.91376292 | AA26: 79.75279557 | AB26: 73.23450976 | AC26: 70.47200675 | AD26: 65.95822822 | AE26: 61.91475207 | AF26: 59.328391
A27: LRKPCLGS | B27: 042619 | C27: 1 | D27: 2400 | E27: 60 | F27: 1 | G27: 1 | H27: KW | I27: 55.48238886 | J27: 52.47173777 | K27: 52.38515179 | L27: 52.88587274 | M27: 59.77973875 | N27: 68.2511316 | O27: 82.42229218 | P27: 95.78837314 | Q27: 107.137874 | R27: 109.1332539 | S27: 107.937366 | T27: 104.2548103 | U27: 104.6979225 | V27: 101.2363621 | W27: 98.31807858 | X27: 94.52192337 | Y27: 81.35430041 | Z27: 74.71237683 | AA27: 68.37492218 | AB27: 66.56895557 | AC27: 66.79170247 | AD27: 65.40540038 | AE27: 63.01034903 | AF27: 60.37941872
A28: LRKPCLGS | B28: 042719 | C28: 1 | D28: 2400 | E28: 60 | F28: 1 | G28: 1 | H28: KW | I28: 54.18838317 | J28: 52.9944216 | K28: 53.65652352 | L28: 54.46995639 | M28: 56.04736442 | N28: 58.85329806 | O28: 64.01684814 | P28: 66.92323827 | Q28: 65.75316859 | R28: 66.30294225 | S28: 68.58354303 | T28: 67.25825353 | U28: 66.7509003 | V28: 67.73086296 | W28: 65.254308 | X28: 63.74560741 | Y28: 58.50007366 | Z28: 59.10016942 | AA28: 57.9938015 | AB28: 56.56826505 | AC28: 55.69562215 | AD28: 55.61273534 | AE28: 54.04382218 | AF28: 52.93530542
A29: LRKPCLGS | B29: 042819 | C29: 1 | D29: 2400 | E29: 60 | F29: 1 | G29: 1 | H29: KW | I29: 51.85227897 | J29: 50.97298675 | K29: 51.38436058 | L29: 53.29264724 | M29: 53.03588027 | N29: 53.68834688 | O29: 54.05389692 | P29: 54.62478939 | Q29: 57.40928106 | R29: 57.57138002 | S29: 58.78504859 | T29: 60.96427126 | U29: 59.79219877 | V29: 60.32437562 | W29: 60.60489963 | X29: 57.42499364 | Y29: 59.27334841 | Z29: 57.17665067 | AA29: 55.62235521 | AB29: 54.14590131 | AC29: 53.77476186 | AD29: 53.35952806 | AE29: 52.03346393 | AF29: 51.16176488
A30: LRKPCLGS | B30: 042919 | C30: 1 | D30: 2400 | E30: 60 | F30: 1 | G30: 1 | H30: KW | I30: 48.89254428 | J30: 49.73472537 | K30: 49.29035792 | L30: 53.85936199 | M30: 58.2445886 | N30: 68.42204883 | O30: 90.53953195 | P30: 107.0367503 | Q30: 122.8702971 | R30: 121.0651548 | S30: 125.0718424 | T30: 123.396133 | U30: 133.0057198 | V30: 134.9289917 | W30: 130.2355845 | X30: 123.3551613 | Y30: 107.3990439 | Z30: 96.44826076 | AA30: 84.50005225 | AB30: 76.63833193 | AC30: 73.11655187 | AD30: 68.38010226 | AE30: 63.74542921 | AF30: 60.28680812
A31: LRKPCLGS | B31: 043019 | C31: 1 | D31: 2400 | E31: 60 | F31: 1 | G31: 1 | H31: KW | I31: 55.67433887 | J31: 53.12927363 | K31: 54.21543719 | L31: 56.99307195 | M31: 58.52368606 | N31: 71.03890508 | O31: 90.20924339 | P31: 110.1032162 | Q31: 122.1433637 | R31: 119.2554021 | S31: 128.6049651 | T31: 129.8091795 | U31: 134.0161471 | V31: 136.8061376 | W31: 134.6297516 | X31: 132.5260886 | Y31: 111.4016524 | Z31: 95.7161849 | AA31: 86.20936528 | AB31: 81.28929839 | AC31: 75.98800368 | AD31: 68.06391349 | AE31: 62.8688003 | AF31: 57.77657786
A32: LRKPCLGS | B32: 050119 | C32: 1 | D32: 2400 | E32: 60 | F32: 1 | G32: 1 | H32: KW | I32: 54.36156177 | J32: 52.92776546 | K32: 51.68385358 | L32: 54.06506198 | M32: 57.47354036 | N32: 67.63017197 | O32: 90.9062755 | P32: 110.8174546 | Q32: 126.0290256 | R32: 130.3405635 | S32: 134.6896753 | T32: 136.0292145 | U32: 141.0905376 | V32: 138.1994598 | W32: 138.7962291 | X32: 131.1107367 | Y32: 106.7330754 | Z32: 98.40378425 | AA32: 90.98385983 | AB32: 80.67334111 | AC32: 75.74694296 | AD32: 69.90919107 | AE32: 66.78115864 | AF32: 62.6607912
A33: LRKPCLGS | B33: 050219 | C33: 1 | D33: 2400 | E33: 60 | F33: 1 | G33: 1 | H33: KW | I33: 59.57473602 | J33: 56.91805395 | K33: 56.44763822 | L33: 57.64726995 | M33: 64.60239505 | N33: 77.8656963 | O33: 93.54348377 | P33: 114.3615526 | Q33: 125.1646901 | R33: 130.832691 | S33: 139.1035243 | T33: 140.1891156 | U33: 145.6753008 | V33: 147.2028626 | W33: 143.6047641 | X33: 133.9951361 | Y33: 116.161417 | Z33: 97.24026749 | AA33: 83.50097855 | AB33: 79.74220937 | AC33: 75.10268185 | AD33: 70.4095664 | AE33: 64.16929177 | AF33: 59.70564016
A34: LRKPCLGS | B34: 050319 | C34: 1 | D34: 2400 | E34: 60 | F34: 1 | G34: 1 | H34: KW | I34: 57.55579771 | J34: 54.7704339 | K34: 55.04088181 | L34: 55.67945918 | M34: 61.29462179 | N34: 72.70967599 | O34: 84.03937131 | P34: 96.98782907 | Q34: 111.4362288 | R34: 119.6829555 | S34: 122.3746282 | T34: 122.7418685 | U34: 118.3173061 | V34: 114.5976901 | W34: 111.738764 | X34: 106.0556525 | Y34: 92.08756363 | Z34: 80.08220138 | AA34: 74.54004583 | AB34: 71.30513607 | AC34: 67.13330374 | AD34: 65.32725187 | AE34: 61.78106533 | AF34: 59.01180872
A35: LRKPCLGS | B35: 050419 | C35: 1 | D35: 2400 | E35: 60 | F35: 1 | G35: 1 | H35: KW | I35: 56.46943023 | J35: 54.64566515 | K35: 54.30625675 | L35: 53.16123712 | M35: 57.28345465 | N35: 58.49414963 | O35: 63.14515268 | P35: 64.5961375 | Q35: 67.19409897 | R35: 67.75263938 | S35: 69.21446656 | T35: 70.02592669 | U35: 69.05953017 | V35: 69.90467874 | W35: 68.09849509 | X35: 69.14516283 | Y35: 68.75219451 | Z35: 64.72846624 | AA35: 62.83525551 | AB35: 61.24660208 | AC35: 61.02978077 | AD35: 59.35194981 | AE35: 57.65422369 | AF35: 56.43061579
A36: LRKPCLGS | B36: 050519 | C36: 1 | D36: 2400 | E36: 60 | F36: 1 | G36: 1 | H36: KW | I36: 54.59987 | J36: 53.15031425 | K36: 52.9471025 | L36: 52.11099588 | M36: 55.05854185 | N36: 56.82141022 | O36: 56.64269783 | P36: 57.50072631 | Q36: 59.47150228 | R36: 56.50107336 | S36: 60.51410026 | T36: 60.38012315 | U36: 60.89994985 | V36: 61.19225524 | W36: 61.4920343 | X36: 61.61382154 | Y36: 61.25456199 | Z36: 59.28816438 | AA36: 59.15609144 | AB36: 58.86697707 | AC36: 57.2387179 | AD36: 56.78587242 | AE36: 55.18307938 | AF36: 54.01427517
A37: LRKPCLGS | B37: 050619 | C37: 1 | D37: 2400 | E37: 60 | F37: 1 | G37: 1 | H37: KW | I37: 52.30910633 | J37: 51.00842522 | K37: 50.56031823 | L37: 51.96811494 | M37: 60.03631667 | N37: 68.34928503 | O37: 90.07604671 | P37: 105.5122181 | Q37: 120.630042 | R37: 119.4028887 | S37: 119.728597 | T37: 116.4830828 | U37: 122.0122311 | V37: 120.0197098 | W37: 117.0520971 | X37: 116.1806536 | Y37: 95.67648513 | Z37: 85.32792748 | AA37: 76.7924352 | AB37: 71.8046182 | AC37: 67.15814905 | AD37: 63.05573178 | AE37: 57.6381775 | AF37: 54.89977544
A38: LRKPCLGS | B38: 050719 | C38: 1 | D38: 2400 | E38: 60 | F38: 1 | G38: 1 | H38: KW | I38: 51.78770349 | J38: 51.63491653 | K38: 51.13000583 | L38: 51.57201067 | M38: 56.90006731 | N38: 67.91470555 | O38: 88.54377208 | P38: 106.838948 | Q38: 123.2607842 | R38: 126.4088915 | S38: 128.698804 | T38: 124.1602594 | U38: 128.7985224 | V38: 128.2922025 | W38: 129.0706939 | X38: 122.1415978 | Y38: 103.6053416 | Z38: 91.04798305 | AA38: 81.46904662 | AB38: 74.53727564 | AC38: 70.16754543 | AD38: 66.09217021 | AE38: 64.03575512 | AF38: 60.69273422
A39: LRKPCLGS | B39: 050819 | C39: 1 | D39: 2400 | E39: 60 | F39: 1 | G39: 1 | H39: KW | I39: 57.10050768 | J39: 54.50869754 | K39: 53.08206414 | L39: 54.08847733 | M39: 58.43478165 | N39: 72.47351213 | O39: 92.05132371 | P39: 105.4499655 | Q39: 123.8677807 | R39: 126.8473128 | S39: 131.2906711 | T39: 131.540277 | U39: 133.8533188 | V39: 135.2154645 | W39: 139.0510477 | X39: 133.194028 | Y39: 109.9353606 | Z39: 99.79759314 | AA39: 89.41995846 | AB39: 80.78830591 | AC39: 75.33594224 | AD39: 72.91516798 | AE39: 69.36792418 | AF39: 65.1950722
A40: LRKPCLGS | B40: 050919 | C40: 1 | D40: 2400 | E40: 60 | F40: 1 | G40: 1 | H40: KW | I40: 59.87242492 | J40: 56.70160162 | K40: 56.45566266 | L40: 57.75366887 | M40: 66.11194034 | N40: 78.01851993 | O40: 100.8469002 | P40: 112.597819 | Q40: 130.9715003 | R40: 135.9199855 | S40: 136.5166393 | T40: 139.2305825 | U40: 138.1403032 | V40: 137.6856463 | W40: 128.3415825 | X40: 122.8457944 | Y40: 102.508483 | Z40: 90.39468254 | AA40: 80.51107516 | AB40: 72.88030529 | AC40: 71.42899271 | AD40: 67.30130087 | AE40: 64.77403184 | AF40: 61.32768991
A41: LRKPCLGS | B41: 051019 | C41: 1 | D41: 2400 | E41: 60 | F41: 1 | G41: 1 | H41: KW | I41: 58.56652837 | J41: 57.35151793 | K41: 58.73081109 | L41: 59.04845341 | M41: 64.89711999 | N41: 73.98214843 | O41: 93.1247773 | P41: 107.1351054 | Q41: 120.4959353 | R41: 125.0518335 | S41: 128.4242121 | T41: 126.0826311 | U41: 128.2717372 | V41: 126.5216421 | W41: 124.0764525 | X41: 117.0347399 | Y41: 99.81725092 | Z41: 89.02488627 | AA41: 81.03108407 | AB41: 74.15564597 | AC41: 68.1067889 | AD41: 65.99568698 | AE41: 63.70681624 | AF41: 60.98111353
A42: LRKPCLGS | B42: 051119 | C42: 1 | D42: 2400 | E42: 60 | F42: 1 | G42: 1 | H42: KW | I42: 58.75488454 | J42: 57.33778658 | K42: 56.06897894 | L42: 55.71574941 | M42: 57.60909954 | N42: 60.11890996 | O42: 64.13693244 | P42: 62.39370372 | Q42: 65.69455902 | R42: 66.71121287 | S42: 68.56563018 | T42: 69.07288228 | U42: 70.49404238 | V42: 71.44062127 | W42: 68.14005629 | X42: 68.43756409 | Y42: 67.28082746 | Z42: 62.54768609 | AA42: 61.13768509 | AB42: 59.99322223 | AC42: 59.95587241 | AD42: 59.57161137 | AE42: 58.73718087 | AF42: 57.59289519
A43: LRKPCLGS | B43: 051219 | C43: 1 | D43: 2400 | E43: 60 | F43: 1 | G43: 1 | H43: KW | I43: 55.10945078 | J43: 55.19432988 | K43: 54.0898717 | L43: 53.99789819 | M43: 55.85877273 | N43: 58.08909108 | O43: 58.27311118 | P43: 60.65977967 | Q43: 62.62444173 | R43: 61.59826938 | S43: 64.61241903 | T43: 65.11019605 | U43: 63.74769182 | V43: 66.83187295 | W43: 64.42451666 | X43: 65.47528494 | Y43: 65.43764781 | Z43: 58.80282224 | AA43: 57.48188855 | AB43: 57.04748264 | AC43: 56.46687771 | AD43: 57.15670472 | AE43: 54.43585464 | AF43: 53.25184379
A44: LRKPCLGS | B44: 051319 | C44: 1 | D44: 2400 | E44: 60 | F44: 1 | G44: 1 | H44: KW | I44: 52.84018534 | J44: 52.08375893 | K44: 52.00211984 | L44: 52.23311936 | M44: 59.9942925 | N44: 72.84115915 | O44: 88.66208546 | P44: 103.3942684 | Q44: 120.4108405 | R44: 124.5485004 | S44: 121.494056 | T44: 122.2497438 | U44: 121.1105509 | V44: 119.6887301 | W44: 112.1567983 | X44: 108.269587 | Y44: 95.80686759 | Z44: 83.63100225 | AA44: 72.54958866 | AB44: 68.20528407 | AC44: 63.96401421 | AD44: 61.75125645 | AE44: 57.78532151 | AF44: 56.40594176
A45: LRKPCLGS | B45: 051419 | C45: 1 | D45: 2400 | E45: 60 | F45: 1 | G45: 1 | H45: KW | I45: 53.53714877 | J45: 52.24907414 | K45: 52.82425025 | L45: 53.60845402 | M45: 61.40187254 | N45: 75.6277064 | O45: 96.76294179 | P45: 109.2455491 | Q45: 115.8157565 | R45: 122.4827358 | S45: 118.4762532 | T45: 117.73937 | U45: 120.5482215 | V45: 121.2413538 | W45: 119.7576577 | X45: 113.0547024 | Y45: 95.47300136 | Z45: 86.18177416 | AA45: 73.11011836 | AB45: 69.11020054 | AC45: 63.98862012 | AD45: 60.66072399 | AE45: 58.37819334 | AF45: 53.9986095
A46: LRKPCLGS | B46: 051519 | C46: 1 | D46: 2400 | E46: 60 | F46: 1 | G46: 1 | H46: KW | I46: 51.69892767 | J46: 50.8050867 | K46: 50.56364319 | L46: 51.35062733 | M46: 58.07434444 | N46: 74.77647581 | O46: 95.93177414 | P46: 111.769501 | Q46: 124.1932595 | R46: 124.2492396 | S46: 125.7625984 | T46: 125.0053123 | U46: 123.5290643 | V46: 122.7711744 | W46: 119.4202494 | X46: 114.1118594 | Y46: 96.55004187 | Z46: 86.52669406 | AA46: 77.34471575 | AB46: 73.03985293 | AC46: 66.17119521 | AD46: 60.37394598 | AE46: 57.32703111 | AF46: 52.92354112
A47: LRKPCLGS | B47: 051619 | C47: 1 | D47: 2400 | E47: 60 | F47: 1 | G47: 1 | H47: KW | I47: 51.24847268 | J47: 49.64641893 | K47: 51.35290178 | L47: 53.07203444 | M47: 58.38607122 | N47: 73.7202854 | O47: 95.78240982 | P47: 107.3316331 | Q47: 118.7557205 | R47: 123.8719762 | S47: 124.6106012 | T47: 124.9643835 | U47: 126.3971275 | V47: 122.7112109 | W47: 119.2684447 | X47: 110.6055437 | Y47: 97.21000249 | Z47: 89.32116572 | AA47: 80.23774754 | AB47: 76.23443629 | AC47: 71.7142213 | AD47: 66.40650357 | AE47: 63.33629381 | AF47: 59.72086556
A48: LRKPCLGS | B48: 051719 | C48: 1 | D48: 2400 | E48: 60 | F48: 1 | G48: 1 | H48: KW | I48: 53.68338131 | J48: 52.30254701 | K48: 52.45795775 | L48: 54.69074376 | M48: 59.54263979 | N48: 71.37721204 | O48: 87.83730839 | P48: 100.837948 | Q48: 111.4650285 | R48: 114.1810094 | S48: 120.8801188 | T48: 126.0748895 | U48: 124.3276221 | V48: 126.8136524 | W48: 121.2576909 | X48: 113.026726 | Y48: 102.6974268 | Z48: 96.42995342 | AA48: 87.27707 | AB48: 80.24452636 | AC48: 73.94027604 | AD48: 70.53997768 | AE48: 66.06632826 | AF48: 63.11682806
A49: LRKPCLGS | B49: 051819 | C49: 1 | D49: 2400 | E49: 60 | F49: 1 | G49: 1 | H49: KW | I49: 59.37196333 | J49: 57.59463557 | K49: 54.83590544 | L49: 55.08304915 | M49: 57.10000114 | N49: 59.85332938 | O49: 62.10301138 | P49: 66.41259107 | Q49: 70.26804687 | R49: 74.62016082 | S49: 80.17004405 | T49: 81.83932581 | U49: 81.59040429 | V49: 81.70723845 | W49: 85.32340658 | X49: 85.16540175 | Y49: 85.06281018 | Z49: 82.56420607 | AA49: 79.99994428 | AB49: 75.49924653 | AC49: 72.04343167 | AD49: 68.3011368 | AE49: 66.01645774 | AF49: 62.7293948
A50: LRKPCLGS | B50: 051919 | C50: 1 | D50: 2400 | E50: 60 | F50: 1 | G50: 1 | H50: KW | I50: 59.43912065 | J50: 58.44001309 | K50: 56.19823629 | L50: 55.33100977 | M50: 57.42406255 | N50: 58.53072454 | O50: 58.521781 | P50: 58.71905736 | Q50: 66.18242544 | R50: 69.12809466 | S50: 76.91932864 | T50: 79.47465016 | U50: 79.29945573 | V50: 80.94670118 | W50: 83.82385966 | X50: 82.90168437 | Y50: 84.24092078 | Z50: 81.57969696 | AA50: 76.87159979 | AB50: 72.02718152 | AC50: 68.78442038 | AD50: 67.86822525 | AE50: 64.80453501 | AF50: 63.48591938
A51: LRKPCLGS | B51: 052019 | C51: 1 | D51: 2400 | E51: 60 | F51: 1 | G51: 1 | H51: KW | I51: 61.70712015 | J51: 60.29837785 | K51: 62.39740615 | L51: 62.62667815 | M51: 69.44844689 | N51: 82.07438666 | O51: 98.06490656 | P51: 109.5757259 | Q51: 127.2000837 | R51: 134.1573372 | S51: 135.7943253 | T51: 135.2647818 | U51: 135.3450202 | V51: 138.1260382 | W51: 133.602383 | X51: 125.6641652 | Y51: 114.059946 | Z51: 105.9765451 | AA51: 89.72103742 | AB51: 83.01341824 | AC51: 75.69836658 | AD51: 69.18983514 | AE51: 64.01903688 | AF51: 61.74105947
A52: LRKPCLGS | B52: 052119 | C52: 1 | D52: 2400 | E52: 60 | F52: 1 | G52: 1 | H52: KW | I52: 58.31707666 | J52: 55.4181469 | K52: 54.97864176 | L52: 55.60881334 | M52: 61.3243575 | N52: 72.2418866 | O52: 83.25676876 | P52: 95.05853583 | Q52: 107.936373 | R52: 115.4196312 | S52: 116.2020627 | T52: 113.563596 | U52: 115.7343011 | V52: 118.3197599 | W52: 114.8335848 | X52: 112.7174799 | Y52: 100.1570805 | Z52: 90.72804915 | AA52: 83.88073876 | AB52: 74.60944209 | AC52: 67.81151658 | AD52: 66.70748736 | AE52: 63.29141336 | AF52: 59.9147834
A53: LRKPCLGS | B53: 052219 | C53: 1 | D53: 2400 | E53: 60 | F53: 1 | G53: 1 | H53: KW | I53: 56.6331983 | J53: 54.65010747 | K53: 53.91379619 | L53: 55.27026872 | M53: 58.23578974 | N53: 74.45941068 | O53: 94.10067631 | P53: 109.7374201 | Q53: 123.592719 | R53: 129.1950784 | S53: 137.5724257 | T53: 142.1934052 | U53: 140.7967931 | V53: 144.4504728 | W53: 137.9912261 | X53: 132.9779225 | Y53: 114.2946796 | Z53: 104.2597644 | AA53: 91.07278656 | AB53: 84.7407108 | AC53: 75.59468416 | AD53: 70.70099256 | AE53: 68.98070664 | AF53: 64.54768837
A54: LRKPCLGS | B54: 052319 | C54: 1 | D54: 2400 | E54: 60 | F54: 1 | G54: 1 | H54: KW | I54: 60.60553391 | J54: 57.19420124 | K54: 57.29142193 | L54: 59.19773407 | M54: 65.38722764 | N54: 80.30183389 | O54: 99.69094257 | P54: 112.9097272 | Q54: 126.5736218 | R54: 132.2858837 | S54: 138.8516264 | T54: 134.2158036 | U54: 133.6401017 | V54: 133.0738565 | W54: 138.4955053 | X54: 132.5918341 | Y54: 115.2583543 | Z54: 108.4868241 | AA54: 95.87749827 | AB54: 88.27106587 | AC54: 78.23776132 | AD54: 74.05813677 | AE54: 71.68976715 | AF54: 67.33593509
A55: LRKPCLGS | B55: 052419 | C55: 1 | D55: 2400 | E55: 60 | F55: 1 | G55: 1 | H55: KW | I55: 64.92022879 | J55: 61.1000699 | K55: 60.62225636 | L55: 59.95089119 | M55: 65.59126944 | N55: 74.93160258 | O55: 87.6458038 | P55: 103.1669459 | Q55: 113.9841241 | R55: 122.0791372 | S55: 127.9511884 | T55: 129.3449579 | U55: 134.4870199 | V55: 130.7353483 | W55: 127.0933778 | X55: 122.6257816 | Y55: 105.5727939 | Z55: 102.2026969 | AA55: 94.80101954 | AB55: 90.51782029 | AC55: 79.45345243 | AD55: 74.59455486 | AE55: 70.9839196 | AF55: 68.31149838
A56: LRKPCLGS | B56: 052519 | C56: 1 | D56: 2400 | E56: 60 | F56: 1 | G56: 1 | H56: KW | I56: 63.00992486 | J56: 60.22545141 | K56: 59.41235321 | L56: 58.71966271 | M56: 61.73986516 | N56: 64.97253582 | O56: 66.63376201 | P56: 68.64274146 | Q56: 71.15202919 | R56: 75.31444694 | S56: 80.27702472 | T56: 81.25292291 | U56: 83.03420514 | V56: 83.90344068 | W56: 83.45892476 | X56: 83.63959323 | Y56: 78.75141561 | Z56: 77.13056251 | AA56: 77.20835457 | AB56: 74.70291051 | AC56: 71.99462409 | AD56: 68.75881 | AE56: 66.70537522 | AF56: 62.44289598
A57: LRKPCLGS | B57: 052619 | C57: 1 | D57: 2400 | E57: 60 | F57: 1 | G57: 1 | H57: KW | I57: 59.85992057 | J57: 57.66892776 | K57: 55.7658685 | L57: 57.34229939 | M57: 59.24187287 | N57: 58.40543547 | O57: 59.70909568 | P57: 59.6719567 | Q57: 63.10909531 | R57: 66.92180965 | S57: 72.63369932 | T57: 76.8784115 | U57: 78.67147237 | V57: 78.02521091 | W57: 80.58734262 | X57: 81.42548833 | Y57: 80.56188056 | Z57: 79.49546845 | AA57: 75.12665617 | AB57: 72.54802543 | AC57: 70.89619376 | AD57: 65.4008319 | AE57: 63.13473123 | AF57: 61.17783388
A58: LRKPCLGS | B58: 052719 | C58: 1 | D58: 2400 | E58: 60 | F58: 1 | G58: 1 | H58: KW | I58: 58.26979474 | J58: 56.75257674 | K58: 57.20402064 | L58: 60.14052638 | M58: 64.44226261 | N58: 67.66369703 | O58: 69.73788901 | P58: 70.61219718 | Q58: 74.37062989 | R58: 77.6581679 | S58: 80.87167342 | T58: 82.85778756 | U58: 83.41496349 | V58: 85.52291451 | W58: 87.09086496 | X58: 86.39396991 | Y58: 83.95046482 | Z58: 78.32194609 | AA58: 74.6468325 | AB58: 72.38049397 | AC58: 68.34543043 | AD58: 65.52352153 | AE58: 63.06993694 | AF58: 60.00849428
A59: LRKPCLGS | B59: 052819 | C59: 1 | D59: 2400 | E59: 60 | F59: 1 | G59: 1 | H59: KW | I59: 58.16590546 | J59: 57.8211874 | K59: 58.14506761 | L59: 59.71849347 | M59: 66.46673699 | N59: 75.40804788 | O59: 90.89221537 | P59: 106.1570897 | Q59: 129.6957518 | R59: 129.5456864 | S59: 131.1635836 | T59: 137.6985224 | U59: 141.2057624 | V59: 142.1515345 | W59: 136.0418403 | X59: 132.5672793 | Y59: 117.1718887 | Z59: 111.1334837 | AA59: 100.4436642 | AB59: 94.72830772 | AC59: 83.21002937 | AD59: 78.06058425 | AE59: 74.45846756 | AF59: 68.89400087
A60: LRKPCLGS | B60: 052919 | C60: 1 | D60: 2400 | E60: 60 | F60: 1 | G60: 1 | H60: KW | I60: 62.76514482 | J60: 59.56348135 | K60: 59.39009456 | L60: 60.78523948 | M60: 68.05034627 | N60: 80.24432179 | O60: 100.322798 | P60: 111.7837762 | Q60: 121.9620036 | R60: 129.8502456 | S60: 136.5870777 | T60: 133.1154496 | U60: 136.1956765 | V60: 127.3559203 | W60: 122.5904672 | X60: 109.0746137 | Y60: 95.40745369 | Z60: 92.54889764 | AA60: 88.0740207 | AB60: 80.78642643 | AC60: 70.45000945 | AD60: 69.06426715 | AE60: 65.81296314 | AF60: 63.81361442
A61: LRKPCLGS | B61: 053019 | C61: 1 | D61: 2400 | E61: 60 | F61: 1 | G61: 1 | H61: KW | I61: 60.21985846 | J61: 58.50636737 | K61: 57.96136549 | L61: 59.25300078 | M61: 62.5583593 | N61: 74.48567361 | O61: 91.12397012 | P61: 98.68409694 | Q61: 107.7514553 | R61: 114.2608242 | S61: 121.5907439 | T61: 122.0673907 | U61: 123.4502057 | V61: 122.2446735 | W61: 118.5977669 | X61: 111.6164264 | Y61: 91.17553329 | Z61: 86.38549691 | AA61: 77.81415031 | AB61: 75.85085072 | AC61: 71.02008829 | AD61: 68.60581337 | AE61: 63.97928134 | AF61: 60.55021999
A62: LRKPCLGS | B62: 053119 | C62: 1 | D62: 2400 | E62: 60 | F62: 1 | G62: 1 | H62: KW | I62: 58.05165245 | J62: 55.20007634 | K62: 55.26398606 | L62: 54.64602169 | M62: 61.28087258 | N62: 72.12915161 | O62: 82.79475867 | P62: 99.95470909 | Q62: 109.4663008 | R62: 116.863879 | S62: 119.6188957 | T62: 115.2844246 | U62: 116.0346173 | V62: 112.2230129 | W62: 103.2741359 | X62: 97.98496808 | Y62: 87.3722206 | Z62: 80.41724679 | AA62: 75.82384952 | AB62: 72.47705729 | AC62: 66.79199657 | AD62: 64.12569361 | AE62: 61.61747148 | AF62: 58.11530613
A63: LRKPCLGS | B63: 060119 | C63: 1 | D63: 2400 | E63: 60 | F63: 1 | G63: 1 | H63: KW | I63: 55.87716522 | J63: 53.91866428 | K63: 52.70882367 | L63: 52.44652823 | M63: 56.20730911 | N63: 59.81356854 | O63: 63.93036289 | P63: 65.48637646 | Q63: 65.32624822 | R63: 66.32096285 | S63: 68.78533279 | T63: 72.47659974 | U63: 72.62154869 | V63: 74.25858761 | W63: 73.22453571 | X63: 74.08761242 | Y63: 75.02410518 | Z63: 71.13812341 | AA63: 69.39152542 | AB63: 66.32450871 | AC63: 63.77985179 | AD63: 61.76361745 | AE63: 60.32982286 | AF63: 57.0962904
A64: LRKPCLGS | B64: 060219 | C64: 1 | D64: 2400 | E64: 60 | F64: 1 | G64: 1 | H64: KW | I64: 55.03975678 | J64: 54.25570458 | K64: 52.61667462 | L64: 53.68593623 | M64: 56.04612603 | N64: 56.94867067 | O64: 56.37827322 | P64: 56.30240791 | Q64: 58.03189775 | R64: 61.0659167 | S64: 65.76133523 | T64: 69.93944949 | U64: 70.87425989 | V64: 72.83080055 | W64: 73.36258883 | X64: 74.01221407 | Y64: 70.08327355 | Z64: 70.34827709 | AA64: 68.84841972 | AB64: 65.94446136 | AC64: 63.08229538 | AD64: 61.32909726 | AE64: 60.12864853 | AF64: 56.8822542
A65: LRKPCLGS | B65: 060319 | C65: 1 | D65: 2400 | E65: 60 | F65: 1 | G65: 1 | H65: KW | I65: 54.94680124 | J65: 55.08590145 | K65: 53.88653393 | L65: 56.72155897 | M65: 62.71030825 | N65: 66.20522363 | O65: 82.10788891 | P65: 94.81138084 | Q65: 103.2714909 | R65: 109.459406 | S65: 110.6051997 | T65: 107.5671765 | U65: 106.9502008 | V65: 114.9376056 | W65: 110.5535893 | X65: 107.9629447 | Y65: 91.21271186 | Z65: 87.73266198 | AA65: 77.00748182 | AB65: 69.69416399 | AC65: 64.7003552 | AD65: 62.82056493 | AE65: 60.48199175 | AF65: 57.57470336
A66: LRKPCLGS | B66: 060419 | C66: 1 | D66: 2400 | E66: 60 | F66: 1 | G66: 1 | H66: KW | I66: 54.5493471 | J66: 51.82479739 | K66: 51.85538723 | L66: 51.74428064 | M66: 58.83782349 | N66: 65.70278407 | O66: 81.1486769 | P66: 89.77718391 | Q66: 98.22775972 | R66: 103.6571001 | S66: 109.0818446 | T66: 110.0364102 | U66: 110.6368276 | V66: 116.6794579 | W66: 115.5298022 | X66: 108.9148817 | Y66: 95.23258646 | Z66: 89.30881161 | AA66: 80.99998209 | AB66: 77.06805774 | AC66: 71.56012286 | AD66: 67.06350268 | AE66: 64.11750569 | AF66: 59.62064943
A67: LRKPCLGS | B67: 060519 | C67: 1 | D67: 2400 | E67: 60 | F67: 1 | G67: 1 | H67: KW | I67: 57.00072622 | J67: 55.73688412 | K67: 55.10584001 | L67: 57.23767788 | M67: 63.01660414 | N67: 74.81320744 | O67: 87.07635567 | P67: 93.91195939 | Q67: 100.5574046 | R67: 106.2258585 | S67: 106.1447377 | T67: 101.26489 | U67: 106.0993426 | V67: 106.6472588 | W67: 108.2418883 | X67: 104.3508187 | Y67: 95.83441284 | Z67: 92.49006561 | AA67: 84.41961454 | AB67: 77.4283917 | AC67: 73.72663807 | AD67: 71.37559394 | AE67: 69.11958401 | AF67: 63.69494616
A68: LRKPCLGS | B68: 060619 | C68: 1 | D68: 2400 | E68: 60 | F68: 1 | G68: 1 | H68: KW | I68: 58.75218981 | J68: 57.82390337 | K68: 57.15836884 | L68: 58.64954268 | M68: 64.76519846 | N68: 75.85434176 | O68: 88.45419565 | P68: 101.0927476 | Q68: 110.0989424 | R68: 117.7258926 | S68: 124.0485049 | T68: 120.4434674 | U68: 125.863819 | V68: 127.2474352 | W68: 124.4758973 | X68: 118.3856283 | Y68: 100.3820198 | Z68: 96.75414836 | AA68: 83.4353554 | AB68: 78.23476114 | AC68: 71.62749694 | AD68: 70.11996334 | AE68: 70.06960613 | AF68: 67.04724995
A69: LRKPCLGS | B69: 060719 | C69: 1 | D69: 2400 | E69: 60 | F69: 1 | G69: 1 | H69: KW | I69: 62.14219629 | J69: 59.74174835 | K69: 58.91199828 | L69: 60.44919739 | M69: 66.54246383 | N69: 72.48245636 | O69: 79.85450111 | P69: 91.5179221 | Q69: 95.83886602 | R69: 99.01616114 | S69: 103.3553379 | T69: 103.3568323 | U69: 101.9246176 | V69: 98.8549678 | W69: 102.5287967 | X69: 99.18664261 | Y69: 87.83238935 | Z69: 81.50551071 | AA69: 76.25228234 | AB69: 72.39968371 | AC69: 68.16573033 | AD69: 66.80612501 | AE69: 64.0811952 | AF69: 60.27130007
A70: LRKPCLGS | B70: 060819 | C70: 1 | D70: 2400 | E70: 60 | F70: 1 | G70: 1 | H70: KW | I70: 57.32160041 | J70: 56.86692252 | K70: 55.52330175 | L70: 55.76578761 | M70: 58.91451164 | N70: 63.17908964 | O70: 68.6236559 | P70: 69.32610574 | Q70: 69.58660984 | R70: 71.43836254 | S70: 74.11457762 | T70: 77.23483069 | U70: 76.47036475 | V70: 80.83932596 | W70: 82.40203604 | X70: 80.23712887 | Y70: 80.54711535 | Z70: 76.15814454 | AA70: 72.07569699 | AB70: 70.48066178 | AC70: 66.88068862 | AD70: 63.98555546 | AE70: 63.04049466 | AF70: 58.78051056
A71: LRKPCLGS | B71: 060919 | C71: 1 | D71: 2400 | E71: 60 | F71: 1 | G71: 1 | H71: KW | I71: 56.3781947 | J71: 54.78690373 | K71: 54.57018312 | L71: 54.50979223 | M71: 58.44476714 | N71: 57.52114797 | O71: 58.19826634 | P71: 58.54748866 | Q71: 59.30313752 | R71: 60.42558653 | S71: 64.03398216 | T71: 65.64865063 | U71: 64.83947416 | V71: 70.73786641 | W71: 74.26794008 | X71: 74.48617787 | Y71: 73.9919788 | Z71: 71.32026144 | AA71: 70.08258925 | AB71: 67.58747799 | AC71: 66.39313517 | AD71: 64.92004889 | AE71: 61.90396721 | AF71: 58.85733419
A72: LRKPCLGS | B72: 061019 | C72: 1 | D72: 2400 | E72: 60 | F72: 1 | G72: 1 | H72: KW | I72: 57.55267199 | J72: 56.83042768 | K72: 56.63697361 | L72: 59.74542676 | M72: 64.35948146 | N72: 74.887403 | O72: 90.75900355 | P72: 99.1027331 | Q72: 106.1690994 | R72: 109.0602888 | S72: 110.6384612 | T72: 114.1904417 | U72: 117.5219319 | V72: 116.6660652 | W72: 113.0062076 | X72: 111.057042 | Y72: 98.50017878 | Z72: 94.90408924 | AA72: 83.09607036 | AB72: 78.15647451 | AC72: 71.7574438 | AD72: 67.42127987 | AE72: 62.6115247 | AF72: 59.17124605
A73: LRKPCLGS | B73: 061119 | C73: 1 | D73: 2400 | E73: 60 | F73: 1 | G73: 1 | H73: KW | I73: 54.69056588 | J73: 53.3617001 | K73: 53.18645555 | L73: 53.55754694 | M73: 59.96578798 | N73: 68.45733629 | O73: 86.37719276 | P73: 95.70216699 | Q73: 102.2456513 | R73: 106.7622251 | S73: 110.1554227 | T73: 105.5501056 | U73: 110.8186997 | V73: 115.2084851 | W73: 114.1403749 | X73: 110.7393326 | Y73: 99.51765887 | Z73: 89.90919775 | AA73: 81.73071804 | AB73: 73.8065469 | AC73: 70.76812089 | AD73: 67.76811638 | AE73: 65.79031082 | AF73: 59.99550323
A74: LRKPCLGS | B74: 061219 | C74: 1 | D74: 2400 | E74: 60 | F74: 1 | G74: 1 | H74: KW | I74: 56.82160147 | J74: 52.99220296 | K74: 53.75003453 | L74: 52.91899746 | M74: 60.13770996 | N74: 65.06030064 | O74: 83.39419178 | P74: 96.17059654 | Q74: 102.0312452 | R74: 105.0595614 | S74: 105.315936 | T74: 106.4743962 | U74: 106.4625901 | V74: 107.978946 | W74: 111.5567756 | X74: 103.0374281 | Y74: 89.80704691 | Z74: 85.33657966 | AA74: 79.34083327 | AB74: 72.64955964 | AC74: 68.01953636 | AD74: 66.57037321 | AE74: 63.54062116 | AF74: 59.08372975
A75: LRKPCLGS | B75: 061319 | C75: 1 | D75: 2400 | E75: 60 | F75: 1 | G75: 1 | H75: KW | I75: 54.17429762 | J75: 52.61281283 | K75: 50.96797517 | L75: 51.58358949 | M75: 56.49306362 | N75: 66.33946322 | O75: 82.68282406 | P75: 89.2530902 | Q75: 97.98270185 | R75: 103.3293786 | S75: 102.5377724 | T75: 99.54656653 | U75: 103.5205766 | V75: 106.2886443 | W75: 102.0803455 | X75: 102.4233951 | Y75: 86.70168012 | Z75: 79.61519991 | AA75: 74.39850224 | AB75: 68.06402432 | AC75: 62.4519769 | AD75: 64.43570807 | AE75: 60.92332845 | AF75: 56.87896662
A76: LRKPCLGS | B76: 061419 | C76: 1 | D76: 2400 | E76: 60 | F76: 1 | G76: 1 | H76: KW | I76: 51.96876115 | J76: 52.51600125 | K76: 49.72136912 | L76: 51.58560281 | M76: 53.75402066 | N76: 62.05819046 | O76: 70.88331752 | P76: 83.81421745 | Q76: 88.10861183 | R76: 94.05215439 | S76: 97.48671606 | T76: 94.28749001 | U76: 100.2822171 | V76: 103.6674658 | W76: 102.047588 | X76: 97.3372589 | Y76: 91.45700133 | Z76: 82.81000805 | AA76: 77.12384672 | AB76: 72.11047847 | AC76: 65.81093508 | AD76: 67.05145 | AE76: 61.95455739 | AF76: 58.87111074
A77: LRKPCLGS | B77: 061519 | C77: 1 | D77: 2400 | E77: 60 | F77: 1 | G77: 1 | H77: KW | I77: 55.38409338 | J77: 51.97118521 | K77: 51.7288784 | L77: 51.01621869 | M77: 52.59937858 | N77: 57.16904916 | O77: 62.08802621 | P77: 66.18755935 | Q77: 64.4833116 | R77: 67.82406997 | S77: 70.48685573 | T77: 76.24133474 | U77: 73.97591356 | V77: 79.44335394 | W77: 77.5964236 | X77: 76.63432365 | Y77: 75.32929176 | Z77: 71.77893771 | AA77: 70.63829625 | AB77: 68.65439826 | AC77: 66.711773 | AD77: 64.59111208 | AE77: 60.75270505 | AF77: 57.54646245
A78: LRKPCLGS | B78: 061619 | C78: 1 | D78: 2400 | E78: 60 | F78: 1 | G78: 1 | H78: KW | I78: 55.6928155 | J78: 54.43124125 | K78: 54.55998331 | L78: 54.75203827 | M78: 58.31265319 | N78: 58.01750226 | O78: 57.67679464 | P78: 60.11905815 | Q78: 61.5441787 | R78: 64.69608594 | S78: 66.70199061 | T78: 66.95159185 | U78: 71.12428483 | V78: 70.55934337 | W78: 71.71506689 | X78: 74.61023243 | Y78: 75.13751507 | Z78: 79.01154853 | AA78: 73.89176085 | AB78: 71.14571499 | AC78: 67.39366653 | AD78: 64.31886275 | AE78: 62.78868076 | AF78: 59.23876231
A79: LRKPCLGS | B79: 061719 | C79: 1 | D79: 2400 | E79: 60 | F79: 1 | G79: 1 | H79: KW | I79: 57.64274985 | J79: 55.20459085 | K79: 55.52610993 | L79: 57.95815471 | M79: 63.37146581 | N79: 71.70305765 | O79: 85.4836453 | P79: 94.10729912 | Q79: 101.0619323 | R79: 104.7575201 | S79: 106.84501 | T79: 107.4026329 | U79: 112.8139723 | V79: 115.0760204 | W79: 115.561579 | X79: 114.9897431 | Y79: 100.6122827 | Z79: 96.10443103 | AA79: 87.01091469 | AB79: 77.46475969 | AC79: 70.69480019 | AD79: 68.6450383 | AE79: 64.82400834 | AF79: 61.28751693
A80: LRKPCLGS | B80: 061819 | C80: 1 | D80: 2400 | E80: 60 | F80: 1 | G80: 1 | H80: KW | I80: 58.04974779 | J80: 56.98083968 | K80: 55.76120637 | L80: 57.62993324 | M80: 62.63748076 | N80: 70.43863815 | O80: 83.73281054 | P80: 94.46693787 | Q80: 100.6222618 | R80: 106.2848722 | S80: 110.5229358 | T80: 106.6702487 | U80: 114.2435562 | V80: 115.2119334 | W80: 113.3169623 | X80: 109.6325994 | Y80: 96.54020243 | Z80: 86.26523364 | AA80: 79.98486114 | AB80: 78.38491155 | AC80: 74.1225012 | AD80: 72.39049802 | AE80: 70.35495556 | AF80: 66.67514995
A81: LRKPCLGS | B81: 061919 | C81: 1 | D81: 2400 | E81: 60 | F81: 1 | G81: 1 | H81: KW | I81: 61.37985857 | J81: 58.79928929 | K81: 58.2779767 | L81: 57.67845361 | M81: 63.52097483 | N81: 72.55912519 | O81: 93.2292411 | P81: 103.8670392 | Q81: 106.7615501 | R81: 110.8211739 | S81: 114.574692 | T81: 116.4870568 | U81: 120.5803391 | V81: 123.2922758 | W81: 119.0037798 | X81: 118.5991193 | Y81: 100.7902026 | Z81: 97.32575992 | AA81: 90.48281811 | AB81: 86.02607003 | AC81: 74.65229656 | AD81: 72.3269204 | AE81: 68.92165041 | AF81: 65.70055359
A82: LRKPCLGS | B82: 062019 | C82: 1 | D82: 2400 | E82: 60 | F82: 1 | G82: 1 | H82: KW | I82: 61.00834618 | J82: 58.3360754 | K82: 55.25030521 | L82: 56.73565913 | M82: 63.15745181 | N82: 71.75145478 | O82: 91.60723852 | P82: 106.0328293 | Q82: 108.1788247 | R82: 107.1751033 | S82: 109.0181336 | T82: 106.2184809 | U82: 109.5933327 | V82: 110.5445378 | W82: 110.7837218 | X82: 108.0253595 | Y82: 91.08027635 | Z82: 86.82803965 | AA82: 79.31937814 | AB82: 74.24035401 | AC82: 68.61906014 | AD82: 66.30964276 | AE82: 65.58824117 | AF82: 62.94491656
A83: LRKPCLGS | B83: 062119 | C83: 1 | D83: 2400 | E83: 60 | F83: 1 | G83: 1 | H83: KW | I83: 55.51355416 | J83: 53.31805797 | K83: 52.84860849 | L83: 53.4773604 | M83: 60.00992394 | N83: 67.15147275 | O83: 82.75133965 | P83: 95.65228618 | Q83: 100.820259 | R83: 103.9237664 | S83: 108.4711084 | T83: 107.765666 | U83: 112.2030183 | V83: 111.1972152 | W83: 107.9943989 | X83: 107.8621249 | Y83: 99.18346702 | Z83: 91.55075186 | AA83: 83.36688812 | AB83: 75.95317049 | AC83: 70.06933682 | AD83: 67.947744 | AE83: 65.26236307 | AF83: 61.83690111
A84: LRKPCLGS | B84: 062219 | C84: 1 | D84: 2400 | E84: 60 | F84: 1 | G84: 1 | H84: KW | I84: 58.68826399 | J84: 57.39619304 | K84: 55.3005104 | L84: 54.85133444 | M84: 58.18520962 | N84: 57.33985142 | O84: 61.98903175 | P84: 62.97682303 | Q84: 64.4119456 | R84: 67.99069207 | S84: 68.96346408 | T84: 71.94907565 | U84: 72.89656692 | V84: 71.42369926 | W84: 72.95214945 | X84: 73.4089485 | Y84: 74.28187032 | Z84: 72.8415039 | AA84: 69.9988842 | AB84: 67.95236374 | AC84: 65.11361988 | AD84: 63.80415426 | AE84: 60.49588687 | AF84: 58.40313682
A85: LRKPCLGS | B85: 062319 | C85: 1 | D85: 2400 | E85: 60 | F85: 1 | G85: 1 | H85: KW | I85: 54.71940696 | J85: 54.90824007 | K85: 53.6748709 | L85: 52.62012345 | M85: 54.54167036 | N85: 53.89670494 | O85: 53.75071317 | P85: 55.51565177 | Q85: 58.35835496 | R85: 60.12693545 | S85: 66.97707529 | T85: 69.13860702 | U85: 70.79288183 | V85: 74.91417962 | W85: 77.01007592 | X85: 77.23709978 | Y85: 78.68302629 | Z85: 78.77245005 | AA85: 77.35878953 | AB85: 74.3853251 | AC85: 68.88308719 | AD85: 65.70517212 | AE85: 63.1791907 | AF85: 60.44040562
A86: LRKPCLGS | B86: 062419 | C86: 1 | D86: 2400 | E86: 60 | F86: 1 | G86: 1 | H86: KW | I86: 58.15649902 | J86: 55.91244919 | K86: 55.38657516 | L86: 58.6286849 | M86: 61.97314317 | N86: 71.5553721 | O86: 90.75254526 | P86: 103.2446791 | Q86: 105.7494529 | R86: 110.7367255 | S86: 122.7491537 | T86: 121.9647039 | U86: 126.2132503 | V86: 127.3316339 | W86: 125.0570035 | X86: 118.6354171 | Y86: 98.72131323 | Z86: 94.61742804 | AA86: 84.92295802 | AB86: 79.5813307 | AC86: 73.79047051 | AD86: 71.76450435 | AE86: 70.84723721 | AF86: 67.13524333
A87: LRKPCLGS | B87: 062519 | C87: 1 | D87: 2400 | E87: 60 | F87: 1 | G87: 1 | H87: KW | I87: 64.73926333 | J87: 61.87508949 | K87: 60.78453227 | L87: 59.7568981 | M87: 66.69371023 | N87: 74.22801644 | O87: 90.34643378 | P87: 98.87419624 | Q87: 99.81741428 | R87: 105.5748527 | S87: 113.4418712 | T87: 114.2250828 | U87: 118.6274299 | V87: 121.1067946 | W87: 118.6750073 | X87: 120.2368746 | Y87: 105.7477611 | Z87: 97.27748646 | AA87: 89.53445993 | AB87: 85.0142276 | AC87: 74.8844937 | AD87: 70.7987521 | AE87: 69.75915759 | AF87: 66.94721629
A88: LRKPCLGS | B88: 062619 | C88: 1 | D88: 2400 | E88: 60 | F88: 1 | G88: 1 | H88: KW | I88: 63.6545363 | J88: 61.69110902 | K88: 60.12496058 | L88: 59.10684559 | M88: 64.61068934 | N88: 71.06505061 | O88: 88.45328662 | P88: 100.6489948 | Q88: 105.6928948 | R88: 109.7150416 | S88: 115.9770104 | T88: 117.2760487 | U88: 119.1774894 | V88: 121.9956014 | W88: 125.0489889 | X88: 118.650572 | Y88: 108.7460339 | Z88: 106.7868537 | AA88: 95.2166385 | AB88: 90.03884771 | AC88: 82.27427989 | AD88: 75.3040607 | AE88: 72.25177884 | AF88: 66.94550142
A89: LRKPCLGS | B89: 062719 | C89: 1 | D89: 2400 | E89: 60 | F89: 1 | G89: 1 | H89: KW | I89: 64.20044637 | J89: 61.62318894 | K89: 59.05538221 | L89: 59.35356166 | M89: 63.74586089 | N89: 76.60688707 | O89: 99.9013953 | P89: 109.9638785 | Q89: 115.0983989 | R89: 119.416021 | S89: 124.1911327 | T89: 125.8355461 | U89: 126.1444643 | V89: 132.2933808 | W89: 132.5283555 | X89: 129.7257568 | Y89: 120.3573014 | Z89: 105.5855754 | AA89: 94.39292648 | AB89: 91.85112586 | AC89: 84.6696422 | AD89: 80.7187794 | AE89: 75.45176593 | AF89: 68.33417693
A90: LRKPCLGS | B90: 062819 | C90: 1 | D90: 2400 | E90: 60 | F90: 1 | G90: 1 | H90: KW | I90: 63.83631709 | J90: 60.50891813 | K90: 59.2443712 | L90: 59.80665298 | M90: 65.46686445 | N90: 74.21398539 | O90: 95.62987568 | P90: 100.6936288 | Q90: 106.7475621 | R90: 112.4581139 | S90: 119.7988504 | T90: 124.6387383 | U90: 123.4143202 | V90: 126.2383316 | W90: 129.4828212 | X90: 127.7769458 | Y90: 113.3729221 | Z90: 104.6031625 | AA90: 94.74485606 | AB90: 87.5383402 | AC90: 82.39846311 | AD90: 78.72993626 | AE90: 76.71188809 | AF90: 71.79242546
A91: LRKPCLGS | B91: 062919 | C91: 1 | D91: 2400 | E91: 60 | F91: 1 | G91: 1 | H91: KW | I91: 64.45189994 | J91: 60.66450064 | K91: 57.96903972 | L91: 58.40372402 | M91: 60.46991554 | N91: 63.36204027 | O91: 76.95336234 | P91: 77.4859675 | Q91: 79.03555926 | R91: 85.47455688 | S91: 87.47115107 | T91: 89.29482435 | U91: 86.54869272 | V91: 85.93080358 | W91: 86.06714317 | X91: 84.19526163 | Y91: 83.58882407 | Z91: 82.75349118 | AA91: 81.83233499 | AB91: 77.38768749 | AC91: 73.26716089 | AD91: 71.53240933 | AE91: 67.46849318 | AF91: 63.72277223
A92: LRKPCLGS | B92: 063019 | C92: 1 | D92: 2400 | E92: 60 | F92: 1 | G92: 1 | H92: KW | I92: 62.0333315 | J92: 59.39536954 | K92: 58.06302124 | L92: 57.72222136 | M92: 61.04490593 | N92: 61.32769523 | O92: 60.90102971 | P92: 64.56047049 | Q92: 64.82040467 | R92: 70.98265007 | S92: 77.75428504 | T92: 80.02566508 | U92: 80.10668702 | V92: 80.54403648 | W92: 80.87455238 | X92: 82.06339152 | Y92: 81.00262108 | Z92: 78.66073744 | AA92: 75.80253448 | AB92: 72.01871475 | AC92: 67.70875874 | AD92: 66.28626791 | AE92: 62.93242079 | AF92: 61.01434674
A93: LRKPCLGS | B93: 070119 | C93: 1 | D93: 2400 | E93: 60 | F93: 1 | G93: 1 | H93: KW | I93: 57.44089759 | J93: 59.14623817 | K93: 57.14693078 | L93: 61.73867728 | M93: 64.19926925 | N93: 72.92284534 | O93: 90.4613189 | P93: 95.37958684 | Q93: 107.9217651 | R93: 111.8898111 | S93: 115.4289976 | T93: 115.0139215 | U93: 115.9618832 | V93: 120.2410373 | W93: 115.8013639 | X93: 119.0810711 | Y93: 111.0037778 | Z93: 106.2246876 | AA93: 94.32667452 | AB93: 85.89630231 | AC93: 78.82930293 | AD93: 72.7413328 | AE93: 70.1214144 | AF93: 66.68720729
A94: LRKPCLGS | B94: 070219 | C94: 1 | D94: 2400 | E94: 60 | F94: 1 | G94: 1 | H94: KW | I94: 62.88889618 | J94: 60.4380391 | K94: 60.89239661 | L94: 63.59611901 | M94: 65.33027227 | N94: 79.27750268 | O94: 95.84430991 | P94: 103.2610827 | Q94: 108.5712815 | R94: 111.4773937 | S94: 112.3136095 | T94: 110.1077821 | U94: 111.5674536 | V94: 115.699551 | W94: 115.6135783 | X94: 110.2187905 | Y94: 102.7275419 | Z94: 94.2614342 | AA94: 82.55730051 | AB94: 79.14141954 | AC94: 75.21083153 | AD94: 73.23150169 | AE94: 72.42759202 | AF94: 68.1783151
A95: LRKPCLGS | B95: 070319 | C95: 1 | D95: 2400 | E95: 60 | F95: 1 | G95: 1 | H95: KW | I95: 62.40540909 | J95: 59.79930329 | K95: 58.46327135 | L95: 57.61350445 | M95: 60.96390677 | N95: 70.7655278 | O95: 90.10632222 | P95: 93.66600595 | Q95: 100.182812 | R95: 102.9197437 | S95: 105.2385609 | T95: 104.4555057 | U95: 110.675331 | V95: 113.2191096 | W95: 114.6050904 | X95: 112.293944 | Y95: 105.0196045 | Z95: 93.63224027 | AA95: 85.62876834 | AB95: 81.06337714 | AC95: 76.74440236 | AD95: 73.11940239 | AE95: 69.08222731 | AF95: 64.22991048
A96: LRKPCLGS | B96: 070419 | C96: 1 | D96: 2400 | E96: 60 | F96: 1 | G96: 1 | H96: KW | I96: 61.81252179 | J96: 60.09173073 | K96: 57.57217319 | L96: 57.78557493 | M96: 62.4332134 | N96: 66.77518094 | O96: 76.04803501 | P96: 78.2894934 | Q96: 80.05329967 | R96: 83.37776161 | S96: 90.51055792 | T96: 92.42804244 | U96: 94.12991652 | V96: 97.46566684 | W96: 97.11864478 | X96: 92.88203875 | Y96: 88.85563527 | Z96: 81.39902456 | AA96: 74.69519906 | AB96: 71.54939478 | AC96: 66.67221344 | AD96: 65.45415312 | AE96: 65.01437761 | AF96: 62.65126407
A97: LRKPCLGS | B97: 070519 | C97: 1 | D97: 2400 | E97: 60 | F97: 1 | G97: 1 | H97: KW | I97: 60.28584674 | J97: 58.66713258 | K97: 58.47275372 | L97: 57.65052732 | M97: 61.35207803 | N97: 65.69246711 | O97: 71.43686069 | P97: 72.94784641 | Q97: 78.12716465 | R97: 82.84368186 | S97: 89.29606928 | T97: 92.80329758 | U97: 94.02604022 | V97: 95.27194472 | W97: 97.53895463 | X97: 94.87219065 | Y97: 94.81512978 | Z97: 92.5030568 | AA97: 88.0231996 | AB97: 87.08043843 | AC97: 78.21396101 | AD97: 73.42278658 | AE97: 68.79940318 | AF97: 65.51657363
A98: LRKPCLGS | B98: 070619 | C98: 1 | D98: 2400 | E98: 60 | F98: 1 | G98: 1 | H98: KW | I98: 61.45641212 | J98: 60.02171999 | K98: 58.84781448 | L98: 60.85533849 | M98: 62.45985562 | N98: 64.17215014 | O98: 64.92985273 | P98: 69.55065874 | Q98: 69.12521273 | R98: 73.73826182 | S98: 77.68734795 | T98: 80.23300628 | U98: 80.56178503 | V98: 79.12069634 | W98: 83.2158238 | X98: 84.09922912 | Y98: 81.00775373 | Z98: 76.90500748 | AA98: 75.58813045 | AB98: 74.76599735 | AC98: 73.79346539 | AD98: 70.97117738 | AE98: 68.59883302 | AF98: 65.78384877
A99: LRKPCLGS | B99: 070719 | C99: 1 | D99: 2400 | E99: 60 | F99: 1 | G99: 1 | H99: KW | I99: 63.05399259 | J99: 61.15299876 | K99: 61.33784326 | L99: 60.4991643 | M99: 63.74178613 | N99: 61.62916362 | O99: 64.89846869 | P99: 64.94187167 | Q99: 65.14845164 | R99: 70.18621425 | S99: 74.76273291 | T99: 75.85863549 | U99: 74.69911829 | V99: 75.18459296 | W99: 76.18076263 | X99: 76.13496532 | Y99: 78.31082948 | Z99: 75.40731948 | AA99: 75.94744636 | AB99: 74.1919582 | AC99: 71.71482945 | AD99: 69.63004062 | AE99: 66.96914587 | AF99: 64.08925371
A100: LRKPCLGS | B100: 070819 | C100: 1 | D100: 2400 | E100: 60 | F100: 1 | G100: 1 | H100: KW | I100: 62.50767165 | J100: 61.60644221 | K100: 62.33240771 | L100: 64.2987567 | M100: 70.46726706 | N100: 80.38258208 | O100: 97.20695376 | P100: 107.4712022 | Q100: 114.0935974 | R100: 115.0227781 | S100: 118.5051491 | T100: 119.2404178 | U100: 122.9240355 | V100: 125.1582578 | W100: 129.3256972 | X100: 122.8849294 | Y100: 110.9835601 | Z100: 104.5807909 | AA100: 94.70195088 | AB100: 90.67153149 | AC100: 86.73176215 | AD100: 83.07060603 | AE100: 75.65957342 | AF100: 71.86464069
A101: LRKPCLGS | B101: 070919 | C101: 1 | D101: 2400 | E101: 60 | F101: 1 | G101: 1 | H101: KW | I101: 69.69205736 | J101: 65.73962924 | K101: 63.28521546 | L101: 62.32192964 | M101: 68.21995678 | N101: 77.91320683 | O101: 101.0432383 | P101: 110.6606491 | Q101: 112.2036382 | R101: 112.1972936 | S101: 122.722404 | T101: 125.4778112 | U101: 132.6177104 | V101: 135.5759799 | W101: 130.8787776 | X101: 127.8692571 | Y101: 113.5668432 | Z101: 110.8230815 | AA101: 100.9512083 | AB101: 95.07104613 | AC101: 90.55648277 | AD101: 86.8675907 | AE101: 82.48660799 | AF101: 78.32968279
A102: LRKPCLGS | B102: 071019 | C102: 1 | D102: 2400 | E102: 60 | F102: 1 | G102: 1 | H102: KW | I102: 74.02997966 | J102: 68.36760766 | K102: 65.07106424 | L102: 66.97324705 | M102: 70.06563804 | N102: 78.9365411 | O102: 99.42475267 | P102: 107.415938 | Q102: 114.0895215 | R102: 120.5616283 | S102: 122.1995364 | T102: 123.0721579 | U102: 125.2387258 | V102: 127.0788231 | W102: 125.8732026 | X102: 125.2619728 | Y102: 111.6224909 | Z102: 109.4809354 | AA102: 101.4217837 | AB102: 96.76433666 | AC102: 90.36288131 | AD102: 85.24606716 | AE102: 76.91532464 | AF102: 73.41857762
A103: LRKPCLGS | B103: 071119 | C103: 1 | D103: 2400 | E103: 60 | F103: 1 | G103: 1 | H103: KW | I103: 71.49861041 | J103: 67.93134928 | K103: 66.09223834 | L103: 66.58712602 | M103: 73.98067815 | N103: 86.35109113 | O103: 101.8581891 | P103: 110.349041 | Q103: 116.9870476 | R103: 119.8857076 | S103: 122.2738176 | T103: 117.9522862 | U103: 120.7962043 | V103: 121.6392067 | W103: 121.8791361 | X103: 118.5507631 | Y103: 104.8919981 | Z103: 98.87160426 | AA103: 91.98278005 | AB103: 87.55913757 | AC103: 84.44031332 | AD103: 78.84703844 | AE103: 74.33061305 | AF103: 71.86199607
A104: LRKPCLGS | B104: 071219 | C104: 1 | D104: 2400 | E104: 60 | F104: 1 | G104: 1 | H104: KW | I104: 69.44691457 | J104: 65.48169408 | K104: 63.20090465 | L104: 62.33262156 | M104: 67.91233559 | N104: 72.89214136 | O104: 89.83347755 | P104: 98.65293352 | Q104: 105.4649583 | R104: 107.8421136 | S104: 114.2083136 | T104: 118.4495872 | U104: 123.1260049 | V104: 121.5272651 | W104: 117.8555608 | X104: 116.8242632 | Y104: 108.189552 | Z104: 100.7735275 | AA104: 93.13386283 | AB104: 90.23303244 | AC104: 84.66571981 | AD104: 80.77473376 | AE104: 76.82278558 | AF104: 71.87952597
A105: LRKPCLGS | B105: 071319 | C105: 1 | D105: 2400 | E105: 60 | F105: 1 | G105: 1 | H105: KW | I105: 67.47566627 | J105: 64.50820245 | K105: 61.00505261 | L105: 60.39472326 | M105: 60.88592391 | N105: 64.32175161 | O105: 68.47075308 | P105: 71.92151724 | Q105: 73.73894292 | R105: 76.04291 | S105: 82.30026837 | T105: 86.0896285 | U105: 87.3621608 | V105: 88.32917477 | W105: 89.08298722 | X105: 87.85142517 | Y105: 89.33634357 | Z105: 86.93400344 | AA105: 84.85050919 | AB105: 81.07679062 | AC105: 77.23522469 | AD105: 72.66131788 | AE105: 67.70662084 | AF105: 64.53381295
A106: LRKPCLGS | B106: 071419 | C106: 1 | D106: 2400 | E106: 60 | F106: 1 | G106: 1 | H106: KW | I106: 60.87255906 | J106: 61.24930242 | K106: 59.90697905 | L106: 59.72436504 | M106: 60.47569825 | N106: 64.67592717 | O106: 61.84935438 | P106: 64.06060782 | Q106: 66.63485048 | R106: 69.99042519 | S106: 75.47949186 | T106: 80.20469295 | U106: 80.33659921 | V106: 80.79140752 | W106: 81.5322388 | X106: 84.88470707 | Y106: 85.52547091 | Z106: 84.11724105 | AA106: 84.34379966 | AB106: 81.22665863 | AC106: 76.10989367 | AD106: 73.97112656 | AE106: 70.3193379 | AF106: 66.93834122
A107: LRKPCLGS | B107: 071519 | C107: 1 | D107: 2400 | E107: 60 | F107: 1 | G107: 1 | H107: KW | I107: 64.89434504 | J107: 63.82571296 | K107: 63.52516536 | L107: 65.01677624 | M107: 71.41936185 | N107: 81.41515444 | O107: 97.49844723 | P107: 109.1706852 | Q107: 116.397318 | R107: 118.9271459 | S107: 126.2339616 | T107: 128.6728895 | U107: 128.9912011 | V107: 132.681394 | W107: 130.678914 | X107: 128.6464018 | Y107: 109.4487134 | Z107: 99.63171558 | AA107: 90.22499187 | AB107: 85.21858994 | AC107: 79.66741345 | AD107: 75.89589001 | AE107: 72.01870923 | AF107: 69.55022267
A108: LRKPCLGS | B108: 071619 | C108: 1 | D108: 2400 | E108: 60 | F108: 1 | G108: 1 | H108: KW | I108: 65.49337302 | J108: 63.60406378 | K108: 60.59697466 | L108: 61.01036514 | M108: 66.11151678 | N108: 77.12419522 | O108: 93.75295219 | P108: 101.9022119 | Q108: 101.5063646 | R108: 111.8033859 | S108: 119.1715902 | T108: 118.7475236 | U108: 125.4468431 | V108: 131.4411771 | W108: 135.3988221 | X108: 131.2805765 | Y108: 117.3034655 | Z108: 113.2523399 | AA108: 104.3847108 | AB108: 96.21568408 | AC108: 87.7587895 | AD108: 83.03911644 | AE108: 76.95658906 | AF108: 75.38476461
A109: LRKPCLGS | B109: 071719 | C109: 1 | D109: 2400 | E109: 60 | F109: 1 | G109: 1 | H109: KW | I109: 71.67361159 | J109: 67.59987311 | K109: 65.36229054 | L109: 64.06318983 | M109: 68.59302976 | N109: 81.91055602 | O109: 96.16942075 | P109: 106.1829326 | Q109: 109.2348148 | R109: 114.3169032 | S109: 118.792536 | T109: 119.1721282 | U109: 118.4849191 | V109: 123.1052009 | W109: 121.1344805 | X109: 115.4945847 | Y109: 108.3243911 | Z109: 107.9420535 | AA109: 100.58988 | AB109: 92.71891539 | AC109: 84.31291034 | AD109: 81.22949606 | AE109: 74.14563236 | AF109: 71.91986127
A110: LRKPCLGS | B110: 071819 | C110: 1 | D110: 2400 | E110: 60 | F110: 1 | G110: 1 | H110: KW | I110: 71.45801017 | J110: 67.93132204 | K110: 64.99868416 | L110: 66.08125666 | M110: 69.67749591 | N110: 78.03180707 | O110: 87.36777513 | P110: 97.39572666 | Q110: 108.1739138 | R110: 113.5674075 | S110: 122.1545505 | T110: 121.5936008 | U110: 127.8023244 | V110: 124.3648932 | W110: 123.0628243 | X110: 121.9520777 | Y110: 115.4244943 | Z110: 106.6205 | AA110: 95.02613303 | AB110: 89.62742439 | AC110: 88.36875628 | AD110: 82.34336197 | AE110: 77.57990864 | AF110: 77.48128347
A111: LRKPCLGS | B111: 071919 | C111: 1 | D111: 2400 | E111: 60 | F111: 1 | G111: 1 | H111: KW | I111: 75.44908126 | J111: 68.1555182 | K111: 63.90177939 | L111: 64.32981064 | M111: 69.46979685 | N111: 76.06325941 | O111: 89.46675979 | P111: 98.61900388 | Q111: 109.0368746 | R111: 115.6338499 | S111: 124.3903494 | T111: 119.8267246 | U111: 125.8563644 | V111: 126.364873 | W111: 127.9746321 | X111: 125.1004673 | Y111: 116.2726322 | Z111: 113.2993023 | AA111: 107.3512339 | AB111: 98.91597361 | AC111: 89.08969482 | AD111: 84.5167207 | AE111: 82.37290747 | AF111: 79.65152958
A112: LRKPCLGS | B112: 072019 | C112: 1 | D112: 2400 | E112: 60 | F112: 1 | G112: 1 | H112: KW | I112: 75.66513459 | J112: 71.40724225 | K112: 69.22834219 | L112: 68.19799565 | M112: 69.61570473 | N112: 70.63818437 | O112: 75.22534486 | P112: 78.61218057 | Q112: 78.62793266 | R112: 82.71792097 | S112: 85.62083267 | T112: 90.34544511 | U112: 94.49200115 | V112: 91.10305846 | W112: 93.86663696 | X112: 95.33096755 | Y112: 94.69250599 | Z112: 96.11044784 | AA112: 95.10795123 | AB112: 89.16286937 | AC112: 84.36954203 | AD112: 80.62069727 | AE112: 73.83922257 | AF112: 70.13612765
A113: LRKPCLGS | B113: 072119 | C113: 1 | D113: 2400 | E113: 60 | F113: 1 | G113: 1 | H113: KW | I113: 67.20292765 | J113: 66.31194429 | K113: 66.08306695 | L113: 65.59205439 | M113: 64.85637302 | N113: 70.85164604 | O113: 67.77597787 | P113: 67.44839812 | Q113: 71.04974497 | R113: 71.10725599 | S113: 76.36993934 | T113: 78.32678866 | U113: 81.82788671 | V113: 85.1474638 | W113: 86.45886325 | X113: 84.64302192 | Y113: 81.51887649 | Z113: 82.4900907 | AA113: 76.44552141 | AB113: 74.54562875 | AC113: 72.77796812 | AD113: 69.76772896 | AE113: 65.76611519 | AF113: 64.45870636
A114: LRKPCLGS | B114: 072219 | C114: 1 | D114: 2400 | E114: 60 | F114: 1 | G114: 1 | H114: KW | I114: 64.29156218 | J114: 62.38587436 | K114: 63.12253286 | L114: 64.87621764 | M114: 71.86737492 | N114: 79.07945827 | O114: 94.50046704 | P114: 98.09678229 | Q114: 107.1013906 | R114: 110.5846463 | S114: 111.782463 | T114: 107.156063 | U114: 110.7905666 | V114: 109.920569 | W114: 106.5381721 | X114: 106.208796 | Y114: 99.45976292 | Z114: 95.62331805 | AA114: 90.87697935 | AB114: 85.56677128 | AC114: 81.27511289 | AD114: 76.12603454 | AE114: 69.08743272 | AF114: 64.22387694
A115: LRKPCLGS | B115: 072319 | C115: 1 | D115: 2400 | E115: 60 | F115: 1 | G115: 1 | H115: KW | I115: 62.68055741 | J115: 60.85462732 | K115: 58.44158421 | L115: 58.52641018 | M115: 60.40833962 | N115: 70.46396912 | O115: 80.36518104 | P115: 86.8259521 | Q115: 94.35212707 | R115: 96.83503054 | S115: 101.6101683 | T115: 102.9762483 | U115: 107.3074766 | V115: 105.7953187 | W115: 110.9484439 | X115: 107.6767748 | Y115: 97.08346199 | Z115: 91.5199029 | AA115: 78.75096432 | AB115: 78.14062473 | AC115: 73.48293815 | AD115: 71.046888 | AE115: 67.99332448 | AF115: 65.6725937
A116: LRKPCLGS | B116: 072419 | C116: 1 | D116: 2400 | E116: 60 | F116: 1 | G116: 1 | H116: KW | I116: 59.28657941 | J116: 55.3247395 | K116: 52.53609734 | L116: 55.33710458 | M116: 59.85704852 | N116: 65.1130702 | O116: 78.22463151 | P116: 89.50649739 | Q116: 89.29987402 | R116: 95.13013766 | S116: 101.963852 | T116: 101.4446395 | U116: 107.1747318 | V116: 105.7496155 | W116: 110.9993185 | X116: 108.3219483 | Y116: 99.29006521 | Z116: 96.97119984 | AA116: 90.20542349 | AB116: 82.75578635 | AC116: 78.49064133 | AD116: 76.06755914 | AE116: 70.6308167 | AF116: 66.80019191
A117: LRKPCLGS | B117: 072519 | C117: 1 | D117: 2400 | E117: 60 | F117: 1 | G117: 1 | H117: KW | I117: 64.76844246 | J117: 58.33865251 | K117: 55.40898164 | L117: 55.11528232 | M117: 58.20363214 | N117: 66.58612846 | O117: 82.38886572 | P117: 90.91104263 | Q117: 93.88630189 | R117: 101.0040204 | S117: 102.7520044 | T117: 105.9079839 | U117: 112.5451974 | V117: 115.8238537 | W117: 113.2594688 | X117: 109.9028786 | Y117: 101.3263122 | Z117: 99.10657622 | AA117: 91.89849893 | AB117: 84.94688402 | AC117: 75.99369133 | AD117: 74.06900064 | AE117: 68.88102484 | AF117: 67.39623212
A118: LRKPCLGS | B118: 072619 | C118: 1 | D118: 2400 | E118: 60 | F118: 1 | G118: 1 | H118: KW | I118: 64.06556514 | J118: 60.30132097 | K118: 57.11883966 | L118: 55.33336082 | M118: 59.83853293 | N118: 72.42646878 | O118: 84.17609407 | P118: 92.98556962 | Q118: 99.74629878 | R118: 102.013837 | S118: 108.9681514 | T118: 109.294262 | U118: 110.1142797 | V118: 112.1682281 | W118: 112.9130297 | X118: 112.0244151 | Y118: 100.4336187 | Z118: 96.5170926 | AA118: 89.06754605 | AB118: 85.25042832 | AC118: 77.09012075 | AD118: 72.36501397 | AE118: 68.12354249 | AF118: 66.68122447
A119: LRKPCLGS | B119: 072719 | C119: 1 | D119: 2400 | E119: 60 | F119: 1 | G119: 1 | H119: KW | I119: 61.92543752 | J119: 59.83102689 | K119: 55.40394073 | L119: 54.2097381 | M119: 56.43312497 | N119: 65.13118805 | O119: 72.19905809 | P119: 69.17874325 | Q119: 71.0352407 | R119: 73.46371407 | S119: 79.38150342 | T119: 76.87991739 | U119: 81.39321515 | V119: 84.14689112 | W119: 84.4376391 | X119: 84.82299993 | Y119: 81.12984984 | Z119: 81.54540874 | AA119: 79.66871728 | AB119: 75.34337522 | AC119: 70.81928674 | AD119: 65.88088121 | AE119: 61.25503234 | AF119: 61.7964524
A120: LRKPCLGS | B120: 072819 | C120: 1 | D120: 2400 | E120: 60 | F120: 1 | G120: 1 | H120: KW | I120: 58.31943008 | J120: 56.31869718 | K120: 54.9381289 | L120: 55.23367316 | M120: 56.8312306 | N120: 57.72850796 | O120: 55.87908716 | P120: 58.56519894 | Q120: 62.1571911 | R120: 64.67975977 | S120: 71.46858522 | T120: 75.04727476 | U120: 76.62862759 | V120: 79.10728587 | W120: 77.7262738 | X120: 78.1688306 | Y120: 79.94443477 | Z120: 81.47429871 | AA120: 79.65961394 | AB120: 75.26989265 | AC120: 71.7421297 | AD120: 70.12900577 | AE120: 64.38353367 | AF120: 61.19920772
A121: LRKPCLGS | B121: 072919 | C121: 1 | D121: 2400 | E121: 60 | F121: 1 | G121: 1 | H121: KW | I121: 59.19045733 | J121: 58.31249293 | K121: 59.00235762 | L121: 59.96227115 | M121: 67.46641325 | N121: 77.8882597 | O121: 91.12631386 | P121: 99.85862053 | Q121: 108.9728191 | R121: 111.6213367 | S121: 122.2238104 | T121: 119.4018596 | U121: 122.2647559 | V121: 122.7260875 | W121: 122.781124 | X121: 119.3603185 | Y121: 109.3680186 | Z121: 106.7524706 | AA121: 100.9800184 | AB121: 94.79667642 | AC121: 86.7001111 | AD121: 80.97590413 | AE121: 77.35388563 | AF121: 71.5755443
A122: LRKPCLGS | B122: 073019 | C122: 1 | D122: 2400 | E122: 60 | F122: 1 | G122: 1 | H122: KW | I122: 67.36126005 | J122: 64.89415725 | K122: 62.36901017 | L122: 63.34041709 | M122: 67.80887008 | N122: 76.96232014 | O122: 96.09197655 | P122: 108.4793012 | Q122: 112.6963194 | R122: 116.5005984 | S122: 120.8094877 | T122: 120.4962514 | U122: 120.0427368 | V122: 123.2387477 | W122: 120.0960244 | X122: 118.0297367 | Y122: 104.8620878 | Z122: 102.9661227 | AA122: 93.87295564 | AB122: 89.71226493 | AC122: 81.10259732 | AD122: 74.47703018 | AE122: 70.64615773 | AF122: 68.91075624
A123: LRKPCLGS | B123: 073119 | C123: 1 | D123: 2400 | E123: 60 | F123: 1 | G123: 1 | H123: KW | I123: 65.76023193 | J123: 62.69060371 | K123: 59.61183902 | L123: 60.54942159 | M123: 64.57230076 | N123: 72.67550279 | O123: 90.1584544 | P123: 94.07342156 | Q123: 102.6852066 | R123: 111.078926 | S123: 120.1483903 | T123: 118.6294289 | U123: 122.6763036 | V123: 125.280908 | W123: 122.327777 | X123: 116.3733101 | Y123: 110.8312692 | Z123: 103.6758225 | AA123: 95.11153892 | AB123: 95.65040546 | AC123: 88.72015604 | AD123: 87.27122604 | AE123: 80.39724315 | AF123: 72.38137012
A124: LRKPCLGS | B124: 080119 | C124: 1 | D124: 2400 | E124: 60 | F124: 1 | G124: 1 | H124: KW | I124: 64.42895553 | J124: 60.57277557 | K124: 58.85903784 | L124: 63.03858639 | M124: 66.80846157 | N124: 75.68456058 | O124: 93.90822155 | P124: 103.8998693 | Q124: 106.2394872 | R124: 113.1220796 | S124: 113.9787596 | T124: 113.9477575 | U124: 125.5143976 | V124: 127.507258 | W124: 127.7138998 | X124: 123.8982801 | Y124: 117.4115257 | Z124: 114.9600315 | AA124: 105.4731364 | AB124: 95.82770317 | AC124: 87.10489635 | AD124: 82.82142977 | AE124: 78.24322489 | AF124: 72.69554948
A125: LRKPCLGS | B125: 080219 | C125: 1 | D125: 2400 | E125: 60 | F125: 1 | G125: 1 | H125: KW | I125: 69.09208014 | J125: 65.65039209 | K125: 63.6215735 | L125: 61.27932654 | M125: 65.91690034 | N125: 74.14288825 | O125: 93.60743492 | P125: 98.82205591 | Q125: 104.0555954 | R125: 109.6276665 | S125: 115.0050106 | T125: 114.1267242 | U125: 115.1510843 | V125: 119.2929457 | W125: 116.0132164 | X125: 113.7417714 | Y125: 111.2349034 | Z125: 101.5323268 | AA125: 95.16607049 | AB125: 90.47520571 | AC125: 81.95159514 | AD125: 76.74101473 | AE125: 70.83606412 | AF125: 69.48190956
A126: LRKPCLGS | B126: 080319 | C126: 1 | D126: 2400 | E126: 60 | F126: 1 | G126: 1 | H126: KW | I126: 66.56006229 | J126: 61.91446747 | K126: 59.16539688 | L126: 59.89991136 | M126: 59.62137275 | N126: 62.97923382 | O126: 68.40210553 | P126: 71.99197354 | Q126: 73.55312764 | R126: 75.54940344 | S126: 80.95279775 | T126: 84.04749205 | U126: 82.08949715 | V126: 83.58538597 | W126: 83.62172471 | X126: 85.33483344 | Y126: 86.62136937 | Z126: 84.59886713 | AA126: 83.38151963 | AB126: 80.35407658 | AC126: 74.09330883 | AD126: 69.14690976 | AE126: 63.98001681 | AF126: 60.78895074
A127: LRKPCLGS | B127: 080419 | C127: 1 | D127: 2400 | E127: 60 | F127: 1 | G127: 1 | H127: KW | I127: 60.11886034 | J127: 58.10016723 | K127: 57.77226187 | L127: 58.73222577 | M127: 60.98732371 | N127: 59.99530929 | O127: 60.53319632 | P127: 59.46759568 | Q127: 63.01165843 | R127: 64.63134016 | S127: 69.49065961 | T127: 74.79401069 | U127: 78.26372408 | V127: 79.0273858 | W127: 81.15459035 | X127: 80.0760256 | Y127: 79.64982176 | Z127: 79.09215288 | AA127: 77.22540465 | AB127: 74.62549085 | AC127: 69.82191982 | AD127: 68.34993162 | AE127: 64.18038742 | AF127: 60.98685715
A128: LRKPCLGS | B128: 080519 | C128: 1 | D128: 2400 | E128: 60 | F128: 1 | G128: 1 | H128: KW | I128: 57.32183995 | J128: 57.46645423 | K128: 58.27165147 | L128: 60.27240494 | M128: 68.20847404 | N128: 77.40362654 | O128: 93.87248785 | P128: 96.28305823 | Q128: 104.7170593 | R128: 109.4516511 | S128: 116.1577687 | T128: 123.2256051 | U128: 130.1527051 | V128: 134.2603097 | W128: 133.1106761 | X128: 127.2366142 | Y128: 111.5176759 | Z128: 106.3933449 | AA128: 93.97036984 | AB128: 89.75822517 | AC128: 83.26653777 | AD128: 78.66870132 | AE128: 73.64272209 | AF128: 66.92869848
A129: LRKPCLGS | B129: 080619 | C129: 1 | D129: 2400 | E129: 60 | F129: 1 | G129: 1 | H129: KW | I129: 63.0076363 | J129: 60.15023444 | K129: 57.58595467 | L129: 59.02413764 | M129: 67.36164107 | N129: 80.2030295 | O129: 100.0733328 | P129: 107.8725638 | Q129: 110.5675576 | R129: 118.4903925 | S129: 123.7090856 | T129: 118.8229882 | U129: 127.7535488 | V129: 133.8873525 | W129: 135.8744197 | X129: 132.8268567 | Y129: 120.3737052 | Z129: 114.8204604 | AA129: 101.1544561 | AB129: 97.53232602 | AC129: 86.16330758 | AD129: 84.16099953 | AE129: 77.84554208 | AF129: 72.38673222
A130: LRKPCLGS | B130: 080719 | C130: 1 | D130: 2400 | E130: 60 | F130: 1 | G130: 1 | H130: KW | I130: 68.01931754 | J130: 63.8950607 | K130: 60.29181025 | L130: 62.02317087 | M130: 68.69646339 | N130: 79.41826148 | O130: 96.02520749 | P130: 109.1850642 | Q130: 116.3170326 | R130: 122.7357885 | S130: 128.845731 | T130: 126.2479402 | U130: 124.6138853 | V130: 134.018106 | W130: 135.0515197 | X130: 128.7617788 | Y130: 118.4317693 | Z130: 106.2730868 | AA130: 93.27244703 | AB130: 88.16640297 | AC130: 83.29240581 | AD130: 81.12577165 | AE130: 75.58422561 | AF130: 72.2219844
A131: LRKPCLGS | B131: 080819 | C131: 1 | D131: 2400 | E131: 60 | F131: 1 | G131: 1 | H131: KW | I131: 66.43603989 | J131: 62.30659137 | K131: 61.35705694 | L131: 62.44572758 | M131: 67.34410768 | N131: 79.66253373 | O131: 103.7284658 | P131: 113.5761948 | Q131: 122.2844416 | R131: 126.1593282 | S131: 134.7165229 | T131: 138.5632783 | U131: 136.4831487 | V131: 139.0058861 | W131: 138.2182004 | X131: 135.0337724 | Y131: 118.6461026 | Z131: 108.6884133 | AA131: 96.50967753 | AB131: 92.94233394 | AC131: 86.74963148 | AD131: 83.18195219 | AE131: 78.26281575 | AF131: 71.89450455
A132: LRKPCLGS | B132: 080919 | C132: 1 | D132: 2400 | E132: 60 | F132: 1 | G132: 1 | H132: KW | I132: 67.78641809 | J132: 63.84395118 | K132: 59.97440852 | L132: 62.95789074 | M132: 66.72490229 | N132: 77.00707439 | O132: 93.92857257 | P132: 105.2152223 | Q132: 119.9656308 | R132: 121.5705132 | S132: 126.3423408 | T132: 124.9109826 | U132: 131.4762261 | V132: 127.9060328 | W132: 127.0087106 | X132: 128.0503514 | Y132: 113.0587585 | Z132: 105.6951935 | AA132: 98.11789901 | AB132: 89.73126018 | AC132: 83.43636855 | AD132: 80.0045976 | AE132: 71.66345341 | AF132: 69.66437035
A133: LRKPCLGS | B133: 081019 | C133: 1 | D133: 2400 | E133: 60 | F133: 1 | G133: 1 | H133: KW | I133: 67.70609139 | J133: 63.69503166 | K133: 61.99984096 | L133: 61.65040035 | M133: 63.61720243 | N133: 67.43179763 | O133: 71.15515893 | P133: 69.3831069 | Q133: 69.56609891 | R133: 73.77757298 | S133: 76.51759974 | T133: 79.47677867 | U133: 80.40403414 | V133: 84.45659638 | W133: 83.71252363 | X133: 83.02002502 | Y133: 79.70185394 | Z133: 79.47196696 | AA133: 80.40996405 | AB133: 77.26319297 | AC133: 72.56711253 | AD133: 67.46657233 | AE133: 63.28317657 | AF133: 59.16221579
A134: LRKPCLGS | B134: 081119 | C134: 1 | D134: 2400 | E134: 60 | F134: 1 | G134: 1 | H134: KW | I134: 55.6254744 | J134: 54.05800195 | K134: 54.07751736 | L134: 56.28804534 | M134: 57.63132889 | N134: 58.2180914 | O134: 57.43157952 | P134: 55.58386201 | Q134: 58.01363614 | R134: 64.65110822 | S134: 68.45812081 | T134: 72.42696678 | U134: 74.43230635 | V134: 75.7922968 | W134: 77.79783732 | X134: 77.27292355 | Y134: 77.34557123 | Z134: 78.28515008 | AA134: 74.54973763 | AB134: 72.57744668 | AC134: 68.19294014 | AD134: 66.42734862 | AE134: 61.27644575 | AF134: 58.74044219
A135: LRKPCLGS | B135: 081219 | C135: 1 | D135: 2400 | E135: 60 | F135: 1 | G135: 1 | H135: KW | I135: 56.36684587 | J135: 56.98102181 | K135: 54.83564183 | L135: 57.80172246 | M135: 66.11962582 | N135: 77.00997646 | O135: 97.50892809 | P135: 105.0742742 | Q135: 116.5558388 | R135: 122.3298671 | S135: 127.7609479 | T135: 131.3005111 | U135: 131.9516936 | V135: 131.8510567 | W135: 134.5606153 | X135: 126.4505661 | Y135: 114.0226136 | Z135: 103.1584055 | AA135: 94.78159785 | AB135: 90.26894225 | AC135: 83.0408275 | AD135: 76.8735882 | AE135: 71.51072236 | AF135: 71.06471441
A136: LRKPCLGS | B136: 081319 | C136: 1 | D136: 2400 | E136: 60 | F136: 1 | G136: 1 | H136: KW | I136: 67.87123136 | J136: 64.26316598 | K136: 62.82027281 | L136: 63.22263067 | M136: 69.28206752 | N136: 82.45959494 | O136: 106.4224789 | P136: 114.8335989 | Q136: 128.2378663 | R136: 134.1882455 | S136: 135.3356854 | T136: 137.3514291 | U136: 135.2114851 | V136: 136.0189101 | W136: 137.8198402 | X136: 132.0880805 | Y136: 119.3141198 | Z136: 111.5072363 | AA136: 104.4981881 | AB136: 96.61221661 | AC136: 86.21066992 | AD136: 81.98716967 | AE136: 78.54105215 | AF136: 74.9255521
A137: LRKPCLGS | B137: 081419 | C137: 1 | D137: 2400 | E137: 60 | F137: 1 | G137: 1 | H137: KW | I137: 71.66525783 | J137: 66.12109403 | K137: 63.28627293 | L137: 63.10785192 | M137: 66.74977925 | N137: 82.28061677 | O137: 99.15676306 | P137: 119.4436725 | Q137: 130.6840788 | R137: 134.0499945 | S137: 139.9349635 | T137: 142.0296156 | U137: 144.3005395 | V137: 145.9182075 | W137: 141.6534947 | X137: 135.119377 | Y137: 121.6082499 | Z137: 111.4875303 | AA137: 103.4626156 | AB137: 97.22580392 | AC137: 91.49329286 | AD137: 83.31791177 | AE137: 76.75681243 | AF137: 71.25925018
A138: LRKPCLGS | B138: 081519 | C138: 1 | D138: 2400 | E138: 60 | F138: 1 | G138: 1 | H138: KW | I138: 68.50281841 | J138: 65.85378504 | K138: 64.44748713 | L138: 67.73053378 | M138: 70.11498598 | N138: 84.67327005 | O138: 105.0942324 | P138: 122.9505399 | Q138: 138.1883776 | R138: 140.2265646 | S138: 142.7561163 | T138: 147.2106486 | U138: 146.059562 | V138: 145.9002264 | W138: 144.7777739 | X138: 138.3235496 | Y138: 123.2397208 | Z138: 111.4332878 | AA138: 103.552151 | AB138: 96.52687615 | AC138: 86.62193655 | AD138: 84.12355005 | AE138: 77.97675149 | AF138: 74.36963308
A139: LRKPCLGS | B139: 081619 | C139: 1 | D139: 2400 | E139: 60 | F139: 1 | G139: 1 | H139: KW | I139: 68.70765878 | J139: 65.15618826 | K139: 60.13174596 | L139: 60.45607467 | M139: 65.48720379 | N139: 82.3789537 | O139: 104.8996283 | P139: 112.5881067 | Q139: 128.0903296 | R139: 135.6741984 | S139: 135.5140916 | T139: 138.7373666 | U139: 146.048944 | V139: 145.3994435 | W139: 141.1955319 | X139: 138.1863942 | Y139: 121.3507329 | Z139: 111.5468754 | AA139: 99.10722173 | AB139: 96.45443985 | AC139: 89.36110812 | AD139: 80.3233547 | AE139: 72.83832361 | AF139: 70.21971577
A140: LRKPCLGS | B140: 081719 | C140: 1 | D140: 2400 | E140: 60 | F140: 1 | G140: 1 | H140: KW | I140: 66.67680317 | J140: 61.1575152 | K140: 58.61913511 | L140: 58.41523757 | M140: 63.41796103 | N140: 68.26829754 | O140: 74.95088972 | P140: 76.14813509 | Q140: 77.4260637 | R140: 80.42853811 | S140: 87.25524807 | T140: 92.31873464 | U140: 92.11681687 | V140: 95.32897056 | W140: 94.5597389 | X140: 94.19531299 | Y140: 93.94227595 | Z140: 89.35206483 | AA140: 90.46361854 | AB140: 84.10616754 | AC140: 80.76672356 | AD140: 79.3761353 | AE140: 73.67836544 | AF140: 71.23946367
A141: LRKPCLGS | B141: 081819 | C141: 1 | D141: 2400 | E141: 60 | F141: 1 | G141: 1 | H141: KW | I141: 66.38506176 | J141: 62.39109529 | K141: 59.62906997 | L141: 58.32508716 | M141: 61.60990827 | N141: 66.03220133 | O141: 64.7036466 | P141: 65.03281886 | Q141: 67.16443917 | R141: 71.17698302 | S141: 77.99939919 | T141: 80.93578805 | U141: 83.87256647 | V141: 84.30864563 | W141: 88.29763426 | X141: 90.52402368 | Y141: 91.74173488 | Z141: 89.16076144 | AA141: 86.55646279 | AB141: 79.56446352 | AC141: 77.20377831 | AD141: 74.99865326 | AE141: 69.2015377 | AF141: 65.68048617
A142: LRKPCLGS | B142: 081919 | C142: 1 | D142: 2400 | E142: 60 | F142: 1 | G142: 1 | H142: KW | I142: 65.21385816 | J142: 63.80450408 | K142: 64.45261274 | L142: 66.25753785 | M142: 74.11356555 | N142: 85.70119888 | O142: 114.0534549 | P142: 122.206265 | Q142: 135.3544494 | R142: 142.4482472 | S142: 149.6739214 | T142: 150.6119767 | U142: 158.0967462 | V142: 155.5256068 | W142: 153.0687067 | X142: 147.2709905 | Y142: 128.5824106 | Z142: 121.216785 | AA142: 111.6127759 | AB142: 105.4438034 | AC142: 97.80309988 | AD142: 89.1297974 | AE142: 81.26750851 | AF142: 78.4453597
A143: LRKPCLGS | B143: 082019 | C143: 1 | D143: 2400 | E143: 60 | F143: 1 | G143: 1 | H143: KW | I143: 75.11628289 | J143: 68.36782265 | K143: 66.55754159 | L143: 68.02747207 | M143: 76.76703168 | N143: 90.39095127 | O143: 117.2669931 | P143: 127.3766139 | Q143: 140.9572207 | R143: 151.5605702 | S143: 153.4477723 | T143: 160.5511528 | U143: 161.344086 | V143: 157.6227455 | W143: 159.4368409 | X143: 152.3058188 | Y143: 132.7685126 | Z143: 120.6887354 | AA143: 109.0711055 | AB143: 97.83878828 | AC143: 89.7121507 | AD143: 83.39359091 | AE143: 77.61457331 | AF143: 74.66076441
A144: LRKPCLGS | B144: 082119 | C144: 1 | D144: 2400 | E144: 60 | F144: 1 | G144: 1 | H144: KW | I144: 72.3742991 | J144: 70.07804704 | K144: 67.47353077 | L144: 68.90334407 | M144: 74.51828412 | N144: 84.52965395 | O144: 104.4411274 | P144: 116.5877749 | Q144: 135.1899763 | R144: 144.9970995 | S144: 145.1054107 | T144: 152.4498182 | U144: 154.1244203 | V144: 154.9488162 | W144: 155.6148436 | X144: 144.262161 | Y144: 126.9503609 | Z144: 119.4479663 | AA144: 109.5907383 | AB144: 100.4796519 | AC144: 94.77198217 | AD144: 87.88732088 | AE144: 80.59171419 | AF144: 77.90502822
A145: LRKPCLGS | B145: 082219 | C145: 1 | D145: 2400 | E145: 60 | F145: 1 | G145: 1 | H145: KW | I145: 74.89064438 | J145: 69.22593928 | K145: 66.26386016 | L145: 68.14424027 | M145: 75.21095233 | N145: 88.6867127 | O145: 115.7190885 | P145: 123.1395511 | Q145: 139.1364535 | R145: 145.4527992 | S145: 141.7655261 | T145: 144.0557889 | U145: 151.1071258 | V145: 149.2218146 | W145: 147.5232451 | X145: 143.3414533 | Y145: 122.8334071 | Z145: 113.0153446 | AA145: 102.7954984 | AB145: 100.572852 | AC145: 95.27654963 | AD145: 85.44885703 | AE145: 79.19443019 | AF145: 78.46887458
A146: LRKPCLGS | B146: 082319 | C146: 1 | D146: 2400 | E146: 60 | F146: 1 | G146: 1 | H146: KW | I146: 73.55106044 | J146: 67.55953751 | K146: 64.86336198 | L146: 66.4351318 | M146: 73.32125573 | N146: 86.53408272 | O146: 102.097165 | P146: 111.3069995 | Q146: 120.2875212 | R146: 121.7370279 | S146: 120.2199637 | T146: 120.3046193 | U146: 124.0538003 | V146: 122.872196 | W146: 120.7917814 | X146: 111.6207922 | Y146: 98.36856932 | Z146: 89.57340869 | AA146: 82.68854696 | AB146: 79.44701377 | AC146: 75.81743666 | AD146: 74.05243125 | AE146: 70.82134955 | AF146: 68.76362599
A147: LRKPCLGS | B147: 082419 | C147: 1 | D147: 2400 | E147: 60 | F147: 1 | G147: 1 | H147: KW | I147: 64.34298572 | J147: 58.15907785 | K147: 53.92664759 | L147: 53.32605205 | M147: 56.44765937 | N147: 59.4785279 | O147: 67.6728177 | P147: 65.91501935 | Q147: 66.99912172 | R147: 70.90956819 | S147: 70.91390453 | T147: 72.33058538 | U147: 75.15315567 | V147: 76.47755834 | W147: 78.39135376 | X147: 76.34032201 | Y147: 76.7162668 | Z147: 74.87019362 | AA147: 71.74720585 | AB147: 68.6983556 | AC147: 68.72350178 | AD147: 64.81615595 | AE147: 61.07077384 | AF147: 58.76614972
A148: LRKPCLGS | B148: 082519 | C148: 1 | D148: 2400 | E148: 60 | F148: 1 | G148: 1 | H148: KW | I148: 56.01042204 | J148: 52.74335265 | K148: 51.28118432 | L148: 50.98972774 | M148: 53.91179685 | N148: 58.47135742 | O148: 56.55808837 | P148: 57.25126455 | Q148: 57.25869938 | R148: 59.49391292 | S148: 63.43880181 | T148: 68.78963546 | U148: 70.14876169 | V148: 73.27590407 | W148: 73.78913846 | X148: 75.31870386 | Y148: 73.48715112 | Z148: 70.39535303 | AA148: 69.60837846 | AB148: 70.96820062 | AC148: 69.57125664 | AD148: 66.04526751 | AE148: 61.84811418 | AF148: 60.2081844
A149: LRKPCLGS | B149: 082619 | C149: 1 | D149: 2400 | E149: 60 | F149: 1 | G149: 1 | H149: KW | I149: 57.42856626 | J149: 56.16127472 | K149: 53.95548154 | L149: 55.24149458 | M149: 64.65036178 | N149: 79.56474931 | O149: 102.0675006 | P149: 108.7283613 | Q149: 123.5399416 | R149: 129.7120119 | S149: 132.2940192 | T149: 125.6339701 | U149: 128.3889264 | V149: 125.1365594 | W149: 124.7396037 | X149: 115.6215463 | Y149: 97.16315158 | Z149: 90.10874579 | AA149: 84.22155031 | AB149: 82.9666589 | AC149: 78.53946491 | AD149: 73.95532035 | AE149: 67.94150493 | AF149: 66.70134826
A150: LRKPCLGS | B150: 082719 | C150: 1 | D150: 2400 | E150: 60 | F150: 1 | G150: 1 | H150: KW | I150: 64.92466516 | J150: 61.82281631 | K150: 56.72915447 | L150: 58.64631693 | M150: 64.9293407 | N150: 82.81919367 | O150: 100.9024928 | P150: 111.1612043 | Q150: 125.6246964 | R150: 132.0833862 | S150: 131.927731 | T150: 135.6388926 | U150: 137.7947036 | V150: 138.7171591 | W150: 141.2715084 | X150: 131.8442567 | Y150: 117.9976866 | Z150: 106.8716326 | AA150: 95.07882737 | AB150: 89.03900582 | AC150: 82.67473799 | AD150: 76.46141476 | AE150: 69.65340325 | AF150: 68.57152344
A151: LRKPCLGS | B151: 082819 | C151: 1 | D151: 2400 | E151: 60 | F151: 1 | G151: 1 | H151: KW | I151: 67.72152751 | J151: 61.68754428 | K151: 60.64813193 | L151: 60.27224874 | M151: 66.62845142 | N151: 84.40984477 | O151: 108.5047656 | P151: 124.6761027 | Q151: 134.9015012 | R151: 140.8725387 | S151: 140.6164174 | T151: 141.8623176 | U151: 138.0178364 | V151: 137.6380265 | W151: 133.4124209 | X151: 124.8437115 | Y151: 106.400471 | Z151: 102.5033146 | AA151: 90.15560392 | AB151: 82.23448455 | AC151: 77.24043093 | AD151: 72.42670878 | AE151: 64.9770877 | AF151: 59.74398648
A152: LRKPCLGS | B152: 082919 | C152: 1 | D152: 2400 | E152: 60 | F152: 1 | G152: 1 | H152: KW | I152: 58.92717187 | J152: 58.04800427 | K152: 55.50705257 | L152: 54.96063872 | M152: 62.87225326 | N152: 78.55438138 | O152: 100.6116898 | P152: 110.9638536 | Q152: 120.6843069 | R152: 127.2666387 | S152: 124.2737239 | T152: 129.998662 | U152: 132.9379499 | V152: 132.3987668 | W152: 135.4004391 | X152: 128.1205197 | Y152: 111.9649155 | Z152: 106.0242006 | AA152: 94.64795205 | AB152: 87.28956507 | AC152: 80.40076852 | AD152: 73.79102849 | AE152: 66.51200942 | AF152: 65.31877812
A153: LRKPCLGS | B153: 083019 | C153: 1 | D153: 2400 | E153: 60 | F153: 1 | G153: 1 | H153: KW | I153: 63.31214028 | J153: 59.48600517 | K153: 56.04448987 | L153: 56.14363765 | M153: 58.12287812 | N153: 73.05536615 | O153: 91.76462103 | P153: 100.4034792 | Q153: 114.2568858 | R153: 117.4390485 | S153: 121.6841648 | T153: 127.2302613 | U153: 127.1328725 | V153: 131.17214 | W153: 125.1728912 | X153: 118.5814856 | Y153: 107.578423 | Z153: 101.7237691 | AA153: 91.99232606 | AB153: 85.10363888 | AC153: 78.60230742 | AD153: 73.37599167 | AE153: 68.46154338 | AF153: 67.51321641
A154: LRKPCLGS | B154: 083119 | C154: 1 | D154: 2400 | E154: 60 | F154: 1 | G154: 1 | H154: KW | I154: 64.30752109 | J154: 60.80456293 | K154: 58.1335202 | L154: 58.85767427 | M154: 57.42997 | N154: 62.19709647 | O154: 66.30440064 | P154: 66.62247849 | Q154: 69.68769302 | R154: 72.33200936 | S154: 77.9299544 | T154: 80.45787224 | U154: 83.40038433 | V154: 87.27001371 | W154: 87.0621691 | X154: 87.31289594 | Y154: 83.84411828 | Z154: 84.67083452 | AA154: 83.20984788 | AB154: 81.09267174 | AC154: 75.78401062 | AD154: 71.9348773 | AE154: 66.99422576 | AF154: 62.60979335
A155: LRKPCLGS | B155: 090119 | C155: 1 | D155: 2400 | E155: 60 | F155: 1 | G155: 1 | H155: KW | I155: 58.61037561 | J155: 59.42548017 | K155: 57.48011166 | L155: 58.00475216 | M155: 60.31426156 | N155: 62.25215718 | O155: 60.80213577 | P155: 58.41517329 | Q155: 60.75902142 | R155: 64.65326519 | S155: 73.84917882 | T155: 75.72599804 | U155: 76.61407774 | V155: 79.49829806 | W155: 82.88084817 | X155: 82.32432654 | Y155: 81.25102983 | Z155: 78.96167409 | AA155: 74.13275559 | AB155: 71.68229334 | AC155: 70.49449962 | AD155: 67.79844982 | AE155: 65.15266139 | AF155: 62.74089581
A156: LRKPCLGS | B156: 090219 | C156: 1 | D156: 2400 | E156: 60 | F156: 1 | G156: 1 | H156: KW | I156: 60.98321749 | J156: 58.59564883 | K156: 57.34398366 | L156: 58.11219071 | M156: 65.97781706 | N156: 69.96672371 | O156: 73.42551674 | P156: 70.14319593 | Q156: 73.89316016 | R156: 77.00738087 | S156: 82.27647246 | T156: 84.77069215 | U156: 85.75741124 | V156: 91.70464604 | W156: 95.28975828 | X156: 92.77828872 | Y156: 88.62118848 | Z156: 84.22186643 | AA156: 80.21039567 | AB156: 73.22376124 | AC156: 67.90729148 | AD156: 64.42891989 | AE156: 63.51278968 | AF156: 61.39362241
A157: LRKPCLGS | B157: 090319 | C157: 1 | D157: 2400 | E157: 60 | F157: 1 | G157: 1 | H157: KW | I157: 57.70102369 | J157: 56.64139552 | K157: 55.81526283 | L157: 57.13965912 | M157: 63.94528988 | N157: 80.87910786 | O157: 102.7671633 | P157: 114.204789 | Q157: 127.4448601 | R157: 134.6106588 | S157: 140.3079901 | T157: 140.1697186 | U157: 145.4247087 | V157: 148.04728 | W157: 143.2941962 | X157: 131.8577621 | Y157: 116.8676526 | Z157: 111.2413703 | AA157: 104.5493281 | AB157: 98.06078901 | AC157: 92.40941865 | AD157: 86.04439588 | AE157: 76.38492843 | AF157: 70.55021867
A158: LRKPCLGS | B158: 090419 | C158: 1 | D158: 2400 | E158: 60 | F158: 1 | G158: 1 | H158: KW | I158: 67.06228329 | J158: 65.80129142 | K158: 64.24715564 | L158: 63.87222177 | M158: 68.64553344 | N158: 85.12599597 | O158: 107.8501884 | P158: 116.066735 | Q158: 131.6354572 | R158: 134.0008266 | S158: 141.2122871 | T158: 144.2663548 | U158: 147.0507261 | V158: 147.348875 | W158: 146.8726404 | X158: 141.7310375 | Y158: 124.4914968 | Z158: 115.3586221 | AA158: 109.1466619 | AB158: 99.63396003 | AC158: 91.73402409 | AD158: 83.89517237 | AE158: 76.25306517 | AF158: 72.64855151
A159: LRKPCLGS | B159: 090519 | C159: 1 | D159: 2400 | E159: 60 | F159: 1 | G159: 1 | H159: KW | I159: 70.51170091 | J159: 66.34190869 | K159: 61.66334394 | L159: 60.55155463 | M159: 68.55384839 | N159: 80.38695652 | O159: 104.8904328 | P159: 118.0001296 | Q159: 128.796819 | R159: 134.5149745 | S159: 134.5858887 | T159: 126.5858409 | U159: 133.18856 | V159: 137.6315825 | W159: 135.3245865 | X159: 127.6080937 | Y159: 115.7128433 | Z159: 110.5134798 | AA159: 97.25103712 | AB159: 90.36281864 | AC159: 82.39571216 | AD159: 78.44140357 | AE159: 70.57031535 | AF159: 66.41574498
A160: LRKPCLGS | B160: 090619 | C160: 1 | D160: 2400 | E160: 60 | F160: 1 | G160: 1 | H160: KW | I160: 65.75740136 | J160: 63.17864806 | K160: 61.15609639 | L160: 58.91682329 | M160: 63.12892877 | N160: 70.14104849 | O160: 92.10453453 | P160: 100.3523987 | Q160: 113.4049756 | R160: 121.2391564 | S160: 128.6975782 | T160: 128.6654819 | U160: 129.7981542 | V160: 125.093546 | W160: 123.5088927 | X160: 116.5018765 | Y160: 102.3564778 | Z160: 95.15215703 | AA160: 92.43177007 | AB160: 88.2940596 | AC160: 83.00860533 | AD160: 75.59330157 | AE160: 70.19720955 | AF160: 66.96213275
A161: LRKPCLGS | B161: 090719 | C161: 1 | D161: 2400 | E161: 60 | F161: 1 | G161: 1 | H161: KW | I161: 68.75574734 | J161: 66.44562725 | K161: 63.10508669 | L161: 65.05090804 | M161: 64.65185911 | N161: 63.75507341 | O161: 68.89485861 | P161: 74.7574945 | Q161: 74.87674529 | R161: 74.90888875 | S161: 75.3934126 | T161: 78.60464963 | U161: 81.14252785 | V161: 82.5197633 | W161: 80.1521661 | X161: 81.67216049 | Y161: 79.28590913 | Z161: 76.17740359 | AA161: 76.05601079 | AB161: 73.66394162 | AC161: 68.70657512 | AD161: 65.58536238 | AE161: 62.49875269 | AF161: 60.16462253
A162: LRKPCLGS | B162: 090819 | C162: 1 | D162: 2400 | E162: 60 | F162: 1 | G162: 1 | H162: KW | I162: 57.13587832 | J162: 57.09803718 | K162: 55.08934509 | L162: 54.46487076 | M162: 58.07321565 | N162: 58.74225958 | O162: 60.16205442 | P162: 58.30893629 | Q162: 61.95519715 | R162: 61.76201195 | S162: 69.1886999 | T162: 71.58656467 | U162: 72.89661987 | V162: 73.73252466 | W162: 76.90010123 | X162: 77.51239038 | Y162: 76.67808396 | Z162: 75.36407271 | AA162: 70.83299936 | AB162: 67.68036391 | AC162: 66.50471647 | AD162: 63.49514913 | AE162: 59.46766196 | AF162: 57.25067788
A163: LRKPCLGS | B163: 090919 | C163: 1 | D163: 2400 | E163: 60 | F163: 1 | G163: 1 | H163: KW | I163: 57.30586236 | J163: 56.36738536 | K163: 55.68740642 | L163: 57.94284834 | M163: 65.5939878 | N163: 78.20996136 | O163: 96.33958916 | P163: 105.3534314 | Q163: 123.2853796 | R163: 129.8560527 | S163: 134.4779555 | T163: 133.4971533 | U163: 138.9065991 | V163: 139.9548524 | W163: 142.4597754 | X163: 137.1618942 | Y163: 118.7985875 | Z163: 110.0848056 | AA163: 102.8785217 | AB163: 95.59450911 | AC163: 86.17763534 | AD163: 80.75139286 | AE163: 74.61771478 | AF163: 70.347982
A164: LRKPCLGS | B164: 091019 | C164: 1 | D164: 2400 | E164: 60 | F164: 1 | G164: 1 | H164: KW | I164: 68.30426117 | J164: 64.07387349 | K164: 60.36468267 | L164: 60.02043655 | M164: 65.46193161 | N164: 78.02160347 | O164: 99.48063048 | P164: 114.3225319 | Q164: 125.2919153 | R164: 137.9345871 | S164: 139.5687827 | T164: 142.3885014 | U164: 149.213338 | V164: 147.6515056 | W164: 147.8607819 | X164: 142.8045357 | Y164: 123.3712728 | Z164: 119.4795389 | AA164: 112.0266657 | AB164: 104.4568157 | AC164: 94.60538066 | AD164: 83.76382642 | AE164: 81.28772187 | AF164: 77.51112193
A165: LRKPCLGS | B165: 091119 | C165: 1 | D165: 2400 | E165: 60 | F165: 1 | G165: 1 | H165: KW | I165: 73.68965269 | J165: 68.95155177 | K165: 66.43396557 | L165: 67.55103623 | M165: 71.77624543 | N165: 84.47042699 | O165: 103.0174032 | P165: 117.0452817 | Q165: 135.114249 | R165: 141.0331903 | S165: 142.6624801 | T165: 144.8500406 | U165: 152.0931999 | V165: 151.194236 | W165: 153.8991758 | X165: 144.1198623 | Y165: 124.2610962 | Z165: 115.4109742 | AA165: 106.5462381 | AB165: 101.329646 | AC165: 92.11269749 | AD165: 89.57134985 | AE165: 82.31519848 | AF165: 79.10410206
A166: LRKPCLGS | B166: 091219 | C166: 1 | D166: 2400 | E166: 60 | F166: 1 | G166: 1 | H166: KW | I166: 73.71812104 | J166: 70.11491936 | K166: 66.59169752 | L166: 65.91020101 | M166: 72.64320058 | N166: 86.64602199 | O166: 106.3425551 | P166: 120.6944863 | Q166: 138.5380435 | R166: 141.6919247 | S166: 147.2720174 | T166: 154.3320091 | U166: 155.1095108 | V166: 154.9807238 | W166: 150.0138855 | X166: 142.6045939 | Y166: 131.824489 | Z166: 124.4235482 | AA166: 111.9797124 | AB166: 106.0298071 | AC166: 97.50866723 | AD166: 90.74834656 | AE166: 81.4774446 | AF166: 76.70715676
A167: LRKPCLGS | B167: 091319 | C167: 1 | D167: 2400 | E167: 60 | F167: 1 | G167: 1 | H167: KW | I167: 72.78613767 | J167: 71.30306529 | K167: 69.11601452 | L167: 70.07463762 | M167: 75.25454897 | N167: 84.80067817 | O167: 105.9150061 | P167: 122.6446395 | Q167: 137.3267714 | R167: 140.8691378 | S167: 141.5642421 | T167: 145.2093806 | U167: 151.5676151 | V167: 148.6570641 | W167: 144.4320055 | X167: 136.0845511 | Y167: 121.8562955 | Z167: 115.5383723 | AA167: 109.1979473 | AB167: 102.6056365 | AC167: 95.91000775 | AD167: 90.80245547 | AE167: 87.52940844 | AF167: 85.08614272
A168: LRKPCLGS | B168: 091419 | C168: 1 | D168: 2400 | E168: 60 | F168: 1 | G168: 1 | H168: KW | I168: 79.64750532 | J168: 75.78852238 | K168: 73.53474505 | L168: 71.87780657 | M168: 73.05089999 | N168: 70.75141803 | O168: 74.36648886 | P168: 76.13761566 | Q168: 77.73420768 | R168: 80.88457611 | S168: 83.48536897 | T168: 86.97510068 | U168: 88.2371534 | V168: 87.82177832 | W168: 88.06843784 | X168: 85.76927514 | Y168: 85.06728434 | Z168: 85.18006638 | AA168: 82.12729545 | AB168: 75.83382129 | AC168: 69.65015917 | AD168: 65.49018057 | AE168: 62.18733665 | AF168: 60.66480127
A169: LRKPCLGS | B169: 091519 | C169: 1 | D169: 2400 | E169: 60 | F169: 1 | G169: 1 | H169: KW | I169: 56.87587293 | J169: 55.62421136 | K169: 53.038976 | L169: 53.34584185 | M169: 55.59269538 | N169: 58.73771312 | O169: 57.54183506 | P169: 59.21220754 | Q169: 58.9148236 | R169: 62.27371516 | S169: 66.48128912 | T169: 69.95604603 | U169: 71.04475762 | V169: 77.03950883 | W169: 80.21158935 | X169: 77.40264556 | Y169: 80.77983722 | Z169: 80.35336636 | AA169: 77.87614393 | AB169: 69.58447288 | AC169: 67.06209619 | AD169: 63.43350118 | AE169: 57.71005328 | AF169: 56.66520731
A170: LRKPCLGS | B170: 091619 | C170: 1 | D170: 2400 | E170: 60 | F170: 1 | G170: 1 | H170: KW | I170: 55.38151344 | J170: 55.88645721 | K170: 55.14560288 | L170: 60.15502816 | M170: 62.89760741 | N170: 75.87447653 | O170: 97.07765275 | P170: 108.9701271 | Q170: 125.0970304 | R170: 129.0088394 | S170: 132.2525562 | T170: 137.4890415 | U170: 145.8485518 | V170: 141.99574 | W170: 138.8483142 | X170: 138.8724077 | Y170: 124.1184537 | Z170: 119.3643329 | AA170: 107.3827312 | AB170: 98.0725904 | AC170: 94.27081449 | AD170: 85.84014497 | AE170: 80.09194051 | AF170: 73.99906048
A171: LRKPCLGS | B171: 091719 | C171: 1 | D171: 2400 | E171: 60 | F171: 1 | G171: 1 | H171: KW | I171: 72.23473921 | J171: 68.49264009 | K171: 68.07706376 | L171: 67.36712696 | M171: 74.8638297 | N171: 84.11429134 | O171: 102.7580049 | P171: 118.4239076 | Q171: 128.4477385 | R171: 131.8639518 | S171: 137.122764 | T171: 141.7919887 | U171: 148.5516176 | V171: 147.0096049 | W171: 141.8159856 | X171: 137.2264171 | Y171: 120.7511929 | Z171: 110.0038948 | AA171: 102.0532972 | AB171: 94.93959591 | AC171: 86.55128677 | AD171: 81.1256889 | AE171: 74.97049516 | AF171: 71.65255969
A172: LRKPCLGS | B172: 091819 | C172: 1 | D172: 2400 | E172: 60 | F172: 1 | G172: 1 | H172: KW | I172: 70.01124359 | J172: 65.2996861 | K172: 60.98521896 | L172: 61.11187639 | M172: 65.27309857 | N172: 78.70084001 | O172: 99.06484927 | P172: 119.4665891 | Q172: 130.626973 | R172: 134.6638658 | S172: 136.9988964 | T172: 137.1582934 | U172: 140.1868423 | V172: 139.4289361 | W172: 139.569161 | X172: 133.6171121 | Y172: 119.9088811 | Z172: 112.1215779 | AA172: 104.5908373 | AB172: 96.28342047 | AC172: 91.04238997 | AD172: 83.80635142 | AE172: 76.68494727 | AF172: 75.50178826
A173: LRKPCLGS | B173: 091919 | C173: 1 | D173: 2400 | E173: 60 | F173: 1 | G173: 1 | H173: KW | I173: 73.40025961 | J173: 69.97062771 | K173: 62.91400946 | L173: 64.80010691 | M173: 67.30408398 | N173: 78.33351691 | O173: 94.29729266 | P173: 112.7650225 | Q173: 127.3959958 | R173: 133.8119498 | S173: 136.9139637 | T173: 138.8704732 | U173: 138.2388525 | V173: 136.1041614 | W173: 131.8772505 | X173: 130.9606877 | Y173: 113.006831 | Z173: 106.538788 | AA173: 97.63823737 | AB173: 91.33566864 | AC173: 85.05519863 | AD173: 78.70027823 | AE173: 72.40274113 | AF173: 65.79787551
A174: LRKPCLGS | B174: 092019 | C174: 1 | D174: 2400 | E174: 60 | F174: 1 | G174: 1 | H174: KW | I174: 64.53532813 | J174: 63.23743993 | K174: 61.34826008 | L174: 64.05415707 | M174: 67.23776192 | N174: 77.52636131 | O174: 93.21442536 | P174: 113.6892009 | Q174: 124.4955856 | R174: 127.8642638 | S174: 135.4812423 | T174: 135.650312 | U174: 132.0560981 | V174: 132.6436474 | W174: 131.0619306 | X174: 126.8868892 | Y174: 113.4191899 | Z174: 103.5071926 | AA174: 98.22473848 | AB174: 95.04912809 | AC174: 91.64440527 | AD174: 86.33504613 | AE174: 78.88940843 | AF174: 72.62272492
A175: LRKPCLGS | B175: 092119 | C175: 1 | D175: 2400 | E175: 60 | F175: 1 | G175: 1 | H175: KW | I175: 71.11745873 | J175: 67.90085311 | K175: 61.92789033 | L175: 62.519479 | M175: 60.72150355 | N175: 61.33929248 | O175: 66.93151096 | P175: 72.06313073 | Q175: 71.66988038 | R175: 74.75175094 | S175: 80.97669112 | T175: 83.83307341 | U175: 84.68380767 | V175: 80.13676328 | W175: 82.13117328 | X175: 83.01176558 | Y175: 83.78401416 | Z175: 80.59502695 | AA175: 80.50264573 | AB175: 75.07760334 | AC175: 71.70772959 | AD175: 69.29754436 | AE175: 64.75984305 | AF175: 61.68632857
A176: LRKPCLGS | B176: 092219 | C176: 1 | D176: 2400 | E176: 60 | F176: 1 | G176: 1 | H176: KW | I176: 59.21296098 | J176: 56.34645133 | K176: 56.29641736 | L176: 54.67709873 | M176: 55.40035613 | N176: 58.71796929 | O176: 58.29292884 | P176: 61.36153361 | Q176: 62.06916347 | R176: 64.76300218 | S176: 71.38826706 | T176: 74.06970751 | U176: 75.59622207 | V176: 76.81899441 | W176: 77.55532107 | X176: 79.85791118 | Y176: 80.31194754 | Z176: 79.58320542 | AA176: 76.30150078 | AB176: 73.14212426 | AC176: 69.43220492 | AD176: 68.24996248 | AE176: 60.70821834 | AF176: 57.9550968
A177: LRKPCLGS | B177: 092319 | C177: 1 | D177: 2400 | E177: 60 | F177: 1 | G177: 1 | H177: KW | I177: 53.86910739 | J177: 54.12543068 | K177: 55.97531278 | L177: 59.80510803 | M177: 65.2598959 | N177: 78.40500115 | O177: 101.765684 | P177: 115.3566266 | Q177: 128.6852774 | R177: 130.6761489 | S177: 132.6830698 | T177: 130.4317368 | U177: 134.2954786 | V177: 132.0605135 | W177: 129.9280085 | X177: 122.5833277 | Y177: 107.1787164 | Z177: 98.15514184 | AA177: 91.83800771 | AB177: 89.10600761 | AC177: 83.68577218 | AD177: 80.78867063 | AE177: 75.54779541 | AF177: 70.74348046
A178: LRKPCLGS | B178: 092419 | C178: 1 | D178: 2400 | E178: 60 | F178: 1 | G178: 1 | H178: KW | I178: 67.94807845 | J178: 64.0225068 | K178: 59.30849056 | L178: 57.21699368 | M178: 61.98868466 | N178: 75.93789464 | O178: 95.56906009 | P178: 111.1406491 | Q178: 125.7373449 | R178: 126.0277276 | S178: 129.9515013 | T178: 123.7361761 | U178: 128.8776108 | V178: 126.3995135 | W178: 124.190497 | X178: 117.9985861 | Y178: 105.4392253 | Z178: 98.68346338 | AA178: 89.23847749 | AB178: 82.34443597 | AC178: 77.09136132 | AD178: 72.35045544 | AE178: 66.52516975 | AF178: 65.79308609
A179: LRKPCLGS | B179: 092519 | C179: 1 | D179: 2400 | E179: 60 | F179: 1 | G179: 1 | H179: KW | I179: 63.50251939 | J179: 59.08963657 | K179: 54.42040256 | L179: 56.15744101 | M179: 58.42944627 | N179: 68.93044701 | O179: 88.22567147 | P179: 105.5968096 | Q179: 119.5559959 | R179: 126.5355367 | S179: 126.4912704 | T179: 125.7831992 | U179: 131.5467704 | V179: 134.8517489 | W179: 131.5743384 | X179: 122.6327039 | Y179: 108.5627816 | Z179: 100.7396341 | AA179: 92.45291005 | AB179: 85.33349404 | AC179: 79.20906375 | AD179: 69.34958289 | AE179: 66.62390799 | AF179: 65.6124613
A180: LRKPCLGS | B180: 092619 | C180: 1 | D180: 2400 | E180: 60 | F180: 1 | G180: 1 | H180: KW | I180: 66.31953885 | J180: 62.795312 | K180: 57.94283829 | L180: 56.73104807 | M180: 61.28255844 | N180: 75.11159661 | O180: 98.96650934 | P180: 108.8552348 | Q180: 126.5902578 | R180: 130.3118421 | S180: 126.8997129 | T180: 125.7799681 | U180: 127.1039316 | V180: 129.5967952 | W180: 130.2311222 | X180: 125.045697 | Y180: 109.8622758 | Z180: 102.6710087 | AA180: 96.02363436 | AB180: 86.34967357 | AC180: 77.5820284 | AD180: 72.88439155 | AE180: 68.22334488 | AF180: 66.49862849
A181: LRKPCLGS | B181: 092719 | C181: 1 | D181: 2400 | E181: 60 | F181: 1 | G181: 1 | H181: KW | I181: 62.58361637 | J181: 59.41233707 | K181: 54.90328255 | L181: 53.7286871 | M181: 59.47896935 | N181: 68.41968341 | O181: 87.29783917 | P181: 98.85138135 | Q181: 110.4047536 | R181: 115.3590073 | S181: 117.6386041 | T181: 120.3912332 | U181: 125.9998765 | V181: 130.5679014 | W181: 131.0033219 | X181: 123.7471158 | Y181: 108.739286 | Z181: 104.4145295 | AA181: 93.06138626 | AB181: 85.4454193 | AC181: 79.02234731 | AD181: 74.77783328 | AE181: 72.53008649 | AF181: 69.16618908
A182: LRKPCLGS | B182: 092819 | C182: 1 | D182: 2400 | E182: 60 | F182: 1 | G182: 1 | H182: KW | I182: 67.39850299 | J182: 63.15364293 | K182: 60.03566417 | L182: 59.55996639 | M182: 59.33156771 | N182: 62.34878709 | O182: 68.68324174 | P182: 72.45624749 | Q182: 71.64890535 | R182: 76.16456545 | S182: 78.62827024 | T182: 82.89975093 | U182: 85.26130949 | V182: 83.54534255 | W182: 84.35450747 | X182: 83.64305974 | Y182: 83.58485688 | Z182: 79.96064699 | AA182: 76.41580953 | AB182: 74.94816952 | AC182: 70.93603859 | AD182: 66.73421124 | AE182: 61.56207545 | AF182: 59.52168939
A183: LRKPCLGS | B183: 092919 | C183: 1 | D183: 2400 | E183: 60 | F183: 1 | G183: 1 | H183: KW | I183: 58.54115037 | J183: 56.55543048 | K183: 56.50685719 | L183: 58.45001458 | M183: 59.18374288 | N183: 58.56410254 | O183: 58.70140576 | P183: 56.76522197 | Q183: 60.33848245 | R183: 63.63056481 | S183: 69.81581313 | T183: 73.09562479 | U183: 75.51484797 | V183: 80.82802946 | W183: 78.01930416 | X183: 77.25818402 | Y183: 78.17982445 | Z183: 78.21039446 | AA183: 74.32182942 | AB183: 70.67647721 | AC183: 67.58792463 | AD183: 66.32468858 | AE183: 63.09026859 | AF183: 58.47429401
A184: LRKPCLGS | B184: 093019 | C184: 1 | D184: 2400 | E184: 60 | F184: 1 | G184: 1 | H184: KW | I184: 56.52166638 | J184: 56.49290967 | K184: 57.49351507 | L184: 59.29960358 | M184: 66.5882577 | N184: 80.27504922 | O184: 99.37464237 | P184: 108.9466712 | Q184: 121.456325 | R184: 127.9838058 | S184: 129.7207108 | T184: 132.0731019 | U184: 140.1353666 | V184: 138.9601486 | W184: 133.0520362 | X184: 130.6268583 | Y184: 114.5310849 | Z184: 108.1189185 | AA184: 100.4506058 | AB184: 95.16359364 | AC184: 87.90822522 | AD184: 82.16730956 | AE184: 76.65429753 | AF184: 70.91600935
A185: LRKPCLGS | B185: 100119 | C185: 1 | D185: 2400 | E185: 60 | F185: 1 | G185: 1 | H185: KW | I185: 69.71915555 | J185: 68.35229623 | K185: 66.39220597 | L185: 67.70675695 | M185: 73.44044853 | N185: 83.92367857 | O185: 106.6811244 | P185: 112.8528029 | Q185: 120.0782949 | R185: 128.4944756 | S185: 136.4865881 | T185: 139.1607132 | U185: 139.2265401 | V185: 140.6453804 | W185: 139.7782557 | X185: 135.3165858 | Y185: 118.3366493 | Z185: 113.7529456 | AA185: 105.9852449 | AB185: 99.02616402 | AC185: 89.80112352 | AD185: 81.50858097 | AE185: 73.10098502 | AF185: 69.97240696
A186: LRKPCLGS | B186: 100219 | C186: 1 | D186: 2400 | E186: 60 | F186: 1 | G186: 1 | H186: KW | I186: 64.86361964 | J186: 62.11430989 | K186: 59.67043793 | L186: 60.40517582 | M186: 65.4689346 | N186: 77.27058839 | O186: 95.90493899 | P186: 105.4563258 | Q186: 112.4852402 | R186: 122.3856036 | S186: 131.3701214 | T186: 131.333174 | U186: 139.0829151 | V186: 135.3462911 | W186: 134.9752899 | X186: 128.7774018 | Y186: 121.6519654 | Z186: 116.2317508 | AA186: 97.58170772 | AB186: 89.09679289 | AC186: 83.0679082 | AD186: 77.50018271 | AE186: 69.66617656 | AF186: 68.04121395
A187: LRKPCLGS | B187: 100319 | C187: 1 | D187: 2400 | E187: 60 | F187: 1 | G187: 1 | H187: KW | I187: 65.42604211 | J187: 64.24792883 | K187: 60.68444654 | L187: 60.53159541 | M187: 66.57824367 | N187: 75.6219934 | O187: 97.51352408 | P187: 102.735803 | Q187: 109.8958226 | R187: 114.9031801 | S187: 125.3693434 | T187: 127.3390281 | U187: 129.5357667 | V187: 134.130961 | W187: 129.5707061 | X187: 127.6830771 | Y187: 112.574476 | Z187: 105.6418305 | AA187: 101.9303864 | AB187: 97.31144383 | AC187: 88.62440806 | AD187: 81.84795565 | AE187: 78.08764859 | AF187: 74.9323474
A188: LRKPCLGS | B188: 100419 | C188: 1 | D188: 2400 | E188: 60 | F188: 1 | G188: 1 | H188: KW | I188: 73.47437781 | J188: 67.93485342 | K188: 60.19799485 | L188: 61.74332325 | M188: 66.40010958 | N188: 76.3428893 | O188: 91.58928729 | P188: 94.47119035 | Q188: 99.57282521 | R188: 99.86152216 | S188: 100.8350308 | T188: 104.0035086 | U188: 103.8561272 | V188: 107.4866642 | W188: 105.6107496 | X188: 104.4829391 | Y188: 93.12333882 | Z188: 82.15239562 | AA188: 77.60724209 | AB188: 76.80723124 | AC188: 73.57452257 | AD188: 70.55109796 | AE188: 63.63101752 | AF188: 61.85443551
A189: LRKPCLGS | B189: 100519 | C189: 1 | D189: 2400 | E189: 60 | F189: 1 | G189: 1 | H189: KW | I189: 56.77621695 | J189: 53.46098659 | K189: 51.66087067 | L189: 51.5879185 | M189: 54.23050488 | N189: 60.89349026 | O189: 67.36830891 | P189: 68.08504841 | Q189: 67.37935881 | R189: 68.65244744 | S189: 73.47414353 | T189: 76.87878023 | U189: 73.90824742 | V189: 71.1232585 | W189: 73.76515924 | X189: 71.76724931 | Y189: 69.49543675 | Z189: 68.38889557 | AA189: 68.0971151 | AB189: 67.48442715 | AC189: 65.81940719 | AD189: 64.51057759 | AE189: 61.21948902 | AF189: 58.42216988
A190: LRKPCLGS | B190: 100619 | C190: 1 | D190: 2400 | E190: 60 | F190: 1 | G190: 1 | H190: KW | I190: 54.47310882 | J190: 52.1351219 | K190: 52.43428553 | L190: 54.05895834 | M190: 57.89987838 | N190: 57.48778388 | O190: 59.58305186 | P190: 60.22405326 | Q190: 58.88811766 | R190: 59.01266629 | S190: 62.1579788 | T190: 64.30198737 | U190: 66.78794601 | V190: 67.45979962 | W190: 69.87814321 | X190: 68.90576617 | Y190: 64.88682156 | Z190: 60.8574288 | AA190: 62.19651369 | AB190: 61.54949942 | AC190: 60.44129346 | AD190: 59.61301435 | AE190: 57.61354159 | AF190: 57.28183042
A191: LRKPCLGS | B191: 100719 | C191: 1 | D191: 2400 | E191: 60 | F191: 1 | G191: 1 | H191: KW | I191: 53.60759831 | J191: 52.93034493 | K191: 51.8291021 | L191: 55.79181795 | M191: 62.02430242 | N191: 74.43809686 | O191: 92.63831534 | P191: 102.0557722 | Q191: 111.2871392 | R191: 113.0143604 | S191: 112.3173732 | T191: 109.7862079 | U191: 110.1672654 | V191: 110.6278739 | W191: 108.3027334 | X191: 102.0285946 | Y191: 84.62077748 | Z191: 78.68156419 | AA191: 74.29236891 | AB191: 72.52792696 | AC191: 71.42900694 | AD191: 68.40583753 | AE191: 63.84109851 | AF191: 62.22136476
A192: LRKPCLGS | B192: 100819 | C192: 1 | D192: 2400 | E192: 60 | F192: 1 | G192: 1 | H192: KW | I192: 61.52225073 | J192: 57.07356964 | K192: 53.24389703 | L192: 55.49341207 | M192: 60.36939115 | N192: 70.32669308 | O192: 91.38860876 | P192: 103.3899893 | Q192: 115.3032488 | R192: 118.6660111 | S192: 118.0429832 | T192: 116.9747719 | U192: 113.8045377 | V192: 116.9129528 | W192: 116.0306708 | X192: 110.498047 | Y192: 90.39183278 | Z192: 85.54220682 | AA192: 78.50357844 | AB192: 76.01953422 | AC192: 75.27182846 | AD192: 72.47130215 | AE192: 64.74971714 | AF192: 61.87843729
A193: LRKPCLGS | B193: 100919 | C193: 1 | D193: 2400 | E193: 60 | F193: 1 | G193: 1 | H193: KW | I193: 61.7371523 | J193: 58.56596372 | K193: 54.0184457 | L193: 52.89611731 | M193: 57.75501775 | N193: 71.35766628 | O193: 89.87236839 | P193: 104.0567349 | Q193: 117.2984638 | R193: 119.2827407 | S193: 114.8300726 | T193: 118.3972867 | U193: 114.8318292 | V193: 114.7343609 | W193: 118.1910272 | X193: 114.5935497 | Y193: 100.530413 | Z193: 90.58027362 | AA193: 80.83157526 | AB193: 78.62416567 | AC193: 73.32499425 | AD193: 69.00096707 | AE193: 66.62789228 | AF193: 63.86809946
A194: LRKPCLGS | B194: 101019 | C194: 1 | D194: 2400 | E194: 60 | F194: 1 | G194: 1 | H194: KW | I194: 60.27533467 | J194: 55.79815014 | K194: 53.82355667 | L194: 53.37810073 | M194: 56.41037345 | N194: 65.74084351 | O194: 86.71237064 | P194: 99.22710047 | Q194: 106.8577578 | R194: 110.0941431 | S194: 114.8752931 | T194: 116.1394495 | U194: 119.1937779 | V194: 118.7012757 | W194: 116.8815902 | X194: 115.1141501 | Y194: 99.87470095 | Z194: 95.564724 | AA194: 86.87601267 | AB194: 82.62353793 | AC194: 75.92090643 | AD194: 68.15131165 | AE194: 65.38601711 | AF194: 63.65475775
A195: LRKPCLGS | B195: 101119 | C195: 1 | D195: 2400 | E195: 60 | F195: 1 | G195: 1 | H195: KW | I195: 62.73099769 | J195: 58.88304429 | K195: 55.55129637 | L195: 54.18960709 | M195: 56.06402117 | N195: 63.04595246 | O195: 80.91231123 | P195: 95.5639475 | Q195: 110.2530136 | R195: 108.7606649 | S195: 112.5487538 | T195: 116.4767033 | U195: 120.8503571 | V195: 117.5863064 | W195: 113.918282 | X195: 109.5468295 | Y195: 94.74889142 | Z195: 89.41155354 | AA195: 83.94373589 | AB195: 81.1323052 | AC195: 77.37731329 | AD195: 74.41597708 | AE195: 68.08429336 | AF195: 65.5693124
A196: LRKPCLGS | B196: 101219 | C196: 1 | D196: 2400 | E196: 60 | F196: 1 | G196: 1 | H196: KW | I196: 62.56913674 | J196: 58.27182963 | K196: 53.70668113 | L196: 53.50932806 | M196: 54.96644138 | N196: 57.84210327 | O196: 63.87245068 | P196: 64.57295853 | Q196: 60.97481699 | R196: 62.14666504 | S196: 61.25542046 | T196: 63.35129429 | U196: 63.43341835 | V196: 62.98460002 | W196: 62.71486747 | X196: 62.33627539 | Y196: 60.11692378 | Z196: 56.7078588 | AA196: 53.90478465 | AB196: 54.85410162 | AC196: 55.58374688 | AD196: 54.60071587 | AE196: 52.32945238 | AF196: 50.76055003
A197: LRKPCLGS | B197: 101319 | C197: 1 | D197: 2400 | E197: 60 | F197: 1 | G197: 1 | H197: KW | I197: 49.49763153 | J197: 48.45997285 | K197: 47.1519927 | L197: 46.41825452 | M197: 49.25955285 | N197: 49.25853406 | O197: 53.38524863 | P197: 55.67643398 | Q197: 56.15608543 | R197: 57.55834458 | S197: 57.63708499 | T197: 54.3302611 | U197: 56.13674034 | V197: 58.80900931 | W197: 57.81194525 | X197: 58.97138977 | Y197: 59.03875454 | Z197: 56.50777597 | AA197: 52.18349909 | AB197: 51.15606328 | AC197: 49.76625743 | AD197: 49.33686347 | AE197: 50.62849735 | AF197: 48.36832222
A198: LRKPCLGS | B198: 101419 | C198: 1 | D198: 2400 | E198: 60 | F198: 1 | G198: 1 | H198: KW | I198: 47.80743898 | J198: 48.81839774 | K198: 47.75177131 | L198: 48.65138448 | M198: 54.83910428 | N198: 64.19086831 | O198: 90.99513288 | P198: 107.4953326 | Q198: 117.9325314 | R198: 121.050872 | S198: 117.0116394 | T198: 116.0612002 | U198: 118.9263725 | V198: 114.3025394 | W198: 109.8269779 | X198: 105.9784208 | Y198: 95.57236968 | Z198: 88.09697622 | AA198: 80.47790123 | AB198: 75.87813848 | AC198: 74.48691498 | AD198: 68.93541186 | AE198: 63.23199806 | AF198: 61.22878187
A199: LRKPCLGS | B199: 101519 | C199: 1 | D199: 2400 | E199: 60 | F199: 1 | G199: 1 | H199: KW | I199: 61.81046457 | J199: 56.70459654 | K199: 54.55391054 | L199: 54.71292498 | M199: 62.73295879 | N199: 71.02502678 | O199: 95.25505397 | P199: 114.5285176 | Q199: 121.5381617 | R199: 123.8496842 | S199: 126.5052639 | T199: 121.3286163 | U199: 122.4723953 | V199: 124.5687597 | W199: 121.9718986 | X199: 114.7198524 | Y199: 95.75436924 | Z199: 90.2092618 | AA199: 77.96102953 | AB199: 76.59604576 | AC199: 76.21604715 | AD199: 72.76483747 | AE199: 69.70365189 | AF199: 67.63371937
A200: LRKPCLGS | B200: 101619 | C200: 1 | D200: 2400 | E200: 60 | F200: 1 | G200: 1 | H200: KW | I200: 65.3996888 | J200: 56.84889996 | K200: 53.57566908 | L200: 54.49804895 | M200: 62.07974387 | N200: 69.96076779 | O200: 87.72293409 | P200: 103.4072507 | Q200: 112.7229689 | R200: 114.5291946 | S200: 116.5482732 | T200: 112.9196575 | U200: 111.3603255 | V200: 108.5580668 | W200: 109.5757734 | X200: 100.1015669 | Y200: 88.19952665 | Z200: 83.06696865 | AA200: 75.24896927 | AB200: 70.79161815 | AC200: 68.04860289 | AD200: 67.08661536 | AE200: 65.01759034 | AF200: 62.18859318
... 167 more rows

Sheet Expanded kW
A1: Month | B1: Holiday? | C1: On or Off Peak | D1: Date/Time | E1: Class | F1: Demand | G1: Monthly Weight | H1: Expanded | J1: Load shape in local time. | N1: Solar PV Gen Profile | O1: Solar LGS Sec Profile | P1: Solar Monthly Weight | Q1: Solar LGS Sec Hourly Loads | R1: Revised LSG Sec Hourly Loads
A2: =MONTH(D2) -> 4 | B2: =IF(ISNA(VLOOKUP(DATE(YEAR(D2),MONTH(D2),DAY(D2)),Holidays,1,FALSE)),FALSE,TRUE) -> FALSE | C2: =IF(OR(HOUR(D2)<PkStart,HOUR(D2)>OPkStart-1,WEEKDAY(D2,2)>5,B2)=TRUE,"OFF","ON") -> OFF | D2: =TYBegin -> 2019-04-01 | E2: ='LR 8760 Loads'!A2 -> LRKPCLGS | F2: 60.66617966 | G2: =IF(SUMIF($A$2:$A$8785,A2,$F$2:$F$8785)=0,0,F2/SUMIF($A$2:$A$8785,A2,$F$2:$F$8785)) -> 0.001069321398 | H2: =G2*SUMIF('Manual Inputs'!$B$11:$B$22,'Expanded kW'!A2,'Manual Inputs'!$C$11:$C$22) -> 30632.46627 | N2: ='Solar Profile'!B2 -> 0 | O2: =F2-N2 -> 60.66617966 | P2: =IF(SUMIF($A$2:$A$8785,A2,$O$2:$O$8785)=0,0,O2/SUMIF($A$2:$A$8785,A2,$O$2:$O$8785)) -> 0.001144481623 | Q2: =P2*SUMIF('Manual Inputs'!$B$11:$B$22,'Expanded kW'!A2,'Manual Inputs'!$L$11:$L$22) -> 0 | R2: =H2-Q2 -> 30632.46627
A3: 4 | B3: FALSE | C3: OFF | D3: =+D2+1/24 -> 2019-04-01T01:00:00 | E3: =+E2 -> LRKPCLGS | F3: 60.16664505 | G3: 0.001060516442 | H3: =G3*SUMIF('Manual Inputs'!$B$11:$B$22,'Expanded kW'!A3,'Manual Inputs'!$C$11:$C$22) -> 30380.23385 | N3: ='Solar Profile'!B3 -> 0 | O3: =F3-N3 -> 60.16664505 | P3: =IF(SUMIF($A$2:$A$8785,A3,$O$2:$O$8785)=0,0,O3/SUMIF($A$2:$A$8785,A3,$O$2:$O$8785)) -> 0.001135057786 | Q3: =P3*SUMIF('Manual Inputs'!$B$11:$B$22,'Expanded kW'!A3,'Manual Inputs'!$L$11:$L$22) -> 0 | R3: =H3-Q3 -> 30380.23385
A4: 4 | B4: FALSE | C4: OFF | D4: =+D3+1/24 -> 2019-04-01T02:00:00 | E4: =+E3 -> LRKPCLGS | F4: 62.72756577 | G4: 0.001105656046 | H4: =G4*SUMIF('Manual Inputs'!$B$11:$B$22,'Expanded kW'!A4,'Manual Inputs'!$C$11:$C$22) -> 31673.33188 | N4: ='Solar Profile'!B4 -> 0 | O4: 62.72756577 | P4: 0.001183370153 | Q4: =P4*SUMIF('Manual Inputs'!$B$11:$B$22,'Expanded kW'!A4,'Manual Inputs'!$L$11:$L$22) -> 0 | R4: 31673.33188
A5: 4 | B5: FALSE | C5: OFF | D5: 2019-04-01T03:00:00 | E5: LRKPCLGS | F5: 66.85674286 | G5: 0.001178438236 | H5: =G5*SUMIF('Manual Inputs'!$B$11:$B$22,'Expanded kW'!A5,'Manual Inputs'!$C$11:$C$22) -> 33758.29716 | N5: ='Solar Profile'!B5 -> 0 | O5: 66.85674286 | P5: 0.001261268041 | Q5: =P5*SUMIF('Manual Inputs'!$B$11:$B$22,'Expanded kW'!A5,'Manual Inputs'!$L$11:$L$22) -> 0 | R5: 33758.29716
A6: 4 | B6: FALSE | C6: OFF | D6: 2019-04-01T04:00:00 | E6: LRKPCLGS | F6: 73.37005615 | G6: 0.00129324397 | H6: =G6*SUMIF('Manual Inputs'!$B$11:$B$22,'Expanded kW'!A6,'Manual Inputs'!$C$11:$C$22) -> 37047.09581 | N6: ='Solar Profile'!B6 -> 0 | O6: 73.37005615 | P6: 0.001384143215 | Q6: =P6*SUMIF('Manual Inputs'!$B$11:$B$22,'Expanded kW'!A6,'Manual Inputs'!$L$11:$L$22) -> 0 | R6: 37047.09581
A7: 4 | B7: FALSE | C7: OFF | D7: 2019-04-01T05:00:00 | E7: LRKPCLGS | F7: 82.97503662 | G7: 0.001462544413 | H7: =G7*SUMIF('Manual Inputs'!$B$11:$B$22,'Expanded kW'!A7,'Manual Inputs'!$C$11:$C$22) -> 41896.98486 | N7: ='Solar Profile'!B7 -> 0 | O7: 82.97503662 | P7: 0.001565343411 | Q7: =P7*SUMIF('Manual Inputs'!$B$11:$B$22,'Expanded kW'!A7,'Manual Inputs'!$L$11:$L$22) -> 0 | R7: 41896.98486
A8: 4 | B8: FALSE | C8: OFF | D8: 2019-04-01T06:00:00 | E8: LRKPCLGS | F8: 102.0417938 | G8: 0.001798621146 | H8: =G8*SUMIF('Manual Inputs'!$B$11:$B$22,'Expanded kW'!A8,'Manual Inputs'!$C$11:$C$22) -> 51524.4544 | N8: ='Solar Profile'!B8 -> 0.026061 | O8: 102.0157328 | P8: 0.001924550584 | Q8: =P8*SUMIF('Manual Inputs'!$B$11:$B$22,'Expanded kW'!A8,'Manual Inputs'!$L$11:$L$22) -> 0 | R8: 51524.4544
A9: 4 | B9: FALSE | C9: ON | D9: 2019-04-01T07:00:00 | E9: LRKPCLGS | F9: 122.7547379 | G9: 0.002163714092 | H9: =G9*SUMIF('Manual Inputs'!$B$11:$B$22,'Expanded kW'!A9,'Manual Inputs'!$C$11:$C$22) -> 61983.14098 | N9: ='Solar Profile'!B9 -> 2.921589 | O9: 119.8331489 | P9: 0.002260680291 | Q9: =P9*SUMIF('Manual Inputs'!$B$11:$B$22,'Expanded kW'!A9,'Manual Inputs'!$L$11:$L$22) -> 0 | R9: 61983.14098
A10: 4 | B10: FALSE | C10: ON | D10: 2019-04-01T08:00:00 | E10: LRKPCLGS | F10: 128.5135956 | G10: 0.002265221552 | H10: =G10*SUMIF('Manual Inputs'!$B$11:$B$22,'Expanded kW'!A10,'Manual Inputs'!$C$11:$C$22) -> 64890.98875 | N10: ='Solar Profile'!B10 -> 7.700282 | O10: 120.8133136 | P10: 0.002279171327 | Q10: =P10*SUMIF('Manual Inputs'!$B$11:$B$22,'Expanded kW'!A10,'Manual Inputs'!$L$11:$L$22) -> 0 | R10: 64890.98875
A11: 4 | B11: FALSE | C11: ON | D11: 2019-04-01T09:00:00 | E11: LRKPCLGS | F11: 132.456665 | G11: 0.00233472335 | H11: =G11*SUMIF('Manual Inputs'!$B$11:$B$22,'Expanded kW'!A11,'Manual Inputs'!$C$11:$C$22) -> 66881.9818 | N11: ='Solar Profile'!B11 -> 7.988626 | O11: 124.468039 | P11: 0.002348118575 | Q11: =P11*SUMIF('Manual Inputs'!$B$11:$B$22,'Expanded kW'!A11,'Manual Inputs'!$L$11:$L$22) -> 0 | R11: 66881.9818
A12: 4 | B12: FALSE | C12: ON | D12: 2019-04-01T10:00:00 | E12: LRKPCLGS | F12: 130.809021 | G12: 0.002305681452 | H12: =G12*SUMIF('Manual Inputs'!$B$11:$B$22,'Expanded kW'!A12,'Manual Inputs'!$C$11:$C$22) -> 66050.02896 | N12: ='Solar Profile'!B12 -> 6.897571 | O12: 123.91145 | P12: 0.002337618393 | Q12: =P12*SUMIF('Manual Inputs'!$B$11:$B$22,'Expanded kW'!A12,'Manual Inputs'!$L$11:$L$22) -> 0 | R12: 66050.02896
A13: 4 | B13: FALSE | C13: ON | D13: 2019-04-01T11:00:00 | E13: LRKPCLGS | F13: 129.0268402 | G13: 0.002274268166 | H13: =G13*SUMIF('Manual Inputs'!$B$11:$B$22,'Expanded kW'!A13,'Manual Inputs'!$C$11:$C$22) -> 65150.14383 | N13: ='Solar Profile'!B13 -> 12.917722 | O13: 116.1091182 | P13: 0.002190425585 | Q13: =P13*SUMIF('Manual Inputs'!$B$11:$B$22,'Expanded kW'!A13,'Manual Inputs'!$L$11:$L$22) -> 0 | R13: 65150.14383
A14: 4 | B14: FALSE | C14: ON | D14: 2019-04-01T12:00:00 | E14: LRKPCLGS | F14: 121.076355 | G14: 0.002134130382 | H14: =G14*SUMIF('Manual Inputs'!$B$11:$B$22,'Expanded kW'!A14,'Manual Inputs'!$C$11:$C$22) -> 61135.66704 | N14: ='Solar Profile'!B14 -> 15.720743 | O14: 105.355612 | P14: 0.001987558183 | Q14: =P14*SUMIF('Manual Inputs'!$B$11:$B$22,'Expanded kW'!A14,'Manual Inputs'!$L$11:$L$22) -> 0 | R14: 61135.66704
A15: 4 | B15: FALSE | C15: ON | D15: 2019-04-01T13:00:00 | E15: LRKPCLGS | F15: 120.8733902 | G15: 0.00213055286 | H15: =G15*SUMIF('Manual Inputs'!$B$11:$B$22,'Expanded kW'!A15,'Manual Inputs'!$C$11:$C$22) -> 61033.18305 | N15: ='Solar Profile'!B15 -> 17.703271 | O15: 103.1701192 | P15: 0.001946328352 | Q15: =P15*SUMIF('Manual Inputs'!$B$11:$B$22,'Expanded kW'!A15,'Manual Inputs'!$L$11:$L$22) -> 0 | R15: 61033.18305
A16: 4 | B16: FALSE | C16: ON | D16: 2019-04-01T14:00:00 | E16: LRKPCLGS | F16: 116.8686829 | G16: 0.002059964613 | H16: =G16*SUMIF('Manual Inputs'!$B$11:$B$22,'Expanded kW'!A16,'Manual Inputs'!$C$11:$C$22) -> 59011.06689 | N16: ='Solar Profile'!B16 -> 13.018922 | O16: 103.8497609 | P16: 0.00195914995 | Q16: =P16*SUMIF('Manual Inputs'!$B$11:$B$22,'Expanded kW'!A16,'Manual Inputs'!$L$11:$L$22) -> 0 | R16: 59011.06689
A17: 4 | B17: FALSE | C17: ON | D17: 2019-04-01T15:00:00 | E17: LRKPCLGS | F17: 115.9737549 | G17: 0.002044190328 | H17: =G17*SUMIF('Manual Inputs'!$B$11:$B$22,'Expanded kW'!A17,'Manual Inputs'!$C$11:$C$22) -> 58559.18659 | N17: ='Solar Profile'!B17 -> 10.591402 | O17: 105.3823529 | P17: 0.001988062656 | Q17: =P17*SUMIF('Manual Inputs'!$B$11:$B$22,'Expanded kW'!A17,'Manual Inputs'!$L$11:$L$22) -> 0 | R17: 58559.18659
A18: 4 | B18: FALSE | C18: ON | D18: 2019-04-01T16:00:00 | E18: LRKPCLGS | F18: 98.93839264 | G18: 0.001743919609 | H18: =G18*SUMIF('Manual Inputs'!$B$11:$B$22,'Expanded kW'!A18,'Manual Inputs'!$C$11:$C$22) -> 49957.43909 | N18: ='Solar Profile'!B18 -> 7.366215 | O18: 91.57217764 | P18: 0.00172753048 | Q18: =P18*SUMIF('Manual Inputs'!$B$11:$B$22,'Expanded kW'!A18,'Manual Inputs'!$L$11:$L$22) -> 0 | R18: 49957.43909
A19: 4 | B19: FALSE | C19: ON | D19: 2019-04-01T17:00:00 | E19: LRKPCLGS | F19: 90.14536285 | G19: 0.001588930866 | H19: =G19*SUMIF('Manual Inputs'!$B$11:$B$22,'Expanded kW'!A19,'Manual Inputs'!$C$11:$C$22) -> 45517.53221 | N19: ='Solar Profile'!B19 -> 4.160885 | O19: 85.98447785 | P19: 0.001622117221 | Q19: =P19*SUMIF('Manual Inputs'!$B$11:$B$22,'Expanded kW'!A19,'Manual Inputs'!$L$11:$L$22) -> 0 | R19: 45517.53221
A20: 4 | B20: FALSE | C20: ON | D20: 2019-04-01T18:00:00 | E20: LRKPCLGS | F20: 78.73184967 | G20: 0.001387752649 | H20: =G20*SUMIF('Manual Inputs'!$B$11:$B$22,'Expanded kW'!A20,'Manual Inputs'!$C$11:$C$22) -> 39754.45203 | N20: ='Solar Profile'!B20 -> 0.573784 | O20: 78.15806567 | P20: 0.001474470131 | Q20: =P20*SUMIF('Manual Inputs'!$B$11:$B$22,'Expanded kW'!A20,'Manual Inputs'!$L$11:$L$22) -> 0 | R20: 39754.45203
A21: 4 | B21: FALSE | C21: ON | D21: 2019-04-01T19:00:00 | E21: LRKPCLGS | F21: 79.98645782 | G21: 0.001409866772 | H21: =G21*SUMIF('Manual Inputs'!$B$11:$B$22,'Expanded kW'!A21,'Manual Inputs'!$C$11:$C$22) -> 40387.94737 | N21: ='Solar Profile'!B21 -> 0 | O21: 79.98645782 | P21: 0.001508963175 | Q21: =P21*SUMIF('Manual Inputs'!$B$11:$B$22,'Expanded kW'!A21,'Manual Inputs'!$L$11:$L$22) -> 0 | R21: 40387.94737
A22: 4 | B22: FALSE | C22: ON | D22: 2019-04-01T20:00:00 | E22: LRKPCLGS | F22: 78.99051666 | G22: 0.001392311996 | H22: =G22*SUMIF('Manual Inputs'!$B$11:$B$22,'Expanded kW'!A22,'Manual Inputs'!$C$11:$C$22) -> 39885.062 | N22: ='Solar Profile'!B22 -> 0 | O22: 78.99051666 | P22: 0.001490174513 | Q22: =P22*SUMIF('Manual Inputs'!$B$11:$B$22,'Expanded kW'!A22,'Manual Inputs'!$L$11:$L$22) -> 0 | R22: 39885.062
A23: 4 | B23: FALSE | C23: OFF | D23: 2019-04-01T21:00:00 | E23: LRKPCLGS | F23: 75.58786774 | G23: 0.001332335823 | H23: =G23*SUMIF('Manual Inputs'!$B$11:$B$22,'Expanded kW'!A23,'Manual Inputs'!$C$11:$C$22) -> 38166.9461 | N23: ='Solar Profile'!B23 -> 0 | O23: 75.58786774 | P23: 0.001425982748 | Q23: =P23*SUMIF('Manual Inputs'!$B$11:$B$22,'Expanded kW'!A23,'Manual Inputs'!$L$11:$L$22) -> 0 | R23: 38166.9461
A24: 4 | B24: FALSE | C24: OFF | D24: 2019-04-01T22:00:00 | E24: LRKPCLGS | F24: 74.68496704 | G24: 0.001316421008 | H24: =G24*SUMIF('Manual Inputs'!$B$11:$B$22,'Expanded kW'!A24,'Manual Inputs'!$C$11:$C$22) -> 37711.0401 | N24: ='Solar Profile'!B24 -> 0 | O24: 74.68496704 | P24: 0.001408949315 | Q24: =P24*SUMIF('Manual Inputs'!$B$11:$B$22,'Expanded kW'!A24,'Manual Inputs'!$L$11:$L$22) -> 0 | R24: 37711.0401
A25: 4 | B25: FALSE | C25: OFF | D25: 2019-04-01T23:00:00 | E25: LRKPCLGS | F25: 70.64880371 | G25: 0.001245278308 | H25: =G25*SUMIF('Manual Inputs'!$B$11:$B$22,'Expanded kW'!A25,'Manual Inputs'!$C$11:$C$22) -> 35673.04071 | N25: ='Solar Profile'!B25 -> 0 | O25: 70.64880371 | P25: 0.001332806153 | Q25: =P25*SUMIF('Manual Inputs'!$B$11:$B$22,'Expanded kW'!A25,'Manual Inputs'!$L$11:$L$22) -> 0 | R25: 35673.04071
A26: 4 | B26: FALSE | C26: OFF | D26: 2019-04-02 | E26: LRKPCLGS | F26: 68.40402985 | G26: 0.001205711209 | H26: =G26*SUMIF('Manual Inputs'!$B$11:$B$22,'Expanded kW'!A26,'Manual Inputs'!$C$11:$C$22) -> 34539.57623 | N26: ='Solar Profile'!B26 -> 0 | O26: 68.40402985 | P26: 0.001290457971 | Q26: =P26*SUMIF('Manual Inputs'!$B$11:$B$22,'Expanded kW'!A26,'Manual Inputs'!$L$11:$L$22) -> 0 | R26: 34539.57623
A27: 4 | B27: FALSE | C27: OFF | D27: 2019-04-02T01:00:00 | E27: LRKPCLGS | F27: 69.32961273 | G27: 0.001222025827 | H27: =G27*SUMIF('Manual Inputs'!$B$11:$B$22,'Expanded kW'!A27,'Manual Inputs'!$C$11:$C$22) -> 35006.93526 | N27: ='Solar Profile'!B27 -> 0 | O27: 69.32961273 | P27: 0.001307919308 | Q27: =P27*SUMIF('Manual Inputs'!$B$11:$B$22,'Expanded kW'!A27,'Manual Inputs'!$L$11:$L$22) -> 0 | R27: 35006.93526
A28: 4 | B28: FALSE | C28: OFF | D28: 2019-04-02T02:00:00 | E28: LRKPCLGS | F28: 70.84576416 | G28: 0.001248749995 | H28: =G28*SUMIF('Manual Inputs'!$B$11:$B$22,'Expanded kW'!A28,'Manual Inputs'!$C$11:$C$22) -> 35772.4929 | N28: ='Solar Profile'!B28 -> 0 | O28: 70.84576416 | P28: 0.001336521858 | Q28: =P28*SUMIF('Manual Inputs'!$B$11:$B$22,'Expanded kW'!A28,'Manual Inputs'!$L$11:$L$22) -> 0 | R28: 35772.4929
A29: 4 | B29: FALSE | C29: OFF | D29: 2019-04-02T03:00:00 | E29: LRKPCLGS | F29: 75.03542328 | G29: 0.001322598261 | H29: =G29*SUMIF('Manual Inputs'!$B$11:$B$22,'Expanded kW'!A29,'Manual Inputs'!$C$11:$C$22) -> 37887.99765 | N29: ='Solar Profile'!B29 -> 0 | O29: 75.03542328 | P29: 0.001415560754 | Q29: =P29*SUMIF('Manual Inputs'!$B$11:$B$22,'Expanded kW'!A29,'Manual Inputs'!$L$11:$L$22) -> 0 | R29: 37887.99765
A30: 4 | B30: FALSE | C30: OFF | D30: 2019-04-02T04:00:00 | E30: LRKPCLGS | F30: 78.38716125 | G30: 0.001381677061 | H30: =G30*SUMIF('Manual Inputs'!$B$11:$B$22,'Expanded kW'!A30,'Manual Inputs'!$C$11:$C$22) -> 39580.40685 | N30: ='Solar Profile'!B30 -> 0 | O30: 78.38716125 | P30: 0.001478792072 | Q30: =P30*SUMIF('Manual Inputs'!$B$11:$B$22,'Expanded kW'!A30,'Manual Inputs'!$L$11:$L$22) -> 0 | R30: 39580.40685
A31: 4 | B31: FALSE | C31: OFF | D31: 2019-04-02T05:00:00 | E31: LRKPCLGS | F31: 87.21469116 | G31: 0.001537273914 | H31: =G31*SUMIF('Manual Inputs'!$B$11:$B$22,'Expanded kW'!A31,'Manual Inputs'!$C$11:$C$22) -> 44037.73404 | N31: ='Solar Profile'!B31 -> 0 | O31: 87.21469116 | P31: 0.001645325482 | Q31: =P31*SUMIF('Manual Inputs'!$B$11:$B$22,'Expanded kW'!A31,'Manual Inputs'!$L$11:$L$22) -> 0 | R31: 44037.73404
A32: 4 | B32: FALSE | C32: OFF | D32: 2019-04-02T06:00:00 | E32: LRKPCLGS | F32: 103.632843 | G32: 0.001826665486 | H32: =G32*SUMIF('Manual Inputs'!$B$11:$B$22,'Expanded kW'!A32,'Manual Inputs'!$C$11:$C$22) -> 52327.83053 | N32: ='Solar Profile'!B32 -> 0.172195 | O32: 103.460648 | P32: 0.001951809246 | Q32: =P32*SUMIF('Manual Inputs'!$B$11:$B$22,'Expanded kW'!A32,'Manual Inputs'!$L$11:$L$22) -> 0 | R32: 52327.83053
A33: 4 | B33: FALSE | C33: ON | D33: 2019-04-02T07:00:00 | E33: LRKPCLGS | F33: 124.4160309 | G33: 0.002192996572 | H33: =G33*SUMIF('Manual Inputs'!$B$11:$B$22,'Expanded kW'!A33,'Manual Inputs'!$C$11:$C$22) -> 62821.98567 | N33: ='Solar Profile'!B33 -> 2.34452 | O33: 122.0715109 | P33: 0.002302907513 | Q33: =P33*SUMIF('Manual Inputs'!$B$11:$B$22,'Expanded kW'!A33,'Manual Inputs'!$L$11:$L$22) -> 0 | R33: 62821.98567
A34: 4 | B34: FALSE | C34: ON | D34: 2019-04-02T08:00:00 | E34: LRKPCLGS | F34: 127.4020844 | G34: 0.002245629701 | H34: =G34*SUMIF('Manual Inputs'!$B$11:$B$22,'Expanded kW'!A34,'Manual Inputs'!$C$11:$C$22) -> 64329.74803 | N34: ='Solar Profile'!B34 -> 7.440935 | O34: 119.9611494 | P34: 0.00226309505 | Q34: =P34*SUMIF('Manual Inputs'!$B$11:$B$22,'Expanded kW'!A34,'Manual Inputs'!$L$11:$L$22) -> 0 | R34: 64329.74803
A35: 4 | B35: FALSE | C35: ON | D35: 2019-04-02T09:00:00 | E35: LRKPCLGS | F35: 133.2863617 | G35: 0.002349347847 | H35: =G35*SUMIF('Manual Inputs'!$B$11:$B$22,'Expanded kW'!A35,'Manual Inputs'!$C$11:$C$22) -> 67300.92453 | N35: ='Solar Profile'!B35 -> 15.542714 | O35: 117.7436477 | P35: 0.002221261365 | Q35: =P35*SUMIF('Manual Inputs'!$B$11:$B$22,'Expanded kW'!A35,'Manual Inputs'!$L$11:$L$22) -> 0 | R35: 67300.92453
A36: 4 | B36: FALSE | C36: ON | D36: 2019-04-02T10:00:00 | E36: LRKPCLGS | F36: 129.075119 | G36: 0.002275119143 | H36: =G36*SUMIF('Manual Inputs'!$B$11:$B$22,'Expanded kW'!A36,'Manual Inputs'!$C$11:$C$22) -> 65174.52148 | N36: ='Solar Profile'!B36 -> 14.231023 | O36: 114.844096 | P36: 0.002166560646 | Q36: =P36*SUMIF('Manual Inputs'!$B$11:$B$22,'Expanded kW'!A36,'Manual Inputs'!$L$11:$L$22) -> 0 | R36: 65174.52148
A37: 4 | B37: FALSE | C37: ON | D37: 2019-04-02T11:00:00 | E37: LRKPCLGS | F37: 123.4887543 | G37: 0.0021766521 | H37: =G37*SUMIF('Manual Inputs'!$B$11:$B$22,'Expanded kW'!A37,'Manual Inputs'!$C$11:$C$22) -> 62353.77143 | N37: ='Solar Profile'!B37 -> 15.738141 | O37: 107.7506133 | P37: 0.002032740441 | Q37: =P37*SUMIF('Manual Inputs'!$B$11:$B$22,'Expanded kW'!A37,'Manual Inputs'!$L$11:$L$22) -> 0 | R37: 62353.77143
A38: 4 | B38: FALSE | C38: ON | D38: 2019-04-02T12:00:00 | E38: LRKPCLGS | F38: 121.8977966 | G38: 0.002148609374 | H38: =G38*SUMIF('Manual Inputs'!$B$11:$B$22,'Expanded kW'!A38,'Manual Inputs'!$C$11:$C$22) -> 61550.44152 | N38: ='Solar Profile'!B38 -> 15.320841 | O38: 106.5769556 | P38: 0.002010599115 | Q38: =P38*SUMIF('Manual Inputs'!$B$11:$B$22,'Expanded kW'!A38,'Manual Inputs'!$L$11:$L$22) -> 0 | R38: 61550.44152
A39: 4 | B39: FALSE | C39: ON | D39: 2019-04-02T13:00:00 | E39: LRKPCLGS | F39: 121.3628845 | G39: 0.002139180843 | H39: =G39*SUMIF('Manual Inputs'!$B$11:$B$22,'Expanded kW'!A39,'Manual Inputs'!$C$11:$C$22) -> 61280.34578 | N39: ='Solar Profile'!B39 -> 21.542305 | O39: 99.82057952 | P39: 0.001883138505 | Q39: =P39*SUMIF('Manual Inputs'!$B$11:$B$22,'Expanded kW'!A39,'Manual Inputs'!$L$11:$L$22) -> 0 | R39: 61280.34578
A40: 4 | B40: FALSE | C40: ON | D40: 2019-04-02T14:00:00 | E40: LRKPCLGS | F40: 117.705658 | G40: 0.002074717403 | H40: =G40*SUMIF('Manual Inputs'!$B$11:$B$22,'Expanded kW'!A40,'Manual Inputs'!$C$11:$C$22) -> 59433.68476 | N40: ='Solar Profile'!B40 -> 19.374912 | O40: 98.33074596 | P40: 0.001855032447 | Q40: =P40*SUMIF('Manual Inputs'!$B$11:$B$22,'Expanded kW'!A40,'Manual Inputs'!$L$11:$L$22) -> 0 | R40: 59433.68476
A41: 4 | B41: FALSE | C41: ON | D41: 2019-04-02T15:00:00 | E41: LRKPCLGS | F41: 112.6074448 | G41: 0.001984854674 | H41: =G41*SUMIF('Manual Inputs'!$B$11:$B$22,'Expanded kW'!A41,'Manual Inputs'!$C$11:$C$22) -> 56859.41941 | N41: ='Solar Profile'!B41 -> 5.726859 | O41: 106.8805858 | P41: 0.002016327169 | Q41: =P41*SUMIF('Manual Inputs'!$B$11:$B$22,'Expanded kW'!A41,'Manual Inputs'!$L$11:$L$22) -> 0 | R41: 56859.41941
A42: 4 | B42: FALSE | C42: ON | D42: 2019-04-02T16:00:00 | E42: LRKPCLGS | F42: 100.0010757 | G42: 0.0017626508 | H42: =G42*SUMIF('Manual Inputs'!$B$11:$B$22,'Expanded kW'!A42,'Manual Inputs'!$C$11:$C$22) -> 50494.02479 | N42: ='Solar Profile'!B42 -> 11.467943 | O42: 88.53313274 | P42: 0.00167019819 | Q42: =P42*SUMIF('Manual Inputs'!$B$11:$B$22,'Expanded kW'!A42,'Manual Inputs'!$L$11:$L$22) -> 0 | R42: 50494.02479
A43: 4 | B43: FALSE | C43: ON | D43: 2019-04-02T17:00:00 | E43: LRKPCLGS | F43: 86.92521667 | G43: 0.001532171545 | H43: =G43*SUMIF('Manual Inputs'!$B$11:$B$22,'Expanded kW'!A43,'Manual Inputs'!$C$11:$C$22) -> 43891.5683 | N43: ='Solar Profile'!B43 -> 5.412535 | O43: 81.51268167 | P43: 0.001537755744 | Q43: =P43*SUMIF('Manual Inputs'!$B$11:$B$22,'Expanded kW'!A43,'Manual Inputs'!$L$11:$L$22) -> 0 | R43: 43891.5683
A44: 4 | B44: FALSE | C44: ON | D44: 2019-04-02T18:00:00 | E44: LRKPCLGS | F44: 76.95115662 | G44: 0.001356365586 | H44: =G44*SUMIF('Manual Inputs'!$B$11:$B$22,'Expanded kW'!A44,'Manual Inputs'!$C$11:$C$22) -> 38855.31811 | N44: ='Solar Profile'!B44 -> 0.688922 | O44: 76.26223462 | P44: 0.001438704836 | Q44: =P44*SUMIF('Manual Inputs'!$B$11:$B$22,'Expanded kW'!A44,'Manual Inputs'!$L$11:$L$22) -> 0 | R44: 38855.31811
A45: 4 | B45: FALSE | C45: ON | D45: 2019-04-02T19:00:00 | E45: LRKPCLGS | F45: 75.54541016 | G45: 0.001331587452 | H45: =G45*SUMIF('Manual Inputs'!$B$11:$B$22,'Expanded kW'!A45,'Manual Inputs'!$C$11:$C$22) -> 38145.50778 | N45: ='Solar Profile'!B45 -> 0 | O45: 75.54541016 | P45: 0.001425181775 | Q45: =P45*SUMIF('Manual Inputs'!$B$11:$B$22,'Expanded kW'!A45,'Manual Inputs'!$L$11:$L$22) -> 0 | R45: 38145.50778
A46: 4 | B46: FALSE | C46: ON | D46: 2019-04-02T20:00:00 | E46: LRKPCLGS | F46: 75.29312134 | G46: 0.001327140529 | H46: =G46*SUMIF('Manual Inputs'!$B$11:$B$22,'Expanded kW'!A46,'Manual Inputs'!$C$11:$C$22) -> 38018.11838 | N46: ='Solar Profile'!B46 -> 0 | O46: 75.29312134 | P46: 0.001420422288 | Q46: =P46*SUMIF('Manual Inputs'!$B$11:$B$22,'Expanded kW'!A46,'Manual Inputs'!$L$11:$L$22) -> 0 | R46: 38018.11838
A47: 4 | B47: FALSE | C47: OFF | D47: 2019-04-02T21:00:00 | E47: LRKPCLGS | F47: 70.92926788 | G47: 0.001250221858 | H47: =G47*SUMIF('Manual Inputs'!$B$11:$B$22,'Expanded kW'!A47,'Manual Inputs'!$C$11:$C$22) -> 35814.65683 | N47: ='Solar Profile'!B47 -> 0 | O47: 70.92926788 | P47: 0.001338097175 | Q47: =P47*SUMIF('Manual Inputs'!$B$11:$B$22,'Expanded kW'!A47,'Manual Inputs'!$L$11:$L$22) -> 0 | R47: 35814.65683
A48: 4 | B48: FALSE | C48: OFF | D48: 2019-04-02T22:00:00 | E48: LRKPCLGS | F48: 67.80526733 | G48: 0.00119515723 | H48: =G48*SUMIF('Manual Inputs'!$B$11:$B$22,'Expanded kW'!A48,'Manual Inputs'!$C$11:$C$22) -> 34237.24019 | N48: ='Solar Profile'!B48 -> 0 | O48: 67.80526733 | P48: 0.001279162176 | Q48: =P48*SUMIF('Manual Inputs'!$B$11:$B$22,'Expanded kW'!A48,'Manual Inputs'!$L$11:$L$22) -> 0 | R48: 34237.24019
A49: 4 | B49: FALSE | C49: OFF | D49: 2019-04-02T23:00:00 | E49: LRKPCLGS | F49: 66.37499237 | G49: 0.001169946748 | H49: =G49*SUMIF('Manual Inputs'!$B$11:$B$22,'Expanded kW'!A49,'Manual Inputs'!$C$11:$C$22) -> 33515.04457 | N49: ='Solar Profile'!B49 -> 0 | O49: 66.37499237 | P49: 0.001252179706 | Q49: =P49*SUMIF('Manual Inputs'!$B$11:$B$22,'Expanded kW'!A49,'Manual Inputs'!$L$11:$L$22) -> 0 | R49: 33515.04457
A50: 4 | B50: FALSE | C50: OFF | D50: 2019-04-03 | E50: LRKPCLGS | F50: 64.01599121 | G50: 0.001128366243 | H50: =G50*SUMIF('Manual Inputs'!$B$11:$B$22,'Expanded kW'!A50,'Manual Inputs'!$C$11:$C$22) -> 32323.90275 | N50: ='Solar Profile'!B50 -> 0 | O50: 64.01599121 | P50: 0.001207676599 | Q50: =P50*SUMIF('Manual Inputs'!$B$11:$B$22,'Expanded kW'!A50,'Manual Inputs'!$L$11:$L$22) -> 0 | R50: 32323.90275
A51: 4 | B51: FALSE | C51: OFF | D51: 2019-04-03T01:00:00 | E51: LRKPCLGS | F51: 62.54080963 | G51: 0.001102364223 | H51: =G51*SUMIF('Manual Inputs'!$B$11:$B$22,'Expanded kW'!A51,'Manual Inputs'!$C$11:$C$22) -> 31579.03221 | N51: ='Solar Profile'!B51 -> 0 | O51: 62.54080963 | P51: 0.001179846955 | Q51: =P51*SUMIF('Manual Inputs'!$B$11:$B$22,'Expanded kW'!A51,'Manual Inputs'!$L$11:$L$22) -> 0 | R51: 31579.03221
A52: 4 | B52: FALSE | C52: OFF | D52: 2019-04-03T02:00:00 | E52: LRKPCLGS | F52: 66.5707016 | G52: 0.001173396381 | H52: =G52*SUMIF('Manual Inputs'!$B$11:$B$22,'Expanded kW'!A52,'Manual Inputs'!$C$11:$C$22) -> 33613.86497 | N52: ='Solar Profile'!B52 -> 0 | O52: 66.5707016 | P52: 0.001255871806 | Q52: =P52*SUMIF('Manual Inputs'!$B$11:$B$22,'Expanded kW'!A52,'Manual Inputs'!$L$11:$L$22) -> 0 | R52: 33613.86497
A53: 4 | B53: FALSE | C53: OFF | D53: 2019-04-03T03:00:00 | E53: LRKPCLGS | F53: 67.92728424 | G53: 0.001197307939 | H53: =G53*SUMIF('Manual Inputs'!$B$11:$B$22,'Expanded kW'!A53,'Manual Inputs'!$C$11:$C$22) -> 34298.85078 | N53: ='Solar Profile'!B53 -> 0 | O53: 67.92728424 | P53: 0.001281464054 | Q53: =P53*SUMIF('Manual Inputs'!$B$11:$B$22,'Expanded kW'!A53,'Manual Inputs'!$L$11:$L$22) -> 0 | R53: 34298.85078
A54: 4 | B54: FALSE | C54: OFF | D54: 2019-04-03T04:00:00 | E54: LRKPCLGS | F54: 74.75179291 | G54: 0.001317598902 | H54: =G54*SUMIF('Manual Inputs'!$B$11:$B$22,'Expanded kW'!A54,'Manual Inputs'!$C$11:$C$22) -> 37744.7828 | N54: ='Solar Profile'!B54 -> 0 | O54: 74.75179291 | P54: 0.001410210001 | Q54: =P54*SUMIF('Manual Inputs'!$B$11:$B$22,'Expanded kW'!A54,'Manual Inputs'!$L$11:$L$22) -> 0 | R54: 37744.7828
A55: 4 | B55: FALSE | C55: OFF | D55: 2019-04-03T05:00:00 | E55: LRKPCLGS | F55: 81.57550049 | G55: 0.001437875744 | H55: =G55*SUMIF('Manual Inputs'!$B$11:$B$22,'Expanded kW'!A55,'Manual Inputs'!$C$11:$C$22) -> 41190.31034 | N55: ='Solar Profile'!B55 -> 0 | O55: 81.57550049 | P55: 0.001538940835 | Q55: =P55*SUMIF('Manual Inputs'!$B$11:$B$22,'Expanded kW'!A55,'Manual Inputs'!$L$11:$L$22) -> 0 | R55: 41190.31034
A56: 4 | B56: FALSE | C56: OFF | D56: 2019-04-03T06:00:00 | E56: LRKPCLGS | F56: 100.3778458 | G56: 0.001769291868 | H56: =G56*SUMIF('Manual Inputs'!$B$11:$B$22,'Expanded kW'!A56,'Manual Inputs'!$C$11:$C$22) -> 50684.26909 | N56: ='Solar Profile'!B56 -> 0.082416 | O56: 100.2954298 | P56: 0.001892096666 | Q56: =P56*SUMIF('Manual Inputs'!$B$11:$B$22,'Expanded kW'!A56,'Manual Inputs'!$L$11:$L$22) -> 0 | R56: 50684.26909
A57: 4 | B57: FALSE | C57: ON | D57: 2019-04-03T07:00:00 | E57: LRKPCLGS | F57: 118.1951141 | G57: 0.002083344713 | H57: =G57*SUMIF('Manual Inputs'!$B$11:$B$22,'Expanded kW'!A57,'Manual Inputs'!$C$11:$C$22) -> 59680.82822 | N57: ='Solar Profile'!B57 -> 2.610514 | O57: 115.5846001 | P57: 0.002180530429 | Q57: =P57*SUMIF('Manual Inputs'!$B$11:$B$22,'Expanded kW'!A57,'Manual Inputs'!$L$11:$L$22) -> 0 | R57: 59680.82822
A58: 4 | B58: FALSE | C58: ON | D58: 2019-04-03T08:00:00 | E58: LRKPCLGS | F58: 124.4051971 | G58: 0.002192805613 | H58: =G58*SUMIF('Manual Inputs'!$B$11:$B$22,'Expanded kW'!A58,'Manual Inputs'!$C$11:$C$22) -> 62816.51534 | N58: ='Solar Profile'!B58 -> 10.537316 | O58: 113.8678811 | P58: 0.002148144125 | Q58: =P58*SUMIF('Manual Inputs'!$B$11:$B$22,'Expanded kW'!A58,'Manual Inputs'!$L$11:$L$22) -> 0 | R58: 62816.51534
A59: 4 | B59: FALSE | C59: ON | D59: 2019-04-03T09:00:00 | E59: LRKPCLGS | F59: 124.3021774 | G59: 0.002190989755 | H59: =G59*SUMIF('Manual Inputs'!$B$11:$B$22,'Expanded kW'!A59,'Manual Inputs'!$C$11:$C$22) -> 62764.4971 | N59: ='Solar Profile'!B59 -> 12.332813 | O59: 111.9693644 | P59: 0.002112328165 | Q59: =P59*SUMIF('Manual Inputs'!$B$11:$B$22,'Expanded kW'!A59,'Manual Inputs'!$L$11:$L$22) -> 0 | R59: 62764.4971
A60: 4 | B60: FALSE | C60: ON | D60: 2019-04-03T10:00:00 | E60: LRKPCLGS | F60: 117.8186188 | G60: 0.002076708486 | H60: =G60*SUMIF('Manual Inputs'!$B$11:$B$22,'Expanded kW'!A60,'Manual Inputs'!$C$11:$C$22) -> 59490.7226 | N60: ='Solar Profile'!B60 -> 16.595643 | O60: 101.2229758 | P60: 0.001909595037 | Q60: =P60*SUMIF('Manual Inputs'!$B$11:$B$22,'Expanded kW'!A60,'Manual Inputs'!$L$11:$L$22) -> 0 | R60: 59490.7226
A61: 4 | B61: FALSE | C61: ON | D61: 2019-04-03T11:00:00 | E61: LRKPCLGS | F61: 111.6761475 | G61: 0.001968439331 | H61: =G61*SUMIF('Manual Inputs'!$B$11:$B$22,'Expanded kW'!A61,'Manual Inputs'!$C$11:$C$22) -> 56389.17498 | N61: ='Solar Profile'!B61 -> 6.476186 | O61: 105.1999615 | P61: 0.001984621799 | Q61: =P61*SUMIF('Manual Inputs'!$B$11:$B$22,'Expanded kW'!A61,'Manual Inputs'!$L$11:$L$22) -> 0 | R61: 56389.17498
A62: 4 | B62: FALSE | C62: ON | D62: 2019-04-03T12:00:00 | E62: LRKPCLGS | F62: 108.6624908 | G62: 0.00191531966 | H62: =G62*SUMIF('Manual Inputs'!$B$11:$B$22,'Expanded kW'!A62,'Manual Inputs'!$C$11:$C$22) -> 54867.47483 | N62: ='Solar Profile'!B62 -> 13.873545 | O62: 94.78894584 | P62: 0.001788215563 | Q62: =P62*SUMIF('Manual Inputs'!$B$11:$B$22,'Expanded kW'!A62,'Manual Inputs'!$L$11:$L$22) -> 0 | R62: 54867.47483
A63: 4 | B63: FALSE | C63: ON | D63: 2019-04-03T13:00:00 | E63: LRKPCLGS | F63: 105.4207687 | G63: 0.001858180034 | H63: =G63*SUMIF('Manual Inputs'!$B$11:$B$22,'Expanded kW'!A63,'Manual Inputs'!$C$11:$C$22) -> 53230.61648 | N63: ='Solar Profile'!B63 -> 17.102678 | O63: 88.31809074 | P63: 0.001666141372 | Q63: =P63*SUMIF('Manual Inputs'!$B$11:$B$22,'Expanded kW'!A63,'Manual Inputs'!$L$11:$L$22) -> 0 | R63: 53230.61648
A64: 4 | B64: FALSE | C64: ON | D64: 2019-04-03T14:00:00 | E64: LRKPCLGS | F64: 101.2215042 | G64: 0.00178416246 | H64: =G64*SUMIF('Manual Inputs'!$B$11:$B$22,'Expanded kW'!A64,'Manual Inputs'!$C$11:$C$22) -> 51110.26161 | N64: ='Solar Profile'!B64 -> 19.176848 | O64: 82.04465621 | P64: 0.001547791567 | Q64: =P64*SUMIF('Manual Inputs'!$B$11:$B$22,'Expanded kW'!A64,'Manual Inputs'!$L$11:$L$22) -> 0 | R64: 51110.26161
A65: 4 | B65: FALSE | C65: ON | D65: 2019-04-03T15:00:00 | E65: LRKPCLGS | F65: 97.12666321 | G65: 0.001711985489 | H65: =G65*SUMIF('Manual Inputs'!$B$11:$B$22,'Expanded kW'!A65,'Manual Inputs'!$C$11:$C$22) -> 49042.63383 | N65: ='Solar Profile'!B65 -> 15.924569 | O65: 81.20209421 | P65: 0.001531896439 | Q65: =P65*SUMIF('Manual Inputs'!$B$11:$B$22,'Expanded kW'!A65,'Manual Inputs'!$L$11:$L$22) -> 0 | R65: 49042.63383
A66: =MONTH(D66) -> 4 | B66: =IF(ISNA(VLOOKUP(DATE(YEAR(D66),MONTH(D66),DAY(D66)),Holidays,1,FALSE)),FALSE,TRUE) -> FALSE | C66: =IF(OR(HOUR(D66)<PkStart,HOUR(D66)>OPkStart-1,WEEKDAY(D66,2)>5,B66)=TRUE,"OFF","ON") -> ON | D66: 2019-04-03T16:00:00 | E66: LRKPCLGS | F66: 85.36608887 | G66: =IF(SUMIF($A$2:$A$8785,A66,$F$2:$F$8785)=0,0,F66/SUMIF($A$2:$A$8785,A66,$F$2:$F$8785)) -> 0.001504689862 | H66: =G66*SUMIF('Manual Inputs'!$B$11:$B$22,'Expanded kW'!A66,'Manual Inputs'!$C$11:$C$22) -> 43104.31038 | N66: ='Solar Profile'!B66 -> 11.171401 | O66: 74.19468787 | P66: 0.001399700084 | Q66: =P66*SUMIF('Manual Inputs'!$B$11:$B$22,'Expanded kW'!A66,'Manual Inputs'!$L$11:$L$22) -> 0 | R66: 43104.31038
A67: 4 | B67: FALSE | C67: ON | D67: 2019-04-03T17:00:00 | E67: LRKPCLGS | F67: 76.25141907 | G67: 0.00134403179 | H67: =G67*SUMIF('Manual Inputs'!$B$11:$B$22,'Expanded kW'!A67,'Manual Inputs'!$C$11:$C$22) -> 38501.99626 | N67: ='Solar Profile'!B67 -> 5.331724 | O67: =F67-N67 -> 70.91969507 | P67: =IF(SUMIF($A$2:$A$8785,A67,$O$2:$O$8785)=0,0,O67/SUMIF($A$2:$A$8785,A67,$O$2:$O$8785)) -> 0.001337916582 | Q67: =P67*SUMIF('Manual Inputs'!$B$11:$B$22,'Expanded kW'!A67,'Manual Inputs'!$L$11:$L$22) -> 0 | R67: =H67-Q67 -> 38501.99626
A68: 4 | B68: FALSE | C68: ON | D68: =+D67+1/24 -> 2019-04-03T18:00:00 | E68: =+E67 -> LRKPCLGS | F68: 74.10892487 | G68: 0.001306267505 | H68: =G68*SUMIF('Manual Inputs'!$B$11:$B$22,'Expanded kW'!A68,'Manual Inputs'!$C$11:$C$22) -> 37420.17635 | N68: ='Solar Profile'!B68 -> 0.715735 | O68: 73.39318987 | P68: 0.001384579638 | Q68: =P68*SUMIF('Manual Inputs'!$B$11:$B$22,'Expanded kW'!A68,'Manual Inputs'!$L$11:$L$22) -> 0 | R68: 37420.17635
A69: 4 | B69: FALSE | C69: ON | D69: 2019-04-03T19:00:00 | E69: LRKPCLGS | F69: 70.84236145 | G69: 0.001248690018 | H69: =G69*SUMIF('Manual Inputs'!$B$11:$B$22,'Expanded kW'!A69,'Manual Inputs'!$C$11:$C$22) -> 35770.77475 | N69: ='Solar Profile'!B69 -> 0 | O69: 70.84236145 | P69: 0.001336457665 | Q69: =P69*SUMIF('Manual Inputs'!$B$11:$B$22,'Expanded kW'!A69,'Manual Inputs'!$L$11:$L$22) -> 0 | R69: 35770.77475
A70: 4 | B70: FALSE | C70: ON | D70: 2019-04-03T20:00:00 | E70: LRKPCLGS | F70: 68.12084198 | G70: 0.001200719649 | H70: =G70*SUMIF('Manual Inputs'!$B$11:$B$22,'Expanded kW'!A70,'Manual Inputs'!$C$11:$C$22) -> 34396.58482 | N70: ='Solar Profile'!B70 -> 0 | O70: 68.12084198 | P70: 0.001285115566 | Q70: =P70*SUMIF('Manual Inputs'!$B$11:$B$22,'Expanded kW'!A70,'Manual Inputs'!$L$11:$L$22) -> 0 | R70: 34396.58482
A71: 4 | B71: FALSE | C71: OFF | D71: 2019-04-03T21:00:00 | E71: LRKPCLGS | F71: 65.72059631 | G71: 0.001158412155 | H71: =G71*SUMIF('Manual Inputs'!$B$11:$B$22,'Expanded kW'!A71,'Manual Inputs'!$C$11:$C$22) -> 33184.61721 | N71: ='Solar Profile'!B71 -> 0 | O71: 65.72059631 | P71: 0.001239834372 | Q71: =P71*SUMIF('Manual Inputs'!$B$11:$B$22,'Expanded kW'!A71,'Manual Inputs'!$L$11:$L$22) -> 0 | R71: 33184.61721
A72: 4 | B72: FALSE | C72: OFF | D72: 2019-04-03T22:00:00 | E72: LRKPCLGS | F72: 64.10520172 | G72: 0.001129938696 | H72: =G72*SUMIF('Manual Inputs'!$B$11:$B$22,'Expanded kW'!A72,'Manual Inputs'!$C$11:$C$22) -> 32368.94824 | N72: ='Solar Profile'!B72 -> 0 | O72: 64.10520172 | P72: 0.001209359576 | Q72: =P72*SUMIF('Manual Inputs'!$B$11:$B$22,'Expanded kW'!A72,'Manual Inputs'!$L$11:$L$22) -> 0 | R72: 32368.94824
A73: 4 | B73: FALSE | C73: OFF | D73: 2019-04-03T23:00:00 | E73: LRKPCLGS | F73: 62.88191223 | G73: 0.001108376606 | H73: =G73*SUMIF('Manual Inputs'!$B$11:$B$22,'Expanded kW'!A73,'Manual Inputs'!$C$11:$C$22) -> 31751.26679 | N73: ='Solar Profile'!B73 -> 0 | O73: 62.88191223 | P73: 0.001186281935 | Q73: =P73*SUMIF('Manual Inputs'!$B$11:$B$22,'Expanded kW'!A73,'Manual Inputs'!$L$11:$L$22) -> 0 | R73: 31751.26679
A74: 4 | B74: FALSE | C74: OFF | D74: 2019-04-04 | E74: LRKPCLGS | F74: 61.60380936 | G74: 0.001085848357 | H74: =G74*SUMIF('Manual Inputs'!$B$11:$B$22,'Expanded kW'!A74,'Manual Inputs'!$C$11:$C$22) -> 31105.90815 | N74: ='Solar Profile'!B74 -> 0 | O74: 61.60380936 | P74: 0.001162170226 | Q74: =P74*SUMIF('Manual Inputs'!$B$11:$B$22,'Expanded kW'!A74,'Manual Inputs'!$L$11:$L$22) -> 0 | R74: 31105.90815
A75: 4 | B75: FALSE | C75: OFF | D75: 2019-04-04T01:00:00 | E75: LRKPCLGS | F75: 58.78528595 | G75: 0.001036168166 | H75: =G75*SUMIF('Manual Inputs'!$B$11:$B$22,'Expanded kW'!A75,'Manual Inputs'!$C$11:$C$22) -> 29682.73755 | N75: ='Solar Profile'!B75 -> 0 | O75: 58.78528595 | P75: 0.001108998125 | Q75: =P75*SUMIF('Manual Inputs'!$B$11:$B$22,'Expanded kW'!A75,'Manual Inputs'!$L$11:$L$22) -> 0 | R75: 29682.73755
A76: 4 | B76: FALSE | C76: OFF | D76: 2019-04-04T02:00:00 | E76: LRKPCLGS | F76: 58.78042984 | G76: 0.001036082571 | H76: =G76*SUMIF('Manual Inputs'!$B$11:$B$22,'Expanded kW'!A76,'Manual Inputs'!$C$11:$C$22) -> 29680.28553 | N76: ='Solar Profile'!B76 -> 0 | O76: 58.78042984 | P76: 0.001108906513 | Q76: =P76*SUMIF('Manual Inputs'!$B$11:$B$22,'Expanded kW'!A76,'Manual Inputs'!$L$11:$L$22) -> 0 | R76: 29680.28553
A77: 4 | B77: FALSE | C77: OFF | D77: 2019-04-04T03:00:00 | E77: LRKPCLGS | F77: 58.7768898 | G77: 0.001036020173 | H77: =G77*SUMIF('Manual Inputs'!$B$11:$B$22,'Expanded kW'!A77,'Manual Inputs'!$C$11:$C$22) -> 29678.49804 | N77: ='Solar Profile'!B77 -> 0 | O77: 58.7768898 | P77: 0.001108839729 | Q77: =P77*SUMIF('Manual Inputs'!$B$11:$B$22,'Expanded kW'!A77,'Manual Inputs'!$L$11:$L$22) -> 0 | R77: 29678.49804
A78: 4 | B78: FALSE | C78: OFF | D78: 2019-04-04T04:00:00 | E78: LRKPCLGS | F78: 66.06536865 | G78: 0.001164489222 | H78: =G78*SUMIF('Manual Inputs'!$B$11:$B$22,'Expanded kW'!A78,'Manual Inputs'!$C$11:$C$22) -> 33358.70477 | N78: ='Solar Profile'!B78 -> 0 | O78: 66.06536865 | P78: 0.001246338582 | Q78: =P78*SUMIF('Manual Inputs'!$B$11:$B$22,'Expanded kW'!A78,'Manual Inputs'!$L$11:$L$22) -> 0 | R78: 33358.70477
A79: 4 | B79: FALSE | C79: OFF | D79: 2019-04-04T05:00:00 | E79: LRKPCLGS | F79: 73.260849 | G79: 0.001291319049 | H79: =G79*SUMIF('Manual Inputs'!$B$11:$B$22,'Expanded kW'!A79,'Manual Inputs'!$C$11:$C$22) -> 36991.95332 | N79: ='Solar Profile'!B79 -> 0 | O79: 73.260849 | P79: 0.001382082996 | Q79: =P79*SUMIF('Manual Inputs'!$B$11:$B$22,'Expanded kW'!A79,'Manual Inputs'!$L$11:$L$22) -> 0 | R79: 36991.95332
A80: 4 | B80: FALSE | C80: OFF | D80: 2019-04-04T06:00:00 | E80: LRKPCLGS | F80: 88.26250458 | G80: 0.001555743007 | H80: =G80*SUMIF('Manual Inputs'!$B$11:$B$22,'Expanded kW'!A80,'Manual Inputs'!$C$11:$C$22) -> 44566.81152 | N80: ='Solar Profile'!B80 -> 0 | O80: 88.26250458 | P80: 0.001665092726 | Q80: =P80*SUMIF('Manual Inputs'!$B$11:$B$22,'Expanded kW'!A80,'Manual Inputs'!$L$11:$L$22) -> 0 | R80: 44566.81152
A81: 4 | B81: FALSE | C81: ON | D81: 2019-04-04T07:00:00 | E81: LRKPCLGS | F81: 107.0036087 | G81: 0.001886079675 | H81: =G81*SUMIF('Manual Inputs'!$B$11:$B$22,'Expanded kW'!A81,'Manual Inputs'!$C$11:$C$22) -> 54029.84748 | N81: ='Solar Profile'!B81 -> 1.480128 | O81: 105.5234807 | P81: 0.001990725065 | Q81: =P81*SUMIF('Manual Inputs'!$B$11:$B$22,'Expanded kW'!A81,'Manual Inputs'!$L$11:$L$22) -> 0 | R81: 54029.84748
A82: 4 | B82: FALSE | C82: ON | D82: 2019-04-04T08:00:00 | E82: LRKPCLGS | F82: 111.8998871 | G82: 0.001972383037 | H82: =G82*SUMIF('Manual Inputs'!$B$11:$B$22,'Expanded kW'!A82,'Manual Inputs'!$C$11:$C$22) -> 56502.14891 | N82: ='Solar Profile'!B82 -> 6.990406 | O82: 104.9094811 | P82: 0.001979141819 | Q82: =P82*SUMIF('Manual Inputs'!$B$11:$B$22,'Expanded kW'!A82,'Manual Inputs'!$L$11:$L$22) -> 0 | R82: 56502.14891
A83: 4 | B83: FALSE | C83: ON | D83: 2019-04-04T09:00:00 | E83: LRKPCLGS | F83: 109.0085526 | G83: 0.001921419454 | H83: =G83*SUMIF('Manual Inputs'!$B$11:$B$22,'Expanded kW'!A83,'Manual Inputs'!$C$11:$C$22) -> 55042.21344 | N83: ='Solar Profile'!B83 -> 3.979939 | O83: 105.0286136 | P83: 0.001981389281 | Q83: =P83*SUMIF('Manual Inputs'!$B$11:$B$22,'Expanded kW'!A83,'Manual Inputs'!$L$11:$L$22) -> 0 | R83: 55042.21344
A84: 4 | B84: FALSE | C84: ON | D84: 2019-04-04T10:00:00 | E84: LRKPCLGS | F84: 110.1744156 | G84: 0.001941969327 | H84: =G84*SUMIF('Manual Inputs'!$B$11:$B$22,'Expanded kW'!A84,'Manual Inputs'!$C$11:$C$22) -> 55630.89827 | N84: ='Solar Profile'!B84 -> 17.509309 | O84: 92.66510659 | P84: 0.00174814884 | Q84: =P84*SUMIF('Manual Inputs'!$B$11:$B$22,'Expanded kW'!A84,'Manual Inputs'!$L$11:$L$22) -> 0 | R84: 55630.89827
A85: 4 | B85: FALSE | C85: ON | D85: 2019-04-04T11:00:00 | E85: LRKPCLGS | F85: 104.1976471 | G85: 0.001836620902 | H85: =G85*SUMIF('Manual Inputs'!$B$11:$B$22,'Expanded kW'!A85,'Manual Inputs'!$C$11:$C$22) -> 52613.01977 | N85: ='Solar Profile'!B85 -> 18.876904 | O85: 85.32074309 | P85: 0.00160959571 | Q85: =P85*SUMIF('Manual Inputs'!$B$11:$B$22,'Expanded kW'!A85,'Manual Inputs'!$L$11:$L$22) -> 0 | R85: 52613.01977
A86: 4 | B86: FALSE | C86: ON | D86: 2019-04-04T12:00:00 | E86: LRKPCLGS | F86: 105.7621307 | G86: 0.001864196989 | H86: =G86*SUMIF('Manual Inputs'!$B$11:$B$22,'Expanded kW'!A86,'Manual Inputs'!$C$11:$C$22) -> 53402.98203 | N86: ='Solar Profile'!B86 -> 24.498518 | O86: 81.26361274 | P86: 0.001533057 | Q86: =P86*SUMIF('Manual Inputs'!$B$11:$B$22,'Expanded kW'!A86,'Manual Inputs'!$L$11:$L$22) -> 0 | R86: 53402.98203
A87: 4 | B87: FALSE | C87: ON | D87: 2019-04-04T13:00:00 | E87: LRKPCLGS | F87: 101.5398331 | G87: 0.001789773426 | H87: =G87*SUMIF('Manual Inputs'!$B$11:$B$22,'Expanded kW'!A87,'Manual Inputs'!$C$11:$C$22) -> 51270.99694 | N87: ='Solar Profile'!B87 -> 23.54218 | O87: 77.99765307 | P87: 0.00147144391 | Q87: =P87*SUMIF('Manual Inputs'!$B$11:$B$22,'Expanded kW'!A87,'Manual Inputs'!$L$11:$L$22) -> 0 | R87: 51270.99694
A88: 4 | B88: FALSE | C88: ON | D88: 2019-04-04T14:00:00 | E88: LRKPCLGS | F88: 105.1398773 | G88: 0.001853228952 | H88: =G88*SUMIF('Manual Inputs'!$B$11:$B$22,'Expanded kW'!A88,'Manual Inputs'!$C$11:$C$22) -> 53088.78462 | N88: ='Solar Profile'!B88 -> 21.409611 | O88: 83.73026632 | P88: 0.001579590995 | Q88: =P88*SUMIF('Manual Inputs'!$B$11:$B$22,'Expanded kW'!A88,'Manual Inputs'!$L$11:$L$22) -> 0 | R88: 53088.78462
A89: 4 | B89: FALSE | C89: ON | D89: 2019-04-04T15:00:00 | E89: LRKPCLGS | F89: 101.8822174 | G89: 0.001795808402 | H89: =G89*SUMIF('Manual Inputs'!$B$11:$B$22,'Expanded kW'!A89,'Manual Inputs'!$C$11:$C$22) -> 51443.87871 | N89: ='Solar Profile'!B89 -> 17.826199 | O89: 84.05601841 | P89: 0.001585736384 | Q89: =P89*SUMIF('Manual Inputs'!$B$11:$B$22,'Expanded kW'!A89,'Manual Inputs'!$L$11:$L$22) -> 0 | R89: 51443.87871
A90: 4 | B90: FALSE | C90: ON | D90: 2019-04-04T16:00:00 | E90: LRKPCLGS | F90: 91.49723816 | G90: 0.001612759451 | H90: =G90*SUMIF('Manual Inputs'!$B$11:$B$22,'Expanded kW'!A90,'Manual Inputs'!$C$11:$C$22) -> 46200.14112 | N90: ='Solar Profile'!B90 -> 12.530194 | O90: 78.96704416 | P90: 0.001489731699 | Q90: =P90*SUMIF('Manual Inputs'!$B$11:$B$22,'Expanded kW'!A90,'Manual Inputs'!$L$11:$L$22) -> 0 | R90: 46200.14112
A91: 4 | B91: FALSE | C91: ON | D91: 2019-04-04T17:00:00 | E91: LRKPCLGS | F91: 82.42603302 | G91: 0.001452867501 | H91: =G91*SUMIF('Manual Inputs'!$B$11:$B$22,'Expanded kW'!A91,'Manual Inputs'!$C$11:$C$22) -> 41619.77382 | N91: ='Solar Profile'!B91 -> 6.029148 | O91: 76.39688502 | P91: 0.001441245047 | Q91: =P91*SUMIF('Manual Inputs'!$B$11:$B$22,'Expanded kW'!A91,'Manual Inputs'!$L$11:$L$22) -> 0 | R91: 41619.77382
A92: 4 | B92: FALSE | C92: ON | D92: 2019-04-04T18:00:00 | E92: LRKPCLGS | F92: 77.41838074 | G92: 0.001364601028 | H92: =G92*SUMIF('Manual Inputs'!$B$11:$B$22,'Expanded kW'!A92,'Manual Inputs'!$C$11:$C$22) -> 39091.23584 | N92: ='Solar Profile'!B92 -> 0.846434 | O92: 76.57194674 | P92: 0.001444547627 | Q92: =P92*SUMIF('Manual Inputs'!$B$11:$B$22,'Expanded kW'!A92,'Manual Inputs'!$L$11:$L$22) -> 0 | R92: 39091.23584
A93: 4 | B93: FALSE | C93: ON | D93: 2019-04-04T19:00:00 | E93: LRKPCLGS | F93: 75.80945587 | G93: 0.001336241606 | H93: =G93*SUMIF('Manual Inputs'!$B$11:$B$22,'Expanded kW'!A93,'Manual Inputs'!$C$11:$C$22) -> 38278.83366 | N93: ='Solar Profile'!B93 -> 0 | O93: 75.80945587 | P93: 0.001430163059 | Q93: =P93*SUMIF('Manual Inputs'!$B$11:$B$22,'Expanded kW'!A93,'Manual Inputs'!$L$11:$L$22) -> 0 | R93: 38278.83366
A94: 4 | B94: FALSE | C94: ON | D94: 2019-04-04T20:00:00 | E94: LRKPCLGS | F94: 72.5491333 | G94: 0.001278774122 | H94: =G94*SUMIF('Manual Inputs'!$B$11:$B$22,'Expanded kW'!A94,'Manual Inputs'!$C$11:$C$22) -> 36632.58328 | N94: ='Solar Profile'!B94 -> 0 | O94: 72.5491333 | P94: 0.001368656314 | Q94: =P94*SUMIF('Manual Inputs'!$B$11:$B$22,'Expanded kW'!A94,'Manual Inputs'!$L$11:$L$22) -> 0 | R94: 36632.58328
A95: 4 | B95: FALSE | C95: OFF | D95: 2019-04-04T21:00:00 | E95: LRKPCLGS | F95: 70.15899658 | G95: 0.001236644811 | H95: =G95*SUMIF('Manual Inputs'!$B$11:$B$22,'Expanded kW'!A95,'Manual Inputs'!$C$11:$C$22) -> 35425.72004 | N95: ='Solar Profile'!B95 -> 0 | O95: 70.15899658 | P95: 0.001323565827 | Q95: =P95*SUMIF('Manual Inputs'!$B$11:$B$22,'Expanded kW'!A95,'Manual Inputs'!$L$11:$L$22) -> 0 | R95: 35425.72004
A96: 4 | B96: FALSE | C96: OFF | D96: 2019-04-04T22:00:00 | E96: LRKPCLGS | F96: 63.7988205 | G96: 0.001124538323 | H96: =G96*SUMIF('Manual Inputs'!$B$11:$B$22,'Expanded kW'!A96,'Manual Inputs'!$C$11:$C$22) -> 32214.24569 | N96: ='Solar Profile'!B96 -> 0 | O96: 63.7988205 | P96: 0.001203579623 | Q96: =P96*SUMIF('Manual Inputs'!$B$11:$B$22,'Expanded kW'!A96,'Manual Inputs'!$L$11:$L$22) -> 0 | R96: 32214.24569
A97: 4 | B97: FALSE | C97: OFF | D97: 2019-04-04T23:00:00 | E97: LRKPCLGS | F97: 58.78876114 | G97: 0.001036229421 | H97: =G97*SUMIF('Manual Inputs'!$B$11:$B$22,'Expanded kW'!A97,'Manual Inputs'!$C$11:$C$22) -> 29684.49229 | N97: ='Solar Profile'!B97 -> 0 | O97: 58.78876114 | P97: 0.001109063685 | Q97: =P97*SUMIF('Manual Inputs'!$B$11:$B$22,'Expanded kW'!A97,'Manual Inputs'!$L$11:$L$22) -> 0 | R97: 29684.49229
A98: 4 | B98: FALSE | C98: OFF | D98: 2019-04-05 | E98: LRKPCLGS | F98: 54.58864975 | G98: 0.0009621969206 | H98: =G98*SUMIF('Manual Inputs'!$B$11:$B$22,'Expanded kW'!A98,'Manual Inputs'!$C$11:$C$22) -> 27563.70982 | N98: ='Solar Profile'!B98 -> 0 | O98: 54.58864975 | P98: 0.001029827604 | Q98: =P98*SUMIF('Manual Inputs'!$B$11:$B$22,'Expanded kW'!A98,'Manual Inputs'!$L$11:$L$22) -> 0 | R98: 27563.70982
A99: 4 | B99: FALSE | C99: OFF | D99: 2019-04-05T01:00:00 | E99: LRKPCLGS | F99: 54.44890976 | G99: 0.0009597338191 | H99: =G99*SUMIF('Manual Inputs'!$B$11:$B$22,'Expanded kW'!A99,'Manual Inputs'!$C$11:$C$22) -> 27493.15024 | N99: ='Solar Profile'!B99 -> 0 | O99: 54.44890976 | P99: 0.001027191377 | Q99: =P99*SUMIF('Manual Inputs'!$B$11:$B$22,'Expanded kW'!A99,'Manual Inputs'!$L$11:$L$22) -> 0 | R99: 27493.15024
A100: 4 | B100: FALSE | C100: OFF | D100: 2019-04-05T02:00:00 | E100: LRKPCLGS | F100: 53.52441406 | G100: 0.0009434383636 | H100: =G100*SUMIF('Manual Inputs'!$B$11:$B$22,'Expanded kW'!A100,'Manual Inputs'!$C$11:$C$22) -> 27026.34017 | N100: ='Solar Profile'!B100 -> 0 | O100: 53.52441406 | P100: 0.00100975055 | Q100: =P100*SUMIF('Manual Inputs'!$B$11:$B$22,'Expanded kW'!A100,'Manual Inputs'!$L$11:$L$22) -> 0 | R100: 27026.34017
A101: 4 | B101: FALSE | C101: OFF | D101: 2019-04-05T03:00:00 | E101: LRKPCLGS | F101: 55.83004761 | G101: 0.0009840781945 | H101: =G101*SUMIF('Manual Inputs'!$B$11:$B$22,'Expanded kW'!A101,'Manual Inputs'!$C$11:$C$22) -> 28190.53482 | N101: ='Solar Profile'!B101 -> 0 | O101: 55.83004761 | P101: 0.001053246864 | Q101: =P101*SUMIF('Manual Inputs'!$B$11:$B$22,'Expanded kW'!A101,'Manual Inputs'!$L$11:$L$22) -> 0 | R101: 28190.53482
A102: 4 | B102: FALSE | C102: OFF | D102: 2019-04-05T04:00:00 | E102: LRKPCLGS | F102: 58.34356689 | G102: 0.001028382286 | H102: =G102*SUMIF('Manual Inputs'!$B$11:$B$22,'Expanded kW'!A102,'Manual Inputs'!$C$11:$C$22) -> 29459.69822 | N102: ='Solar Profile'!B102 -> 0 | O102: 58.34356689 | P102: 0.001100664992 | Q102: =P102*SUMIF('Manual Inputs'!$B$11:$B$22,'Expanded kW'!A102,'Manual Inputs'!$L$11:$L$22) -> 0 | R102: 29459.69822
A103: 4 | B103: FALSE | C103: OFF | D103: 2019-04-05T05:00:00 | E103: LRKPCLGS | F103: 63.90004349 | G103: 0.001126322511 | H103: =G103*SUMIF('Manual Inputs'!$B$11:$B$22,'Expanded kW'!A103,'Manual Inputs'!$C$11:$C$22) -> 32265.35671 | N103: ='Solar Profile'!B103 -> 0 | O103: 63.90004349 | P103: 0.001205489218 | Q103: =P103*SUMIF('Manual Inputs'!$B$11:$B$22,'Expanded kW'!A103,'Manual Inputs'!$L$11:$L$22) -> 0 | R103: 32265.35671
A104: 4 | B104: FALSE | C104: OFF | D104: 2019-04-05T06:00:00 | E104: LRKPCLGS | F104: 73.18377686 | G104: 0.001289960551 | H104: =G104*SUMIF('Manual Inputs'!$B$11:$B$22,'Expanded kW'!A104,'Manual Inputs'!$C$11:$C$22) -> 36953.03691 | N104: ='Solar Profile'!B104 -> 0 | O104: 73.18377686 | P104: 0.001380629013 | Q104: =P104*SUMIF('Manual Inputs'!$B$11:$B$22,'Expanded kW'!A104,'Manual Inputs'!$L$11:$L$22) -> 0 | R104: 36953.03691
A105: 4 | B105: FALSE | C105: ON | D105: 2019-04-05T07:00:00 | E105: LRKPCLGS | F105: 85.53141785 | G105: 0.001507604003 | H105: =G105*SUMIF('Manual Inputs'!$B$11:$B$22,'Expanded kW'!A105,'Manual Inputs'!$C$11:$C$22) -> 43187.79074 | N105: ='Solar Profile'!B105 -> 1.14405 | O105: 84.38736785 | P105: 0.001591987369 | Q105: =P105*SUMIF('Manual Inputs'!$B$11:$B$22,'Expanded kW'!A105,'Manual Inputs'!$L$11:$L$22) -> 0 | R105: 43187.79074
A106: 4 | B106: FALSE | C106: ON | D106: 2019-04-05T08:00:00 | E106: LRKPCLGS | F106: 89.83368683 | G106: 0.001583437166 | H106: =G106*SUMIF('Manual Inputs'!$B$11:$B$22,'Expanded kW'!A106,'Manual Inputs'!$C$11:$C$22) -> 45360.15614 | N106: ='Solar Profile'!B106 -> 3.766635 | O106: 86.06705183 | P106: 0.001623674999 | Q106: =P106*SUMIF('Manual Inputs'!$B$11:$B$22,'Expanded kW'!A106,'Manual Inputs'!$L$11:$L$22) -> 0 | R106: 45360.15614
A107: 4 | B107: FALSE | C107: ON | D107: 2019-04-05T09:00:00 | E107: LRKPCLGS | F107: 91.27988434 | G107: 0.001608928303 | H107: =G107*SUMIF('Manual Inputs'!$B$11:$B$22,'Expanded kW'!A107,'Manual Inputs'!$C$11:$C$22) -> 46090.39161 | N107: ='Solar Profile'!B107 -> 11.819985 | O107: 79.45989934 | P107: 0.001499029526 | Q107: =P107*SUMIF('Manual Inputs'!$B$11:$B$22,'Expanded kW'!A107,'Manual Inputs'!$L$11:$L$22) -> 0 | R107: 46090.39161
A108: 4 | B108: FALSE | C108: ON | D108: 2019-04-05T10:00:00 | E108: LRKPCLGS | F108: 91.7585907 | G108: 0.001617366134 | H108: =G108*SUMIF('Manual Inputs'!$B$11:$B$22,'Expanded kW'!A108,'Manual Inputs'!$C$11:$C$22) -> 46332.10712 | N108: ='Solar Profile'!B108 -> 8.930344 | O108: 82.8282467 | P108: 0.001562574185 | Q108: =P108*SUMIF('Manual Inputs'!$B$11:$B$22,'Expanded kW'!A108,'Manual Inputs'!$L$11:$L$22) -> 0 | R108: 46332.10712
A109: 4 | B109: FALSE | C109: ON | D109: 2019-04-05T11:00:00 | E109: LRKPCLGS | F109: 90.73406982 | G109: 0.001599307603 | H109: =G109*SUMIF('Manual Inputs'!$B$11:$B$22,'Expanded kW'!A109,'Manual Inputs'!$C$11:$C$22) -> 45814.79086 | N109: ='Solar Profile'!B109 -> 14.30797 | O109: 76.42609982 | P109: 0.001441796191 | Q109: =P109*SUMIF('Manual Inputs'!$B$11:$B$22,'Expanded kW'!A109,'Manual Inputs'!$L$11:$L$22) -> 0 | R109: 45814.79086
A110: 4 | B110: FALSE | C110: ON | D110: 2019-04-05T12:00:00 | E110: LRKPCLGS | F110: 92.36203766 | G110: 0.001628002682 | H110: =G110*SUMIF('Manual Inputs'!$B$11:$B$22,'Expanded kW'!A110,'Manual Inputs'!$C$11:$C$22) -> 46636.8085 | N110: ='Solar Profile'!B110 -> 13.139733 | O110: 79.22230466 | P110: 0.001494547247 | Q110: =P110*SUMIF('Manual Inputs'!$B$11:$B$22,'Expanded kW'!A110,'Manual Inputs'!$L$11:$L$22) -> 0 | R110: 46636.8085
A111: 4 | B111: FALSE | C111: ON | D111: 2019-04-05T13:00:00 | E111: LRKPCLGS | F111: 89.97168732 | G111: 0.001585869606 | H111: =G111*SUMIF('Manual Inputs'!$B$11:$B$22,'Expanded kW'!A111,'Manual Inputs'!$C$11:$C$22) -> 45429.83739 | N111: ='Solar Profile'!B111 -> 11.875075 | O111: 78.09661232 | P111: 0.001473310799 | Q111: =P111*SUMIF('Manual Inputs'!$B$11:$B$22,'Expanded kW'!A111,'Manual Inputs'!$L$11:$L$22) -> 0 | R111: 45429.83739
A112: 4 | B112: FALSE | C112: ON | D112: 2019-04-05T14:00:00 | E112: LRKPCLGS | F112: 88.32339478 | G112: 0.001556816277 | H112: =G112*SUMIF('Manual Inputs'!$B$11:$B$22,'Expanded kW'!A112,'Manual Inputs'!$C$11:$C$22) -> 44597.5571 | N112: ='Solar Profile'!B112 -> 13.773667 | O112: 74.54972778 | P112: 0.001406397995 | Q112: =P112*SUMIF('Manual Inputs'!$B$11:$B$22,'Expanded kW'!A112,'Manual Inputs'!$L$11:$L$22) -> 0 | R112: 44597.5571
A113: 4 | B113: FALSE | C113: ON | D113: 2019-04-05T15:00:00 | E113: LRKPCLGS | F113: 85.9150238 | G113: 0.001514365563 | H113: =G113*SUMIF('Manual Inputs'!$B$11:$B$22,'Expanded kW'!A113,'Manual Inputs'!$C$11:$C$22) -> 43381.48674 | N113: ='Solar Profile'!B113 -> 13.981138 | O113: 71.9338858 | P113: 0.001357049526 | Q113: =P113*SUMIF('Manual Inputs'!$B$11:$B$22,'Expanded kW'!A113,'Manual Inputs'!$L$11:$L$22) -> 0 | R113: 43381.48674
A114: 4 | B114: FALSE | C114: ON | D114: 2019-04-05T16:00:00 | E114: LRKPCLGS | F114: 76.22315216 | G114: 0.001343533548 | H114: =G114*SUMIF('Manual Inputs'!$B$11:$B$22,'Expanded kW'!A114,'Manual Inputs'!$C$11:$C$22) -> 38487.72332 | N114: ='Solar Profile'!B114 -> 8.043192 | O114: 68.17996016 | P114: 0.001286230844 | Q114: =P114*SUMIF('Manual Inputs'!$B$11:$B$22,'Expanded kW'!A114,'Manual Inputs'!$L$11:$L$22) -> 0 | R114: 38487.72332
A115: 4 | B115: FALSE | C115: ON | D115: 2019-04-05T17:00:00 | E115: LRKPCLGS | F115: 73.42887878 | G115: 0.001294280796 | H115: =G115*SUMIF('Manual Inputs'!$B$11:$B$22,'Expanded kW'!A115,'Manual Inputs'!$C$11:$C$22) -> 37076.79741 | N115: ='Solar Profile'!B115 -> 6.277786 | O115: 67.15109278 | P115: 0.001266821021 | Q115: =P115*SUMIF('Manual Inputs'!$B$11:$B$22,'Expanded kW'!A115,'Manual Inputs'!$L$11:$L$22) -> 0 | R115: 37076.79741
A116: 4 | B116: FALSE | C116: ON | D116: 2019-04-05T18:00:00 | E116: LRKPCLGS | F116: 70.9420166 | G116: 0.001250446571 | H116: =G116*SUMIF('Manual Inputs'!$B$11:$B$22,'Expanded kW'!A116,'Manual Inputs'!$C$11:$C$22) -> 35821.09411 | N116: ='Solar Profile'!B116 -> 0.89699 | O116: 70.0450266 | P116: 0.001321415757 | Q116: =P116*SUMIF('Manual Inputs'!$B$11:$B$22,'Expanded kW'!A116,'Manual Inputs'!$L$11:$L$22) -> 0 | R116: 35821.09411
A117: 4 | B117: FALSE | C117: ON | D117: 2019-04-05T19:00:00 | E117: LRKPCLGS | F117: 70.47631836 | G117: 0.001242238026 | H117: =G117*SUMIF('Manual Inputs'!$B$11:$B$22,'Expanded kW'!A117,'Manual Inputs'!$C$11:$C$22) -> 35585.94685 | N117: ='Solar Profile'!B117 -> 0 | O117: 70.47631836 | P117: 0.001329552177 | Q117: =P117*SUMIF('Manual Inputs'!$B$11:$B$22,'Expanded kW'!A117,'Manual Inputs'!$L$11:$L$22) -> 0 | R117: 35585.94685
A118: 4 | B118: FALSE | C118: ON | D118: 2019-04-05T20:00:00 | E118: LRKPCLGS | F118: 66.42901611 | G118: 0.001170898988 | H118: =G118*SUMIF('Manual Inputs'!$B$11:$B$22,'Expanded kW'!A118,'Manual Inputs'!$C$11:$C$22) -> 33542.32303 | N118: ='Solar Profile'!B118 -> 0 | O118: 66.42901611 | P118: 0.001253198876 | Q118: =P118*SUMIF('Manual Inputs'!$B$11:$B$22,'Expanded kW'!A118,'Manual Inputs'!$L$11:$L$22) -> 0 | R118: 33542.32303
A119: 4 | B119: FALSE | C119: OFF | D119: 2019-04-05T21:00:00 | E119: LRKPCLGS | F119: 62.84781265 | G119: 0.001107775556 | H119: =G119*SUMIF('Manual Inputs'!$B$11:$B$22,'Expanded kW'!A119,'Manual Inputs'!$C$11:$C$22) -> 31734.04872 | N119: ='Solar Profile'!B119 -> 0 | O119: 62.84781265 | P119: 0.001185638638 | Q119: =P119*SUMIF('Manual Inputs'!$B$11:$B$22,'Expanded kW'!A119,'Manual Inputs'!$L$11:$L$22) -> 0 | R119: 31734.04872
A120: 4 | B120: FALSE | C120: OFF | D120: 2019-04-05T22:00:00 | E120: LRKPCLGS | F120: 60.98517609 | G120: 0.00107494413 | H120: =G120*SUMIF('Manual Inputs'!$B$11:$B$22,'Expanded kW'!A120,'Manual Inputs'!$C$11:$C$22) -> 30793.53867 | N120: ='Solar Profile'!B120 -> 0 | O120: 60.98517609 | P120: 0.001150499565 | Q120: =P120*SUMIF('Manual Inputs'!$B$11:$B$22,'Expanded kW'!A120,'Manual Inputs'!$L$11:$L$22) -> 0 | R120: 30793.53867
A121: 4 | B121: FALSE | C121: OFF | D121: 2019-04-05T23:00:00 | E121: LRKPCLGS | F121: 57.50982666 | G121: 0.001013686515 | H121: =G121*SUMIF('Manual Inputs'!$B$11:$B$22,'Expanded kW'!A121,'Manual Inputs'!$C$11:$C$22) -> 29038.71375 | N121: ='Solar Profile'!B121 -> 0 | O121: 57.50982666 | P121: 0.001084936288 | Q121: =P121*SUMIF('Manual Inputs'!$B$11:$B$22,'Expanded kW'!A121,'Manual Inputs'!$L$11:$L$22) -> 0 | R121: 29038.71375
A122: 4 | B122: FALSE | C122: OFF | D122: 2019-04-06 | E122: LRKPCLGS | F122: 55.75685501 | G122: 0.0009827880785 | H122: =G122*SUMIF('Manual Inputs'!$B$11:$B$22,'Expanded kW'!A122,'Manual Inputs'!$C$11:$C$22) -> 28153.57733 | N122: ='Solar Profile'!B122 -> 0 | O122: 55.75685501 | P122: 0.001051866069 | Q122: =P122*SUMIF('Manual Inputs'!$B$11:$B$22,'Expanded kW'!A122,'Manual Inputs'!$L$11:$L$22) -> 0 | R122: 28153.57733
A123: 4 | B123: FALSE | C123: OFF | D123: 2019-04-06T01:00:00 | E123: LRKPCLGS | F123: 55.28614807 | G123: 0.0009744912481 | H123: =G123*SUMIF('Manual Inputs'!$B$11:$B$22,'Expanded kW'!A123,'Manual Inputs'!$C$11:$C$22) -> 27915.90101 | N123: ='Solar Profile'!B123 -> 0 | O123: 55.28614807 | P123: 0.001042986073 | Q123: =P123*SUMIF('Manual Inputs'!$B$11:$B$22,'Expanded kW'!A123,'Manual Inputs'!$L$11:$L$22) -> 0 | R123: 27915.90101
A124: 4 | B124: FALSE | C124: OFF | D124: 2019-04-06T02:00:00 | E124: LRKPCLGS | F124: 55.42226791 | G124: 0.0009768905398 | H124: =G124*SUMIF('Manual Inputs'!$B$11:$B$22,'Expanded kW'!A124,'Manual Inputs'!$C$11:$C$22) -> 27984.63266 | N124: ='Solar Profile'!B124 -> 0 | O124: 55.42226791 | P124: 0.001045554005 | Q124: =P124*SUMIF('Manual Inputs'!$B$11:$B$22,'Expanded kW'!A124,'Manual Inputs'!$L$11:$L$22) -> 0 | R124: 27984.63266
A125: 4 | B125: FALSE | C125: OFF | D125: 2019-04-06T03:00:00 | E125: LRKPCLGS | F125: 55.43776321 | G125: 0.0009771636649 | H125: =G125*SUMIF('Manual Inputs'!$B$11:$B$22,'Expanded kW'!A125,'Manual Inputs'!$C$11:$C$22) -> 27992.45677 | N125: ='Solar Profile'!B125 -> 0 | O125: 55.43776321 | P125: 0.001045846328 | Q125: =P125*SUMIF('Manual Inputs'!$B$11:$B$22,'Expanded kW'!A125,'Manual Inputs'!$L$11:$L$22) -> 0 | R125: 27992.45677
A126: 4 | B126: FALSE | C126: OFF | D126: 2019-04-06T04:00:00 | E126: LRKPCLGS | F126: 56.21374512 | G126: 0.000990841369 | H126: =G126*SUMIF('Manual Inputs'!$B$11:$B$22,'Expanded kW'!A126,'Manual Inputs'!$C$11:$C$22) -> 28384.27705 | N126: ='Solar Profile'!B126 -> 0 | O126: 56.21374512 | P126: 0.001060485407 | Q126: =P126*SUMIF('Manual Inputs'!$B$11:$B$22,'Expanded kW'!A126,'Manual Inputs'!$L$11:$L$22) -> 0 | R126: 28384.27705
A127: 4 | B127: FALSE | C127: OFF | D127: 2019-04-06T05:00:00 | E127: LRKPCLGS | F127: 57.02164078 | G127: 0.001005081595 | H127: =G127*SUMIF('Manual Inputs'!$B$11:$B$22,'Expanded kW'!A127,'Manual Inputs'!$C$11:$C$22) -> 28792.2117 | N127: ='Solar Profile'!B127 -> 0 | O127: 57.02164078 | P127: 0.001075726547 | Q127: =P127*SUMIF('Manual Inputs'!$B$11:$B$22,'Expanded kW'!A127,'Manual Inputs'!$L$11:$L$22) -> 0 | R127: 28792.2117
A128: 4 | B128: FALSE | C128: OFF | D128: 2019-04-06T06:00:00 | E128: LRKPCLGS | F128: 62.64138031 | G128: 0.001104136913 | H128: =G128*SUMIF('Manual Inputs'!$B$11:$B$22,'Expanded kW'!A128,'Manual Inputs'!$C$11:$C$22) -> 31629.81385 | N128: ='Solar Profile'!B128 -> 0.09654 | O128: 62.54484031 | P128: 0.001179922994 | Q128: =P128*SUMIF('Manual Inputs'!$B$11:$B$22,'Expanded kW'!A128,'Manual Inputs'!$L$11:$L$22) -> 0 | R128: 31629.81385
A129: 4 | B129: FALSE | C129: OFF | D129: 2019-04-06T07:00:00 | E129: LRKPCLGS | F129: 63.22782516 | G129: 0.001114473777 | H129: =G129*SUMIF('Manual Inputs'!$B$11:$B$22,'Expanded kW'!A129,'Manual Inputs'!$C$11:$C$22) -> 31925.93027 | N129: ='Solar Profile'!B129 -> 3.461822 | O129: 59.76600316 | P129: 0.001127499584 | Q129: =P129*SUMIF('Manual Inputs'!$B$11:$B$22,'Expanded kW'!A129,'Manual Inputs'!$L$11:$L$22) -> 0 | R129: 31925.93027
A130: =MONTH(D130) -> 4 | B130: =IF(ISNA(VLOOKUP(DATE(YEAR(D130),MONTH(D130),DAY(D130)),Holidays,1,FALSE)),FALSE,TRUE) -> FALSE | C130: =IF(OR(HOUR(D130)<PkStart,HOUR(D130)>OPkStart-1,WEEKDAY(D130,2)>5,B130)=TRUE,"OFF","ON") -> OFF | D130: 2019-04-06T08:00:00 | E130: LRKPCLGS | F130: 63.23008728 | G130: =IF(SUMIF($A$2:$A$8785,A130,$F$2:$F$8785)=0,0,F130/SUMIF($A$2:$A$8785,A130,$F$2:$F$8785)) -> 0.00111451365 | H130: =G130*SUMIF('Manual Inputs'!$B$11:$B$22,'Expanded kW'!A130,'Manual Inputs'!$C$11:$C$22) -> 31927.07249 | N130: ='Solar Profile'!B130 -> 9.205641 | O130: 54.02444628 | P130: 0.001019183774 | Q130: =P130*SUMIF('Manual Inputs'!$B$11:$B$22,'Expanded kW'!A130,'Manual Inputs'!$L$11:$L$22) -> 0 | R130: 31927.07249
A131: 4 | B131: FALSE | C131: OFF | D131: 2019-04-06T09:00:00 | E131: LRKPCLGS | F131: 65.23432922 | G131: 0.001149841056 | H131: =G131*SUMIF('Manual Inputs'!$B$11:$B$22,'Expanded kW'!A131,'Manual Inputs'!$C$11:$C$22) -> 32939.08403 | N131: ='Solar Profile'!B131 -> 14.203169 | O131: =F131-N131 -> 51.03116022 | P131: =IF(SUMIF($A$2:$A$8785,A131,$O$2:$O$8785)=0,0,O131/SUMIF($A$2:$A$8785,A131,$O$2:$O$8785)) -> 0.0009627147351 | Q131: =P131*SUMIF('Manual Inputs'!$B$11:$B$22,'Expanded kW'!A131,'Manual Inputs'!$L$11:$L$22) -> 0 | R131: =H131-Q131 -> 32939.08403
A132: 4 | B132: FALSE | C132: OFF | D132: =+D131+1/24 -> 2019-04-06T10:00:00 | E132: =+E131 -> LRKPCLGS | F132: 65.16104889 | G132: 0.001148549394 | H132: =G132*SUMIF('Manual Inputs'!$B$11:$B$22,'Expanded kW'!A132,'Manual Inputs'!$C$11:$C$22) -> 32902.08224 | N132: ='Solar Profile'!B132 -> 13.799699 | O132: 51.36134989 | P132: 0.0009689438401 | Q132: =P132*SUMIF('Manual Inputs'!$B$11:$B$22,'Expanded kW'!A132,'Manual Inputs'!$L$11:$L$22) -> 0 | R132: 32902.08224
A133: 4 | B133: FALSE | C133: OFF | D133: 2019-04-06T11:00:00 | E133: LRKPCLGS | F133: 66.68428802 | G133: 0.001175398492 | H133: =G133*SUMIF('Manual Inputs'!$B$11:$B$22,'Expanded kW'!A133,'Manual Inputs'!$C$11:$C$22) -> 33671.21871 | N133: ='Solar Profile'!B133 -> 14.947621 | O133: 51.73666702 | P133: 0.0009760242854 | Q133: =P133*SUMIF('Manual Inputs'!$B$11:$B$22,'Expanded kW'!A133,'Manual Inputs'!$L$11:$L$22) -> 0 | R133: 33671.21871
A134: 4 | B134: FALSE | C134: OFF | D134: 2019-04-06T12:00:00 | E134: LRKPCLGS | F134: 63.96747971 | G134: 0.001127511163 | H134: =G134*SUMIF('Manual Inputs'!$B$11:$B$22,'Expanded kW'!A134,'Manual Inputs'!$C$11:$C$22) -> 32299.4076 | N134: ='Solar Profile'!B134 -> 11.287223 | O134: 52.68025671 | P134: 0.0009938253247 | Q134: =P134*SUMIF('Manual Inputs'!$B$11:$B$22,'Expanded kW'!A134,'Manual Inputs'!$L$11:$L$22) -> 0 | R134: 32299.4076
A135: 4 | B135: FALSE | C135: OFF | D135: 2019-04-06T13:00:00 | E135: LRKPCLGS | F135: 64.41252136 | G135: 0.001135355609 | H135: =G135*SUMIF('Manual Inputs'!$B$11:$B$22,'Expanded kW'!A135,'Manual Inputs'!$C$11:$C$22) -> 32524.12463 | N135: ='Solar Profile'!B135 -> 11.894499 | O135: 52.51802236 | P135: 0.000990764736 | Q135: =P135*SUMIF('Manual Inputs'!$B$11:$B$22,'Expanded kW'!A135,'Manual Inputs'!$L$11:$L$22) -> 0 | R135: 32524.12463
A136: 4 | B136: FALSE | C136: OFF | D136: 2019-04-06T14:00:00 | E136: LRKPCLGS | F136: 65.80130768 | G136: 0.001159834799 | H136: =G136*SUMIF('Manual Inputs'!$B$11:$B$22,'Expanded kW'!A136,'Manual Inputs'!$C$11:$C$22) -> 33225.37119 | N136: ='Solar Profile'!B136 -> 9.791128 | O136: 56.01017968 | P136: 0.001056645098 | Q136: =P136*SUMIF('Manual Inputs'!$B$11:$B$22,'Expanded kW'!A136,'Manual Inputs'!$L$11:$L$22) -> 0 | R136: 33225.37119
A137: 4 | B137: FALSE | C137: OFF | D137: 2019-04-06T15:00:00 | E137: LRKPCLGS | F137: 64.33989716 | G137: 0.001134075512 | H137: =G137*SUMIF('Manual Inputs'!$B$11:$B$22,'Expanded kW'!A137,'Manual Inputs'!$C$11:$C$22) -> 32487.45414 | N137: ='Solar Profile'!B137 -> 5.285911 | O137: 59.05398616 | P137: 0.001114067217 | Q137: =P137*SUMIF('Manual Inputs'!$B$11:$B$22,'Expanded kW'!A137,'Manual Inputs'!$L$11:$L$22) -> 0 | R137: 32487.45414
A138: 4 | B138: FALSE | C138: OFF | D138: 2019-04-06T16:00:00 | E138: LRKPCLGS | F138: 63.45911026 | G138: 0.001118550482 | H138: =G138*SUMIF('Manual Inputs'!$B$11:$B$22,'Expanded kW'!A138,'Manual Inputs'!$C$11:$C$22) -> 32042.71417 | N138: ='Solar Profile'!B138 -> 5.855973 | O138: 57.60313726 | P138: 0.001086696614 | Q138: =P138*SUMIF('Manual Inputs'!$B$11:$B$22,'Expanded kW'!A138,'Manual Inputs'!$L$11:$L$22) -> 0 | R138: 32042.71417
A139: 4 | B139: FALSE | C139: OFF | D139: 2019-04-06T17:00:00 | E139: LRKPCLGS | F139: 62.57688904 | G139: 0.00110300017 | H139: =G139*SUMIF('Manual Inputs'!$B$11:$B$22,'Expanded kW'!A139,'Manual Inputs'!$C$11:$C$22) -> 31597.24996 | N139: ='Solar Profile'!B139 -> 1.952297 | O139: 60.62459204 | P139: 0.001143697063 | Q139: =P139*SUMIF('Manual Inputs'!$B$11:$B$22,'Expanded kW'!A139,'Manual Inputs'!$L$11:$L$22) -> 0 | R139: 31597.24996
A140: 4 | B140: FALSE | C140: OFF | D140: 2019-04-06T18:00:00 | E140: LRKPCLGS | F140: 62.70649719 | G140: 0.001105284684 | H140: =G140*SUMIF('Manual Inputs'!$B$11:$B$22,'Expanded kW'!A140,'Manual Inputs'!$C$11:$C$22) -> 31662.69363 | N140: ='Solar Profile'!B140 -> 0.236709 | O140: 62.46978819 | P140: 0.001178507119 | Q140: =P140*SUMIF('Manual Inputs'!$B$11:$B$22,'Expanded kW'!A140,'Manual Inputs'!$L$11:$L$22) -> 0 | R140: 31662.69363
A141: 4 | B141: FALSE | C141: OFF | D141: 2019-04-06T19:00:00 | E141: LRKPCLGS | F141: 60.45287323 | G141: 0.001065561591 | H141: =G141*SUMIF('Manual Inputs'!$B$11:$B$22,'Expanded kW'!A141,'Manual Inputs'!$C$11:$C$22) -> 30524.76043 | N141: ='Solar Profile'!B141 -> 0 | O141: 60.45287323 | P141: 0.001140457548 | Q141: =P141*SUMIF('Manual Inputs'!$B$11:$B$22,'Expanded kW'!A141,'Manual Inputs'!$L$11:$L$22) -> 0 | R141: 30524.76043
A142: 4 | B142: FALSE | C142: OFF | D142: 2019-04-06T20:00:00 | E142: LRKPCLGS | F142: 56.69441605 | G142: 0.0009993138278 | H142: =G142*SUMIF('Manual Inputs'!$B$11:$B$22,'Expanded kW'!A142,'Manual Inputs'!$C$11:$C$22) -> 28626.98454 | N142: ='Solar Profile'!B142 -> 0 | O142: 56.69441605 | P142: 0.001069553377 | Q142: =P142*SUMIF('Manual Inputs'!$B$11:$B$22,'Expanded kW'!A142,'Manual Inputs'!$L$11:$L$22) -> 0 | R142: 28626.98454
A143: 4 | B143: FALSE | C143: OFF | D143: 2019-04-06T21:00:00 | E143: LRKPCLGS | F143: 54.71446991 | G143: 0.0009644146668 | H143: =G143*SUMIF('Manual Inputs'!$B$11:$B$22,'Expanded kW'!A143,'Manual Inputs'!$C$11:$C$22) -> 27627.2408 | N143: ='Solar Profile'!B143 -> 0 | O143: 54.71446991 | P143: 0.001032201231 | Q143: =P143*SUMIF('Manual Inputs'!$B$11:$B$22,'Expanded kW'!A143,'Manual Inputs'!$L$11:$L$22) -> 0 | R143: 27627.2408
A144: 4 | B144: FALSE | C144: OFF | D144: 2019-04-06T22:00:00 | E144: LRKPCLGS | F144: 53.35053253 | G144: 0.0009403734723 | H144: =G144*SUMIF('Manual Inputs'!$B$11:$B$22,'Expanded kW'!A144,'Manual Inputs'!$C$11:$C$22) -> 26938.54133 | N144: ='Solar Profile'!B144 -> 0 | O144: 53.35053253 | P144: 0.001006470234 | Q144: =P144*SUMIF('Manual Inputs'!$B$11:$B$22,'Expanded kW'!A144,'Manual Inputs'!$L$11:$L$22) -> 0 | R144: 26938.54133
A145: 4 | B145: FALSE | C145: OFF | D145: 2019-04-06T23:00:00 | E145: LRKPCLGS | F145: 51.80209351 | G145: 0.0009130801931 | H145: =G145*SUMIF('Manual Inputs'!$B$11:$B$22,'Expanded kW'!A145,'Manual Inputs'!$C$11:$C$22) -> 26156.68056 | N145: ='Solar Profile'!B145 -> 0 | O145: 51.80209351 | P145: 0.0009772585712 | Q145: =P145*SUMIF('Manual Inputs'!$B$11:$B$22,'Expanded kW'!A145,'Manual Inputs'!$L$11:$L$22) -> 0 | R145: 26156.68056
A146: 4 | B146: FALSE | C146: OFF | D146: 2019-04-07 | E146: LRKPCLGS | F146: 49.7848587 | G146: 0.0008775237702 | H146: =G146*SUMIF('Manual Inputs'!$B$11:$B$22,'Expanded kW'!A146,'Manual Inputs'!$C$11:$C$22) -> 25138.10847 | N146: ='Solar Profile'!B146 -> 0 | O146: 49.7848587 | P146: 0.0009392029664 | Q146: =P146*SUMIF('Manual Inputs'!$B$11:$B$22,'Expanded kW'!A146,'Manual Inputs'!$L$11:$L$22) -> 0 | R146: 25138.10847
A147: 4 | B147: FALSE | C147: OFF | D147: 2019-04-07T01:00:00 | E147: LRKPCLGS | F147: 49.67023468 | G147: 0.0008755033707 | H147: =G147*SUMIF('Manual Inputs'!$B$11:$B$22,'Expanded kW'!A147,'Manual Inputs'!$C$11:$C$22) -> 25080.23081 | N147: ='Solar Profile'!B147 -> 0 | O147: 49.67023468 | P147: 0.0009370405574 | Q147: =P147*SUMIF('Manual Inputs'!$B$11:$B$22,'Expanded kW'!A147,'Manual Inputs'!$L$11:$L$22) -> 0 | R147: 25080.23081
A148: 4 | B148: FALSE | C148: OFF | D148: 2019-04-07T02:00:00 | E148: LRKPCLGS | F148: 51.6248703 | G148: 0.0009099564004 | H148: =G148*SUMIF('Manual Inputs'!$B$11:$B$22,'Expanded kW'!A148,'Manual Inputs'!$C$11:$C$22) -> 26067.19439 | N148: ='Solar Profile'!B148 -> 0 | O148: 51.6248703 | P148: 0.0009739152141 | Q148: =P148*SUMIF('Manual Inputs'!$B$11:$B$22,'Expanded kW'!A148,'Manual Inputs'!$L$11:$L$22) -> 0 | R148: 26067.19439
A149: 4 | B149: FALSE | C149: OFF | D149: 2019-04-07T03:00:00 | E149: LRKPCLGS | F149: 51.99555588 | G149: 0.0009164902224 | H149: =G149*SUMIF('Manual Inputs'!$B$11:$B$22,'Expanded kW'!A149,'Manual Inputs'!$C$11:$C$22) -> 26254.36645 | N149: ='Solar Profile'!B149 -> 0 | O149: 51.99555588 | P149: 0.0009809082839 | Q149: =P149*SUMIF('Manual Inputs'!$B$11:$B$22,'Expanded kW'!A149,'Manual Inputs'!$L$11:$L$22) -> 0 | R149: 26254.36645
A150: 4 | B150: FALSE | C150: OFF | D150: 2019-04-07T04:00:00 | E150: LRKPCLGS | F150: 53.53133392 | G150: 0.0009435603352 | H150: =G150*SUMIF('Manual Inputs'!$B$11:$B$22,'Expanded kW'!A150,'Manual Inputs'!$C$11:$C$22) -> 27029.83425 | N150: ='Solar Profile'!B150 -> 0 | O150: 53.53133392 | P150: 0.001009881095 | Q150: =P150*SUMIF('Manual Inputs'!$B$11:$B$22,'Expanded kW'!A150,'Manual Inputs'!$L$11:$L$22) -> 0 | R150: 27029.83425
A151: 4 | B151: FALSE | C151: OFF | D151: 2019-04-07T05:00:00 | E151: LRKPCLGS | F151: 55.5670929 | G151: 0.000979443271 | H151: =G151*SUMIF('Manual Inputs'!$B$11:$B$22,'Expanded kW'!A151,'Manual Inputs'!$C$11:$C$22) -> 28057.75983 | N151: ='Solar Profile'!B151 -> 0 | O151: 55.5670929 | P151: 0.001048286162 | Q151: =P151*SUMIF('Manual Inputs'!$B$11:$B$22,'Expanded kW'!A151,'Manual Inputs'!$L$11:$L$22) -> 0 | R151: 28057.75983
A152: 4 | B152: FALSE | C152: OFF | D152: 2019-04-07T06:00:00 | E152: LRKPCLGS | F152: 55.97062302 | G152: 0.0009865560214 | H152: =G152*SUMIF('Manual Inputs'!$B$11:$B$22,'Expanded kW'!A152,'Manual Inputs'!$C$11:$C$22) -> 28261.51624 | N152: ='Solar Profile'!B152 -> 0.525757 | O152: 55.44486602 | P152: 0.001045980324 | Q152: =P152*SUMIF('Manual Inputs'!$B$11:$B$22,'Expanded kW'!A152,'Manual Inputs'!$L$11:$L$22) -> 0 | R152: 28261.51624
A153: 4 | B153: FALSE | C153: OFF | D153: 2019-04-07T07:00:00 | E153: LRKPCLGS | F153: 57.03577042 | G153: 0.001005330649 | H153: =G153*SUMIF('Manual Inputs'!$B$11:$B$22,'Expanded kW'!A153,'Manual Inputs'!$C$11:$C$22) -> 28799.34625 | N153: ='Solar Profile'!B153 -> 5.590202 | O153: 51.44556842 | P153: 0.0009705326423 | Q153: =P153*SUMIF('Manual Inputs'!$B$11:$B$22,'Expanded kW'!A153,'Manual Inputs'!$L$11:$L$22) -> 0 | R153: 28799.34625
A154: 4 | B154: FALSE | C154: OFF | D154: 2019-04-07T08:00:00 | E154: LRKPCLGS | F154: 56.63805771 | G154: 0.0009983204378 | H154: =G154*SUMIF('Manual Inputs'!$B$11:$B$22,'Expanded kW'!A154,'Manual Inputs'!$C$11:$C$22) -> 28598.52725 | N154: ='Solar Profile'!B154 -> 7.535608 | O154: 49.10244971 | P154: 0.0009263291616 | Q154: =P154*SUMIF('Manual Inputs'!$B$11:$B$22,'Expanded kW'!A154,'Manual Inputs'!$L$11:$L$22) -> 0 | R154: 28598.52725
A155: 4 | B155: FALSE | C155: OFF | D155: 2019-04-07T09:00:00 | E155: LRKPCLGS | F155: 59.00286865 | G155: 0.001040003348 | H155: =G155*SUMIF('Manual Inputs'!$B$11:$B$22,'Expanded kW'!A155,'Manual Inputs'!$C$11:$C$22) -> 29792.60263 | N155: ='Solar Profile'!B155 -> 3.72085 | O155: 55.28201865 | P155: 0.00104290817 | Q155: =P155*SUMIF('Manual Inputs'!$B$11:$B$22,'Expanded kW'!A155,'Manual Inputs'!$L$11:$L$22) -> 0 | R155: 29792.60263
A156: 4 | B156: FALSE | C156: OFF | D156: 2019-04-07T10:00:00 | E156: LRKPCLGS | F156: 58.58790588 | G156: 0.001032689083 | H156: =G156*SUMIF('Manual Inputs'!$B$11:$B$22,'Expanded kW'!A156,'Manual Inputs'!$C$11:$C$22) -> 29583.07348 | N156: ='Solar Profile'!B156 -> 8.376112 | O156: 50.21179388 | P156: 0.0009472571981 | Q156: =P156*SUMIF('Manual Inputs'!$B$11:$B$22,'Expanded kW'!A156,'Manual Inputs'!$L$11:$L$22) -> 0 | R156: 29583.07348
A157: 4 | B157: FALSE | C157: OFF | D157: 2019-04-07T11:00:00 | E157: LRKPCLGS | F157: 61.15793228 | G157: 0.001077989186 | H157: =G157*SUMIF('Manual Inputs'!$B$11:$B$22,'Expanded kW'!A157,'Manual Inputs'!$C$11:$C$22) -> 30880.76929 | N157: ='Solar Profile'!B157 -> 11.681422 | O157: 49.47651028 | P157: 0.0009333859015 | Q157: =P157*SUMIF('Manual Inputs'!$B$11:$B$22,'Expanded kW'!A157,'Manual Inputs'!$L$11:$L$22) -> 0 | R157: 30880.76929
A158: 4 | B158: FALSE | C158: OFF | D158: 2019-04-07T12:00:00 | E158: LRKPCLGS | F158: 61.77220535 | G158: 0.001088816559 | H158: =G158*SUMIF('Manual Inputs'!$B$11:$B$22,'Expanded kW'!A158,'Manual Inputs'!$C$11:$C$22) -> 31190.93715 | N158: ='Solar Profile'!B158 -> 7.467466 | O158: 54.30473935 | P158: 0.001024471569 | Q158: =P158*SUMIF('Manual Inputs'!$B$11:$B$22,'Expanded kW'!A158,'Manual Inputs'!$L$11:$L$22) -> 0 | R158: 31190.93715
A159: 4 | B159: FALSE | C159: OFF | D159: 2019-04-07T13:00:00 | E159: LRKPCLGS | F159: 61.76759338 | G159: 0.001088735267 | H159: =G159*SUMIF('Manual Inputs'!$B$11:$B$22,'Expanded kW'!A159,'Manual Inputs'!$C$11:$C$22) -> 31188.60841 | N159: ='Solar Profile'!B159 -> 19.420998 | O159: 42.34659538 | P159: 0.0007988783947 | Q159: =P159*SUMIF('Manual Inputs'!$B$11:$B$22,'Expanded kW'!A159,'Manual Inputs'!$L$11:$L$22) -> 0 | R159: 31188.60841
A160: 4 | B160: FALSE | C160: OFF | D160: 2019-04-07T14:00:00 | E160: LRKPCLGS | F160: 62.41971207 | G160: 0.001100229718 | H160: =G160*SUMIF('Manual Inputs'!$B$11:$B$22,'Expanded kW'!A160,'Manual Inputs'!$C$11:$C$22) -> 31517.88583 | N160: ='Solar Profile'!B160 -> 18.01833 | O160: 44.40138207 | P160: 0.0008376424245 | Q160: =P160*SUMIF('Manual Inputs'!$B$11:$B$22,'Expanded kW'!A160,'Manual Inputs'!$L$11:$L$22) -> 0 | R160: 31517.88583
A161: 4 | B161: FALSE | C161: OFF | D161: 2019-04-07T15:00:00 | E161: LRKPCLGS | F161: 60.54143906 | G161: 0.00106712268 | H161: =G161*SUMIF('Manual Inputs'!$B$11:$B$22,'Expanded kW'!A161,'Manual Inputs'!$C$11:$C$22) -> 30569.4804 | N161: ='Solar Profile'!B161 -> 8.570566 | O161: 51.97087306 | P161: 0.0009804426368 | Q161: =P161*SUMIF('Manual Inputs'!$B$11:$B$22,'Expanded kW'!A161,'Manual Inputs'!$L$11:$L$22) -> 0 | R161: 30569.4804
A162: 4 | B162: FALSE | C162: OFF | D162: 2019-04-07T16:00:00 | E162: LRKPCLGS | F162: 60.6027565 | G162: 0.001068203481 | H162: =G162*SUMIF('Manual Inputs'!$B$11:$B$22,'Expanded kW'!A162,'Manual Inputs'!$C$11:$C$22) -> 30600.44171 | N162: ='Solar Profile'!B162 -> 9.504979 | O162: 51.0977775 | P162: 0.0009639714855 | Q162: =P162*SUMIF('Manual Inputs'!$B$11:$B$22,'Expanded kW'!A162,'Manual Inputs'!$L$11:$L$22) -> 0 | R162: 30600.44171
A163: 4 | B163: FALSE | C163: OFF | D163: 2019-04-07T17:00:00 | E163: LRKPCLGS | F163: 61.73662567 | G163: 0.00108818942 | H163: =G163*SUMIF('Manual Inputs'!$B$11:$B$22,'Expanded kW'!A163,'Manual Inputs'!$C$11:$C$22) -> 31172.97173 | N163: ='Solar Profile'!B163 -> 3.269739 | O163: 58.46688667 | P163: 0.001102991448 | Q163: =P163*SUMIF('Manual Inputs'!$B$11:$B$22,'Expanded kW'!A163,'Manual Inputs'!$L$11:$L$22) -> 0 | R163: 31172.97173
A164: 4 | B164: FALSE | C164: OFF | D164: 2019-04-07T18:00:00 | E164: LRKPCLGS | F164: 59.46218109 | G164: 0.001048099336 | H164: =G164*SUMIF('Manual Inputs'!$B$11:$B$22,'Expanded kW'!A164,'Manual Inputs'!$C$11:$C$22) -> 30024.52547 | N164: ='Solar Profile'!B164 -> 0.603021 | O164: 58.85916009 | P164: 0.001110391778 | Q164: =P164*SUMIF('Manual Inputs'!$B$11:$B$22,'Expanded kW'!A164,'Manual Inputs'!$L$11:$L$22) -> 0 | R164: 30024.52547
A165: 4 | B165: FALSE | C165: OFF | D165: 2019-04-07T19:00:00 | E165: LRKPCLGS | F165: 56.53118896 | G165: 0.0009964367353 | H165: =G165*SUMIF('Manual Inputs'!$B$11:$B$22,'Expanded kW'!A165,'Manual Inputs'!$C$11:$C$22) -> 28544.5655 | N165: ='Solar Profile'!B165 -> 0 | O165: 56.53118896 | P165: 0.00106647406 | Q165: =P165*SUMIF('Manual Inputs'!$B$11:$B$22,'Expanded kW'!A165,'Manual Inputs'!$L$11:$L$22) -> 0 | R165: 28544.5655
A166: 4 | B166: FALSE | C166: OFF | D166: 2019-04-07T20:00:00 | E166: LRKPCLGS | F166: 58.11219025 | G166: 0.001024303967 | H166: =G166*SUMIF('Manual Inputs'!$B$11:$B$22,'Expanded kW'!A166,'Manual Inputs'!$C$11:$C$22) -> 29342.8681 | N166: ='Solar Profile'!B166 -> 0 | O166: 58.11219025 | P166: 0.001096300017 | Q166: =P166*SUMIF('Manual Inputs'!$B$11:$B$22,'Expanded kW'!A166,'Manual Inputs'!$L$11:$L$22) -> 0 | R166: 29342.8681
A167: 4 | B167: FALSE | C167: OFF | D167: 2019-04-07T21:00:00 | E167: LRKPCLGS | F167: 55.68243408 | G167: 0.0009814763115 | H167: =G167*SUMIF('Manual Inputs'!$B$11:$B$22,'Expanded kW'!A167,'Manual Inputs'!$C$11:$C$22) -> 28115.99961 | N167: ='Solar Profile'!B167 -> 0 | O167: 55.68243408 | P167: 0.001050462101 | Q167: =P167*SUMIF('Manual Inputs'!$B$11:$B$22,'Expanded kW'!A167,'Manual Inputs'!$L$11:$L$22) -> 0 | R167: 28115.99961
A168: 4 | B168: FALSE | C168: OFF | D168: 2019-04-07T22:00:00 | E168: LRKPCLGS | F168: 55.14018631 | G168: 0.0009719184796 | H168: =G168*SUMIF('Manual Inputs'!$B$11:$B$22,'Expanded kW'!A168,'Manual Inputs'!$C$11:$C$22) -> 27842.19983 | N168: ='Solar Profile'!B168 -> 0 | O168: 55.14018631 | P168: 0.00104023247 | Q168: =P168*SUMIF('Manual Inputs'!$B$11:$B$22,'Expanded kW'!A168,'Manual Inputs'!$L$11:$L$22) -> 0 | R168: 27842.19983
A169: 4 | B169: FALSE | C169: OFF | D169: 2019-04-07T23:00:00 | E169: LRKPCLGS | F169: 53.2820549 | G169: 0.0009391664638 | H169: =G169*SUMIF('Manual Inputs'!$B$11:$B$22,'Expanded kW'!A169,'Manual Inputs'!$C$11:$C$22) -> 26903.96459 | N169: ='Solar Profile'!B169 -> 0 | O169: 53.2820549 | P169: 0.001005178388 | Q169: =P169*SUMIF('Manual Inputs'!$B$11:$B$22,'Expanded kW'!A169,'Manual Inputs'!$L$11:$L$22) -> 0 | R169: 26903.96459
A170: 4 | B170: FALSE | C170: OFF | D170: 2019-04-08 | E170: LRKPCLGS | F170: 52.66362762 | G170: 0.0009282658677 | H170: =G170*SUMIF('Manual Inputs'!$B$11:$B$22,'Expanded kW'!A170,'Manual Inputs'!$C$11:$C$22) -> 26591.69913 | N170: ='Solar Profile'!B170 -> 0 | O170: 52.66362762 | P170: 0.0009935116132 | Q170: =P170*SUMIF('Manual Inputs'!$B$11:$B$22,'Expanded kW'!A170,'Manual Inputs'!$L$11:$L$22) -> 0 | R170: 26591.69913
A171: 4 | B171: FALSE | C171: OFF | D171: 2019-04-08T01:00:00 | E171: LRKPCLGS | F171: 51.68104172 | G171: 0.0009109464957 | H171: =G171*SUMIF('Manual Inputs'!$B$11:$B$22,'Expanded kW'!A171,'Manual Inputs'!$C$11:$C$22) -> 26095.5573 | N171: ='Solar Profile'!B171 -> 0 | O171: 51.68104172 | P171: 0.000974974901 | Q171: =P171*SUMIF('Manual Inputs'!$B$11:$B$22,'Expanded kW'!A171,'Manual Inputs'!$L$11:$L$22) -> 0 | R171: 26095.5573
A172: 4 | B172: FALSE | C172: OFF | D172: 2019-04-08T02:00:00 | E172: LRKPCLGS | F172: 53.7070961 | G172: 0.0009466583753 | H172: =G172*SUMIF('Manual Inputs'!$B$11:$B$22,'Expanded kW'!A172,'Manual Inputs'!$C$11:$C$22) -> 27118.58269 | N172: ='Solar Profile'!B172 -> 0 | O172: 53.7070961 | P172: 0.001013196889 | Q172: =P172*SUMIF('Manual Inputs'!$B$11:$B$22,'Expanded kW'!A172,'Manual Inputs'!$L$11:$L$22) -> 0 | R172: 27118.58269
A173: 4 | B173: FALSE | C173: OFF | D173: 2019-04-08T03:00:00 | E173: LRKPCLGS | F173: 53.03210831 | G173: 0.0009347608256 | H173: =G173*SUMIF('Manual Inputs'!$B$11:$B$22,'Expanded kW'!A173,'Manual Inputs'!$C$11:$C$22) -> 26777.75786 | N173: ='Solar Profile'!B173 -> 0 | O173: 53.03210831 | P173: 0.001000463087 | Q173: =P173*SUMIF('Manual Inputs'!$B$11:$B$22,'Expanded kW'!A173,'Manual Inputs'!$L$11:$L$22) -> 0 | R173: 26777.75786
A174: 4 | B174: FALSE | C174: OFF | D174: 2019-04-08T04:00:00 | E174: LRKPCLGS | F174: 57.14170074 | G174: 0.00100719781 | H174: =G174*SUMIF('Manual Inputs'!$B$11:$B$22,'Expanded kW'!A174,'Manual Inputs'!$C$11:$C$22) -> 28852.83416 | N174: ='Solar Profile'!B174 -> 0 | O174: 57.14170074 | P174: 0.001077991507 | Q174: =P174*SUMIF('Manual Inputs'!$B$11:$B$22,'Expanded kW'!A174,'Manual Inputs'!$L$11:$L$22) -> 0 | R174: 28852.83416
A175: 4 | B175: FALSE | C175: OFF | D175: 2019-04-08T05:00:00 | E175: LRKPCLGS | F175: 67.31256104 | G175: 0.001186472632 | H175: =G175*SUMIF('Manual Inputs'!$B$11:$B$22,'Expanded kW'!A175,'Manual Inputs'!$C$11:$C$22) -> 33988.45563 | N175: ='Solar Profile'!B175 -> 0 | O175: 67.31256104 | P175: 0.001269867157 | Q175: =P175*SUMIF('Manual Inputs'!$B$11:$B$22,'Expanded kW'!A175,'Manual Inputs'!$L$11:$L$22) -> 0 | R175: 33988.45563
A176: 4 | B176: FALSE | C176: OFF | D176: 2019-04-08T06:00:00 | E176: LRKPCLGS | F176: 84.88472748 | G176: 0.001496205232 | H176: =G176*SUMIF('Manual Inputs'!$B$11:$B$22,'Expanded kW'!A176,'Manual Inputs'!$C$11:$C$22) -> 42861.25426 | N176: ='Solar Profile'!B176 -> 0.554983 | O176: 84.32974448 | P176: 0.00159090029 | Q176: =P176*SUMIF('Manual Inputs'!$B$11:$B$22,'Expanded kW'!A176,'Manual Inputs'!$L$11:$L$22) -> 0 | R176: 42861.25426
A177: 4 | B177: FALSE | C177: ON | D177: 2019-04-08T07:00:00 | E177: LRKPCLGS | F177: 100.907074 | G177: 0.001778620213 | H177: =G177*SUMIF('Manual Inputs'!$B$11:$B$22,'Expanded kW'!A177,'Manual Inputs'!$C$11:$C$22) -> 50951.49484 | N177: ='Solar Profile'!B177 -> 5.551626 | O177: 95.35544797 | P177: 0.001798902757 | Q177: =P177*SUMIF('Manual Inputs'!$B$11:$B$22,'Expanded kW'!A177,'Manual Inputs'!$L$11:$L$22) -> 0 | R177: 50951.49484
A178: 4 | B178: FALSE | C178: ON | D178: 2019-04-08T08:00:00 | E178: LRKPCLGS | F178: 114.4016876 | G178: 0.00201648057 | H178: =G178*SUMIF('Manual Inputs'!$B$11:$B$22,'Expanded kW'!A178,'Manual Inputs'!$C$11:$C$22) -> 57765.3951 | N178: ='Solar Profile'!B178 -> 12.483325 | O178: 101.9183626 | P178: 0.001922713672 | Q178: =P178*SUMIF('Manual Inputs'!$B$11:$B$22,'Expanded kW'!A178,'Manual Inputs'!$L$11:$L$22) -> 0 | R178: 57765.3951
A179: 4 | B179: FALSE | C179: ON | D179: 2019-04-08T09:00:00 | E179: LRKPCLGS | F179: 114.4432449 | G179: 0.002017213072 | H179: =G179*SUMIF('Manual Inputs'!$B$11:$B$22,'Expanded kW'!A179,'Manual Inputs'!$C$11:$C$22) -> 57786.37883 | N179: ='Solar Profile'!B179 -> 18.169865 | O179: 96.27337993 | P179: 0.001816219758 | Q179: =P179*SUMIF('Manual Inputs'!$B$11:$B$22,'Expanded kW'!A179,'Manual Inputs'!$L$11:$L$22) -> 0 | R179: 57786.37883
A180: 4 | B180: FALSE | C180: ON | D180: 2019-04-08T10:00:00 | E180: LRKPCLGS | F180: 119.2447968 | G180: 0.002101846753 | H180: =G180*SUMIF('Manual Inputs'!$B$11:$B$22,'Expanded kW'!A180,'Manual Inputs'!$C$11:$C$22) -> 60210.84952 | N180: ='Solar Profile'!B180 -> 22.121143 | O180: 97.12365375 | P180: 0.001832260372 | Q180: =P180*SUMIF('Manual Inputs'!$B$11:$B$22,'Expanded kW'!A180,'Manual Inputs'!$L$11:$L$22) -> 0 | R180: 60210.84952
A181: 4 | B181: FALSE | C181: ON | D181: 2019-04-08T11:00:00 | E181: LRKPCLGS | F181: 114.1641083 | G181: 0.00201229292 | H181: =G181*SUMIF('Manual Inputs'!$B$11:$B$22,'Expanded kW'!A181,'Manual Inputs'!$C$11:$C$22) -> 57645.43302 | N181: ='Solar Profile'!B181 -> 19.352342 | O181: 94.81176628 | P181: 0.001788646075 | Q181: =P181*SUMIF('Manual Inputs'!$B$11:$B$22,'Expanded kW'!A181,'Manual Inputs'!$L$11:$L$22) -> 0 | R181: 57645.43302
A182: 4 | B182: FALSE | C182: ON | D182: 2019-04-08T12:00:00 | E182: LRKPCLGS | F182: 115.6150284 | G182: 0.0020378673 | H182: =G182*SUMIF('Manual Inputs'!$B$11:$B$22,'Expanded kW'!A182,'Manual Inputs'!$C$11:$C$22) -> 58378.05309 | N182: ='Solar Profile'!B182 -> 20.977479 | O182: 94.63754938 | P182: 0.001785359433 | Q182: =P182*SUMIF('Manual Inputs'!$B$11:$B$22,'Expanded kW'!A182,'Manual Inputs'!$L$11:$L$22) -> 0 | R182: 58378.05309
A183: 4 | B183: FALSE | C183: ON | D183: 2019-04-08T13:00:00 | E183: LRKPCLGS | F183: 112.3496628 | G183: 0.001980310926 | H183: =G183*SUMIF('Manual Inputs'!$B$11:$B$22,'Expanded kW'!A183,'Manual Inputs'!$C$11:$C$22) -> 56729.25632 | N183: ='Solar Profile'!B183 -> 20.183533 | O183: 92.16612978 | P183: 0.001738735526 | Q183: =P183*SUMIF('Manual Inputs'!$B$11:$B$22,'Expanded kW'!A183,'Manual Inputs'!$L$11:$L$22) -> 0 | R183: 56729.25632
A184: 4 | B184: FALSE | C184: ON | D184: 2019-04-08T14:00:00 | E184: LRKPCLGS | F184: 111.6063156 | G184: 0.001967208453 | H184: =G184*SUMIF('Manual Inputs'!$B$11:$B$22,'Expanded kW'!A184,'Manual Inputs'!$C$11:$C$22) -> 56353.91445 | N184: ='Solar Profile'!B184 -> 19.608236 | O184: 91.99807961 | P184: 0.00173556522 | Q184: =P184*SUMIF('Manual Inputs'!$B$11:$B$22,'Expanded kW'!A184,'Manual Inputs'!$L$11:$L$22) -> 0 | R184: 56353.91445
A185: 4 | B185: FALSE | C185: ON | D185: 2019-04-08T15:00:00 | E185: LRKPCLGS | F185: 113.3150558 | G185: 0.001997327252 | H185: =G185*SUMIF('Manual Inputs'!$B$11:$B$22,'Expanded kW'!A185,'Manual Inputs'!$C$11:$C$22) -> 57216.71689 | N185: ='Solar Profile'!B185 -> 12.217333 | O185: 101.0977228 | P185: 0.001907232112 | Q185: =P185*SUMIF('Manual Inputs'!$B$11:$B$22,'Expanded kW'!A185,'Manual Inputs'!$L$11:$L$22) -> 0 | R185: 57216.71689
A186: 4 | B186: FALSE | C186: ON | D186: 2019-04-08T16:00:00 | E186: LRKPCLGS | F186: 97.22620392 | G186: 0.001713740025 | H186: =G186*SUMIF('Manual Inputs'!$B$11:$B$22,'Expanded kW'!A186,'Manual Inputs'!$C$11:$C$22) -> 49092.8954 | N186: ='Solar Profile'!B186 -> 12.576087 | O186: 84.65011692 | P186: 0.001596944191 | Q186: =P186*SUMIF('Manual Inputs'!$B$11:$B$22,'Expanded kW'!A186,'Manual Inputs'!$L$11:$L$22) -> 0 | R186: 49092.8954
A187: 4 | B187: FALSE | C187: ON | D187: 2019-04-08T17:00:00 | E187: LRKPCLGS | F187: 82.21113586 | G187: 0.001449079655 | H187: =G187*SUMIF('Manual Inputs'!$B$11:$B$22,'Expanded kW'!A187,'Manual Inputs'!$C$11:$C$22) -> 41511.26477 | N187: ='Solar Profile'!B187 -> 6.115868 | O187: 76.09526786 | P187: 0.001435554969 | Q187: =P187*SUMIF('Manual Inputs'!$B$11:$B$22,'Expanded kW'!A187,'Manual Inputs'!$L$11:$L$22) -> 0 | R187: 41511.26477
A188: 4 | B188: FALSE | C188: ON | D188: 2019-04-08T18:00:00 | E188: LRKPCLGS | F188: 75.05444336 | G188: 0.001322933515 | H188: =G188*SUMIF('Manual Inputs'!$B$11:$B$22,'Expanded kW'!A188,'Manual Inputs'!$C$11:$C$22) -> 37897.60156 | N188: ='Solar Profile'!B188 -> 1.009203 | O188: 74.04524036 | P188: 0.001396880722 | Q188: =P188*SUMIF('Manual Inputs'!$B$11:$B$22,'Expanded kW'!A188,'Manual Inputs'!$L$11:$L$22) -> 0 | R188: 37897.60156
A189: 4 | B189: FALSE | C189: ON | D189: 2019-04-08T19:00:00 | E189: LRKPCLGS | F189: 73.0695343 | G189: 0.001287946876 | H189: =G189*SUMIF('Manual Inputs'!$B$11:$B$22,'Expanded kW'!A189,'Manual Inputs'!$C$11:$C$22) -> 36895.35187 | N189: ='Solar Profile'!B189 -> 0 | O189: 73.0695343 | P189: 0.0013784738 | Q189: =P189*SUMIF('Manual Inputs'!$B$11:$B$22,'Expanded kW'!A189,'Manual Inputs'!$L$11:$L$22) -> 0 | R189: 36895.35187
A190: 4 | B190: FALSE | C190: ON | D190: 2019-04-08T20:00:00 | E190: LRKPCLGS | F190: 69.54004669 | G190: 0.001225735003 | H190: =G190*SUMIF('Manual Inputs'!$B$11:$B$22,'Expanded kW'!A190,'Manual Inputs'!$C$11:$C$22) -> 35113.19069 | N190: ='Solar Profile'!B190 -> 0 | O190: 69.54004669 | P190: 0.001311889194 | Q190: =P190*SUMIF('Manual Inputs'!$B$11:$B$22,'Expanded kW'!A190,'Manual Inputs'!$L$11:$L$22) -> 0 | R190: 35113.19069
A191: 4 | B191: FALSE | C191: OFF | D191: 2019-04-08T21:00:00 | E191: LRKPCLGS | F191: 66.77888489 | G191: 0.001177065886 | H191: =G191*SUMIF('Manual Inputs'!$B$11:$B$22,'Expanded kW'!A191,'Manual Inputs'!$C$11:$C$22) -> 33718.98396 | N191: ='Solar Profile'!B191 -> 0 | O191: 66.77888489 | P191: 0.001259799232 | Q191: =P191*SUMIF('Manual Inputs'!$B$11:$B$22,'Expanded kW'!A191,'Manual Inputs'!$L$11:$L$22) -> 0 | R191: 33718.98396
A192: 4 | B192: FALSE | C192: OFF | D192: 2019-04-08T22:00:00 | E192: LRKPCLGS | F192: 61.89614487 | G192: 0.001091001156 | H192: =G192*SUMIF('Manual Inputs'!$B$11:$B$22,'Expanded kW'!A192,'Manual Inputs'!$C$11:$C$22) -> 31253.51853 | N192: ='Solar Profile'!B192 -> 0 | O192: 61.89614487 | P192: 0.001167685203 | Q192: =P192*SUMIF('Manual Inputs'!$B$11:$B$22,'Expanded kW'!A192,'Manual Inputs'!$L$11:$L$22) -> 0 | R192: 31253.51853
A193: 4 | B193: FALSE | C193: OFF | D193: 2019-04-08T23:00:00 | E193: LRKPCLGS | F193: 59.30657959 | G193: 0.001045356654 | H193: =G193*SUMIF('Manual Inputs'!$B$11:$B$22,'Expanded kW'!A193,'Manual Inputs'!$C$11:$C$22) -> 29945.95686 | N193: ='Solar Profile'!B193 -> 0 | O193: 59.30657959 | P193: 0.001118832451 | Q193: =P193*SUMIF('Manual Inputs'!$B$11:$B$22,'Expanded kW'!A193,'Manual Inputs'!$L$11:$L$22) -> 0 | R193: 29945.95686
A194: =MONTH(D194) -> 4 | B194: =IF(ISNA(VLOOKUP(DATE(YEAR(D194),MONTH(D194),DAY(D194)),Holidays,1,FALSE)),FALSE,TRUE) -> FALSE | C194: =IF(OR(HOUR(D194)<PkStart,HOUR(D194)>OPkStart-1,WEEKDAY(D194,2)>5,B194)=TRUE,"OFF","ON") -> OFF | D194: 2019-04-09 | E194: LRKPCLGS | F194: 56.78180695 | G194: =IF(SUMIF($A$2:$A$8785,A194,$F$2:$F$8785)=0,0,F194/SUMIF($A$2:$A$8785,A194,$F$2:$F$8785)) -> 0.001000854208 | H194: =G194*SUMIF('Manual Inputs'!$B$11:$B$22,'Expanded kW'!A194,'Manual Inputs'!$C$11:$C$22) -> 28671.11125 | N194: ='Solar Profile'!B194 -> 0 | O194: 56.78180695 | P194: 0.001071202026 | Q194: =P194*SUMIF('Manual Inputs'!$B$11:$B$22,'Expanded kW'!A194,'Manual Inputs'!$L$11:$L$22) -> 0 | R194: 28671.11125
A195: 4 | B195: FALSE | C195: OFF | D195: 2019-04-09T01:00:00 | E195: LRKPCLGS | F195: 56.91518784 | G195: 0.001003205222 | H195: =G195*SUMIF('Manual Inputs'!$B$11:$B$22,'Expanded kW'!A195,'Manual Inputs'!$C$11:$C$22) -> 28738.4599 | N195: ='Solar Profile'!B195 -> 0 | O195: =F195-N195 -> 56.91518784 | P195: =IF(SUMIF($A$2:$A$8785,A195,$O$2:$O$8785)=0,0,O195/SUMIF($A$2:$A$8785,A195,$O$2:$O$8785)) -> 0.001073718288 | Q195: =P195*SUMIF('Manual Inputs'!$B$11:$B$22,'Expanded kW'!A195,'Manual Inputs'!$L$11:$L$22) -> 0 | R195: =H195-Q195 -> 28738.4599
A196: 4 | B196: FALSE | C196: OFF | D196: =+D195+1/24 -> 2019-04-09T02:00:00 | E196: =+E195 -> LRKPCLGS | F196: 56.50691223 | G196: 0.0009960088259 | H196: =G196*SUMIF('Manual Inputs'!$B$11:$B$22,'Expanded kW'!A196,'Manual Inputs'!$C$11:$C$22) -> 28532.30734 | N196: ='Solar Profile'!B196 -> 0 | O196: 56.50691223 | P196: 0.001066016073 | Q196: =P196*SUMIF('Manual Inputs'!$B$11:$B$22,'Expanded kW'!A196,'Manual Inputs'!$L$11:$L$22) -> 0 | R196: 28532.30734
A197: 4 | B197: FALSE | C197: OFF | D197: 2019-04-09T03:00:00 | E197: LRKPCLGS | F197: 57.82891846 | G197: 0.001019310928 | H197: =G197*SUMIF('Manual Inputs'!$B$11:$B$22,'Expanded kW'!A197,'Manual Inputs'!$C$11:$C$22) -> 29199.83431 | N197: ='Solar Profile'!B197 -> 0 | O197: 57.82891846 | P197: 0.001090956029 | Q197: =P197*SUMIF('Manual Inputs'!$B$11:$B$22,'Expanded kW'!A197,'Manual Inputs'!$L$11:$L$22) -> 0 | R197: 29199.83431
A198: 4 | B198: FALSE | C198: OFF | D198: 2019-04-09T04:00:00 | E198: LRKPCLGS | F198: 60.52051544 | G198: 0.001066753874 | H198: =G198*SUMIF('Manual Inputs'!$B$11:$B$22,'Expanded kW'!A198,'Manual Inputs'!$C$11:$C$22) -> 30558.91533 | N198: ='Solar Profile'!B198 -> 0 | O198: 60.52051544 | P198: 0.001141733634 | Q198: =P198*SUMIF('Manual Inputs'!$B$11:$B$22,'Expanded kW'!A198,'Manual Inputs'!$L$11:$L$22) -> 0 | R198: 30558.91533
A199: 4 | B199: FALSE | C199: OFF | D199: 2019-04-09T05:00:00 | E199: LRKPCLGS | F199: 71.88366699 | G199: 0.001267044401 | H199: =G199*SUMIF('Manual Inputs'!$B$11:$B$22,'Expanded kW'!A199,'Manual Inputs'!$C$11:$C$22) -> 36296.56617 | N199: ='Solar Profile'!B199 -> 0 | O199: 71.88366699 | P199: 0.001356102137 | Q199: =P199*SUMIF('Manual Inputs'!$B$11:$B$22,'Expanded kW'!A199,'Manual Inputs'!$L$11:$L$22) -> 0 | R199: 36296.56617
A200: 4 | B200: FALSE | C200: OFF | D200: 2019-04-09T06:00:00 | E200: LRKPCLGS | F200: 88.57913208 | G200: 0.001561323984 | H200: =G200*SUMIF('Manual Inputs'!$B$11:$B$22,'Expanded kW'!A200,'Manual Inputs'!$C$11:$C$22) -> 44726.68777 | N200: ='Solar Profile'!B200 -> 0.624251 | O200: 87.95488108 | P200: 0.001659289337 | Q200: =P200*SUMIF('Manual Inputs'!$B$11:$B$22,'Expanded kW'!A200,'Manual Inputs'!$L$11:$L$22) -> 0 | R200: 44726.68777
... 4299 more rows

Sheet Solar Profile
A1: Hour | B1: kW
A2: 2019-04-01 | B2: 0
A3: 2019-04-01T01:00:00 | B3: 0
A4: 2019-04-01T02:00:00 | B4: 0
A5: 2019-04-01T03:00:00 | B5: 0
A6: 2019-04-01T04:00:00 | B6: 0
A7: 2019-04-01T05:00:00 | B7: 0
A8: 2019-04-01T06:00:00 | B8: 0.026061
A9: 2019-04-01T07:00:00 | B9: 2.921589
A10: 2019-04-01T08:00:00 | B10: 7.700282
A11: 2019-04-01T09:00:00 | B11: 7.988626
A12: 2019-04-01T10:00:00 | B12: 6.897571
A13: 2019-04-01T11:00:00 | B13: 12.917722
A14: 2019-04-01T12:00:00 | B14: 15.720743
A15: 2019-04-01T13:00:00 | B15: 17.703271
A16: 2019-04-01T14:00:00 | B16: 13.018922
A17: 2019-04-01T15:00:00 | B17: 10.591402
A18: 2019-04-01T16:00:00 | B18: 7.366215
A19: 2019-04-01T17:00:00 | B19: 4.160885
A20: 2019-04-01T18:00:00 | B20: 0.573784
A21: 2019-04-01T19:00:00 | B21: 0
A22: 2019-04-01T20:00:00 | B22: 0
A23: 2019-04-01T21:00:00 | B23: 0
A24: 2019-04-01T22:00:00 | B24: 0
A25: 2019-04-01T23:00:00 | B25: 0
A26: 2019-04-02 | B26: 0
A27: 2019-04-02T01:00:00 | B27: 0
A28: 2019-04-02T02:00:00 | B28: 0
A29: 2019-04-02T03:00:00 | B29: 0
A30: 2019-04-02T04:00:00 | B30: 0
A31: 2019-04-02T05:00:00 | B31: 0
A32: 2019-04-02T06:00:00 | B32: 0.172195
A33: 2019-04-02T07:00:00 | B33: 2.34452
A34: 2019-04-02T08:00:00 | B34: 7.440935
A35: 2019-04-02T09:00:00 | B35: 15.542714
A36: 2019-04-02T10:00:00 | B36: 14.231023
A37: 2019-04-02T11:00:00 | B37: 15.738141
A38: 2019-04-02T12:00:00 | B38: 15.320841
A39: 2019-04-02T13:00:00 | B39: 21.542305
A40: 2019-04-02T14:00:00 | B40: 19.374912
A41: 2019-04-02T15:00:00 | B41: 5.726859
A42: 2019-04-02T16:00:00 | B42: 11.467943
A43: 2019-04-02T17:00:00 | B43: 5.412535
A44: 2019-04-02T18:00:00 | B44: 0.688922
A45: 2019-04-02T19:00:00 | B45: 0
A46: 2019-04-02T20:00:00 | B46: 0
A47: 2019-04-02T21:00:00 | B47: 0
A48: 2019-04-02T22:00:00 | B48: 0
A49: 2019-04-02T23:00:00 | B49: 0
A50: 2019-04-03 | B50: 0
A51: 2019-04-03T01:00:00 | B51: 0
A52: 2019-04-03T02:00:00 | B52: 0
A53: 2019-04-03T03:00:00 | B53: 0
A54: 2019-04-03T04:00:00 | B54: 0
A55: 2019-04-03T05:00:00 | B55: 0
A56: 2019-04-03T06:00:00 | B56: 0.082416
A57: 2019-04-03T07:00:00 | B57: 2.610514
A58: 2019-04-03T08:00:00 | B58: 10.537316
A59: 2019-04-03T09:00:00 | B59: 12.332813
A60: 2019-04-03T10:00:00 | B60: 16.595643
A61: 2019-04-03T11:00:00 | B61: 6.476186
A62: 2019-04-03T12:00:00 | B62: 13.873545
A63: 2019-04-03T13:00:00 | B63: 17.102678
A64: 2019-04-03T14:00:00 | B64: 19.176848
A65: 2019-04-03T15:00:00 | B65: 15.924569
A66: 2019-04-03T16:00:00 | B66: 11.171401
A67: 2019-04-03T17:00:00 | B67: 5.331724
A68: 2019-04-03T18:00:00 | B68: 0.715735
A69: 2019-04-03T19:00:00 | B69: 0
A70: 2019-04-03T20:00:00 | B70: 0
A71: 2019-04-03T21:00:00 | B71: 0
A72: 2019-04-03T22:00:00 | B72: 0
A73: 2019-04-03T23:00:00 | B73: 0
A74: 2019-04-04 | B74: 0
A75: 2019-04-04T01:00:00 | B75: 0
A76: 2019-04-04T02:00:00 | B76: 0
A77: 2019-04-04T03:00:00 | B77: 0
A78: 2019-04-04T04:00:00 | B78: 0
A79: 2019-04-04T05:00:00 | B79: 0
A80: 2019-04-04T06:00:00 | B80: 0
A81: 2019-04-04T07:00:00 | B81: 1.480128
A82: 2019-04-04T08:00:00 | B82: 6.990406
A83: 2019-04-04T09:00:00 | B83: 3.979939
A84: 2019-04-04T10:00:00 | B84: 17.509309
A85: 2019-04-04T11:00:00 | B85: 18.876904
A86: 2019-04-04T12:00:00 | B86: 24.498518
A87: 2019-04-04T13:00:00 | B87: 23.54218
A88: 2019-04-04T14:00:00 | B88: 21.409611
A89: 2019-04-04T15:00:00 | B89: 17.826199
A90: 2019-04-04T16:00:00 | B90: 12.530194
A91: 2019-04-04T17:00:00 | B91: 6.029148
A92: 2019-04-04T18:00:00 | B92: 0.846434
A93: 2019-04-04T19:00:00 | B93: 0
A94: 2019-04-04T20:00:00 | B94: 0
A95: 2019-04-04T21:00:00 | B95: 0
A96: 2019-04-04T22:00:00 | B96: 0
A97: 2019-04-04T23:00:00 | B97: 0
A98: 2019-04-05 | B98: 0
A99: 2019-04-05T01:00:00 | B99: 0
A100: 2019-04-05T02:00:00 | B100: 0
A101: 2019-04-05T03:00:00 | B101: 0
A102: 2019-04-05T04:00:00 | B102: 0
A103: 2019-04-05T05:00:00 | B103: 0
A104: 2019-04-05T06:00:00 | B104: 0
A105: 2019-04-05T07:00:00 | B105: 1.14405
A106: 2019-04-05T08:00:00 | B106: 3.766635
A107: 2019-04-05T09:00:00 | B107: 11.819985
A108: 2019-04-05T10:00:00 | B108: 8.930344
A109: 2019-04-05T11:00:00 | B109: 14.30797
A110: 2019-04-05T12:00:00 | B110: 13.139733
A111: 2019-04-05T13:00:00 | B111: 11.875075
A112: 2019-04-05T14:00:00 | B112: 13.773667
A113: 2019-04-05T15:00:00 | B113: 13.981138
A114: 2019-04-05T16:00:00 | B114: 8.043192
A115: 2019-04-05T17:00:00 | B115: 6.277786
A116: 2019-04-05T18:00:00 | B116: 0.89699
A117: 2019-04-05T19:00:00 | B117: 0
A118: 2019-04-05T20:00:00 | B118: 0
A119: 2019-04-05T21:00:00 | B119: 0
A120: 2019-04-05T22:00:00 | B120: 0
A121: 2019-04-05T23:00:00 | B121: 0
A122: 2019-04-06 | B122: 0
A123: 2019-04-06T01:00:00 | B123: 0
A124: 2019-04-06T02:00:00 | B124: 0
A125: 2019-04-06T03:00:00 | B125: 0
A126: 2019-04-06T04:00:00 | B126: 0
A127: 2019-04-06T05:00:00 | B127: 0
A128: 2019-04-06T06:00:00 | B128: 0.09654
A129: 2019-04-06T07:00:00 | B129: 3.461822
A130: 2019-04-06T08:00:00 | B130: 9.205641
A131: 2019-04-06T09:00:00 | B131: 14.203169
A132: 2019-04-06T10:00:00 | B132: 13.799699
A133: 2019-04-06T11:00:00 | B133: 14.947621
A134: 2019-04-06T12:00:00 | B134: 11.287223
A135: 2019-04-06T13:00:00 | B135: 11.894499
A136: 2019-04-06T14:00:00 | B136: 9.791128
A137: 2019-04-06T15:00:00 | B137: 5.285911
A138: 2019-04-06T16:00:00 | B138: 5.855973
A139: 2019-04-06T17:00:00 | B139: 1.952297
A140: 2019-04-06T18:00:00 | B140: 0.236709
A141: 2019-04-06T19:00:00 | B141: 0
A142: 2019-04-06T20:00:00 | B142: 0
A143: 2019-04-06T21:00:00 | B143: 0
A144: 2019-04-06T22:00:00 | B144: 0
A145: 2019-04-06T23:00:00 | B145: 0
A146: 2019-04-07 | B146: 0
A147: 2019-04-07T01:00:00 | B147: 0
A148: 2019-04-07T02:00:00 | B148: 0
A149: 2019-04-07T03:00:00 | B149: 0
A150: 2019-04-07T04:00:00 | B150: 0
A151: 2019-04-07T05:00:00 | B151: 0
A152: 2019-04-07T06:00:00 | B152: 0.525757
A153: 2019-04-07T07:00:00 | B153: 5.590202
A154: 2019-04-07T08:00:00 | B154: 7.535608
A155: 2019-04-07T09:00:00 | B155: 3.72085
A156: 2019-04-07T10:00:00 | B156: 8.376112
A157: 2019-04-07T11:00:00 | B157: 11.681422
A158: 2019-04-07T12:00:00 | B158: 7.467466
A159: 2019-04-07T13:00:00 | B159: 19.420998
A160: 2019-04-07T14:00:00 | B160: 18.01833
A161: 2019-04-07T15:00:00 | B161: 8.570566
A162: 2019-04-07T16:00:00 | B162: 9.504979
A163: 2019-04-07T17:00:00 | B163: 3.269739
A164: 2019-04-07T18:00:00 | B164: 0.603021
A165: 2019-04-07T19:00:00 | B165: 0
A166: 2019-04-07T20:00:00 | B166: 0
A167: 2019-04-07T21:00:00 | B167: 0
A168: 2019-04-07T22:00:00 | B168: 0
A169: 2019-04-07T23:00:00 | B169: 0
A170: 2019-04-08 | B170: 0
A171: 2019-04-08T01:00:00 | B171: 0
A172: 2019-04-08T02:00:00 | B172: 0
A173: 2019-04-08T03:00:00 | B173: 0
A174: 2019-04-08T04:00:00 | B174: 0
A175: 2019-04-08T05:00:00 | B175: 0
A176: 2019-04-08T06:00:00 | B176: 0.554983
A177: 2019-04-08T07:00:00 | B177: 5.551626
A178: 2019-04-08T08:00:00 | B178: 12.483325
A179: 2019-04-08T09:00:00 | B179: 18.169865
A180: 2019-04-08T10:00:00 | B180: 22.121143
A181: 2019-04-08T11:00:00 | B181: 19.352342
A182: 2019-04-08T12:00:00 | B182: 20.977479
A183: 2019-04-08T13:00:00 | B183: 20.183533
A184: 2019-04-08T14:00:00 | B184: 19.608236
A185: 2019-04-08T15:00:00 | B185: 12.217333
A186: 2019-04-08T16:00:00 | B186: 12.576087
A187: 2019-04-08T17:00:00 | B187: 6.115868
A188: 2019-04-08T18:00:00 | B188: 1.009203
A189: 2019-04-08T19:00:00 | B189: 0
A190: 2019-04-08T20:00:00 | B190: 0
A191: 2019-04-08T21:00:00 | B191: 0
A192: 2019-04-08T22:00:00 | B192: 0
A193: 2019-04-08T23:00:00 | B193: 0
A194: 2019-04-09 | B194: 0
A195: 2019-04-09T01:00:00 | B195: 0
A196: 2019-04-09T02:00:00 | B196: 0
A197: 2019-04-09T03:00:00 | B197: 0
A198: 2019-04-09T04:00:00 | B198: 0
A199: 2019-04-09T05:00:00 | B199: 0
A200: 2019-04-09T06:00:00 | B200: 0.624251
... 8585 more rows
